Workbook

Sheet Hoja4 (hidden)
A1: CLASIFICACIÓN DE LA INFORMACIÓN | B1: Pública
B3: Datos
A4: DEPENDENCIA | B4: Cantidad contratos | C4: % del Total
A5: ESTRATEGIA | B5: 4 | C5: 0.02985074627
A6: FINANCIERA Y ADMON | B6: 25 | C6: 0.1865671642
A7: NEGOCIOS | B7: 4 | C7: 0.02985074627
A8: OPERACIONES | B8: 3 | C8: 0.0223880597
A9: OTI | B9: 50 | C9: 0.3731343284
A10: RIESGOS | B10: 1 | C10: 0.007462686567
A11: SECRETARIA GENERAL Y JURIDICA | B11: 43 | C11: 0.3208955224
A12: TÉCNICA | B12: 4 | C12: 0.02985074627
A13: Total general | B13: 134 | C13: 1
A16: DEPENDENCIA | B16: CANTIDAD CONTRATOS | C16: % DEL TOTAL
A17: OTI | B17: 50 | C17: 0.3731343284
A18: SECRETARIA GENERAL Y JURIDICA | B18: 43 | C18: 0.3208955224
A19: FINANCIERA Y ADMON | B19: 25 | C19: 0.1865671642
A20: ESTRATEGIA | B20: 4 | C20: 0.02985074627
A21: NEGOCIOS | B21: 4 | C21: 0.02985074627
A22: TÉCNICA | B22: 4 | C22: 0.02985074627
A23: OPERACIONES | B23: 3 | C23: 0.0223880597
A24: RIESGOS | B24: 1 | C24: 0.007462686567
A25: TOTAL GENERAL | B25: 134 | C25: 1

Sheet Hoja3 (hidden)
I1: DEPENDENCIA | J1: Planeado | K1: Contratado | L1: %
A2: DEPENDENCIA | B2: VALOR | C2: PRESUPUESTO CONTRATADO | D2: % | I2: ESTRATEGIA | J2: 1172306306 | K2: 1172306306 | L2: =K2/J2 -> 1
A3: OFICINA DE ESTRATEGIA Y DESARROLLO | B3: 694295625 | I3: FINANCIERA Y ADMON | J3: 8752267945 | K3: 5335356771 | L3: =K3/J3 -> 0.6095970558
A4: VICEPRESIDENCIA FINANCIERA Y ADMINISTRATIVA | B4: 8752267945 | C4: 3088070598 | D4: =C4/B4 -> 0.3528309025 | I4: NEGOCIOS | J4: 1.336003318e+10 | K4: 12691995310 | L4: =K4/J4 -> 0.9499972894
A5: VICEPRESIDENCIA DE NEGOCIOS | B5: 7381429080 | C5: 12227414358 | D5: =C5/B5 -> 1.656510443 | I5: OPERACIONES | J5: 38366883401 | K5: 31119191770 | L5: =K5/J5 -> 0.8110951167
A6: VICEPRESIDENCIA DE OPERACIONES | B6: 38366883401 | C6: 31119191770 | D6: 0.8110951167 | I6: OTI | J6: 1.63261224e+10 | K6: 9124308413 | L6: =K6/J6 -> 0.5588778639
A7: OFICINA DE TECNOLOGIAS DE LA INFORMACIÓN | B7: 1.63261224e+10 | C7: 201210990 | D7: 0.01232448129 | I7: PYP | J7: 120411187909 | K7: 99075259486 | L7: 0.8228077574
A8: VICEPRESIDENCIA DE PROMOCIÓN Y PREVENCIÓN | B8: 120411187909 | C8: 81402850713 | D8: 0.6760405916 | I8: RIESGOS | J8: 68348301 | K8: 68348301 | L8: 1
A9: OFICINA DE GESTIÓN INTEGRAL DE RIESGOS | B9: 68348301 | D9: 0 | I9: SECRETARIA GENERAL Y JURIDICA | J9: 5599124510 | K9: 4399646576 | L9: 0.7857740202
A10: SECRETARIA GENERAL Y JURIDICA | B10: 6077135191 | C10: 7043728834 | D10: 1.159054162 | I10: TÉCNICA | J10: 1132517831 | K10: 1125458561 | L10: 0.9937667471
A11: VICEPRESIDENCIA TÉCNICA | B11: 1132517831 | C11: 725588815 | D11: 0.6406864379 | I11: Total general | J11: =SUM(J2:J10) -> 2.051887918e+11 | K11: =SUM(K2:K10) -> 164111871494 | L11: 0.7998091419
A12: PRESUPUESTOS COMPARTIDOS
A13: VP NEGOCIOS Y VP FINANCIERA Y ADMON | B13: 269479593
A14: VP NEGOCIOS Y SECRETARIA GENERAL | B14: 110000000
A15: VP NEGOCIOS, SECRETARIA GENERAL y VP PYP | B15: 6589650515
A16: OFICINA DE ESTRATEGIA, G. TALENTO HUMANO y OFICINA DE RIESGOS | B16: 97086437
A17: TOTAL PLAN | B17: 2.062764042e+11 | C17: 135808056078

Sheet Hoja1 (hidden)
B3: Datos | E3: VICEPRESIDENCIA/SECTREATARÍA GENERAL | F3: CANTIDAD PREVISTA DE CONTRATOS | G3: VALOR PLANEADO A CONTRATAR | H3: % del valor estimado
A4: VICEPRESIDENCIA/SECTREATARÍA GENERAL | B4: CANTIDAD PREVISTA DE CONTRATOS | C4: VALOR PLANEADO A CONTRATAR | E4: Financiera y Administrativa | F4: 39 | G4: 9198008297 | H4: =G4/$G$10 -> 0.0461408428
A5: Financiera y Administrativa | B5: 39 | C5: 9198008297 | E5: Negocios | F5: 23 | G5: 8440161697 | H5: 0.04233918491
A6: Negocios | B6: 23 | C6: 8440161697 | E6: Operaciones | F6: 14 | G6: 30469448195 | H6: 0.1528467875
A7: Operaciones | B7: 14 | C7: 30469448195 | E7: Promoción y Prevención | F7: 270 | G7: 119824776984 | H7: 0.6010884118
A8: Promoción y Prevención | B8: 270 | C8: 119824776984 | E8: Secretaria General y Jurídica | F8: 128 | G8: 2.979845428e+10 | H8: 0.149480817
A9: Secretaria General y Jurídica | B9: 128 | C9: 2.979845428e+10 | E9: Técnica | F9: 438 | G9: 1615494000 | H9: 0.008103956019
A10: Técnica | B10: 438 | C10: 1615494000 | E10: Total general | F10: 912 | G10: 1.993463435e+11
A11: Total general | B11: 912 | C11: 1.993463435e+11
A16: CANTIDAD PREVISTA DE CONTRATOS
A17: MES | B17: Total
A18: ENERO | B18: 254
A19: FEBRERO | B19: 104
A20: MARZO | B20: 89
A21: ABRIL | B21: 83
A22: MAYO | B22: 62
A23: JUNIO | B23: 59
A24: JULIO | B24: 58
A25: AGOSTO | B25: 46
A26: SEPTIEMBRE | B26: 34
A27: OCTUBRE | B27: 41
A28: NOVIEMBRE | B28: 55
A29: DICIEMBRE | B29: 27
A30: Total general | B30: 912
A36: MES | B36: Total
A37: ENERO | B37: 254
A38: FEBRERO | B38: 104
A39: MARZO | B39: 89
A40: ABRIL | B40: 83
A41: MAYO | B41: 62
A42: JUNIO | B42: 59
A43: JULIO | B43: 58
A44: AGOSTO | B44: 46
A45: SEPTIEMBRE | B45: 34
A46: OCTUBRE | B46: 41
A47: NOVIEMBRE | B47: 55
A48: DICIEMBRE | B48: 27
A49: Total general | B49: 912

Sheet REPARTO (hidden)
A1: ¿YA SE CONTRATÓ? | B1: (Todas)
A2: Modalidad de selección | B2: (Todas)
G3: 250000 | I3: 120000
A4: Etiquetas de fila | B4: Cuenta de ABOGADO ASIGNADO | G4: =G3/20 -> 12500
A5: Financiera y Administrativa
A6: Gcia. Abastecimiento Estrategico
A7: Gcia. de Tesorería
A8: Gcia. Gestión Financiera
A9: Gcia. Logística
A10: Negocios | B10: 2
A11: Gcia. Canales
A12: Gcia. Experiencia del Cliente | B12: 1
A13: Gcia. Riesgos Laborales
A14: Gcia. Seguros de Vida | B14: 1
A15: Operaciones | B15: 4
A16: Gcia. Afiliaciones y Novedades
A17: Gcia. Recaudo y Cartera | B17: 4
A18: Vice. de Operaciones
A19: Promoción y Prevención | B19: 193
A20: Gcia. Administración del Riesgo | B20: 191
A21: Gcia. Investigación y Control d | B21: 2
A22: Vice. de Promoción y Prevención
A23: Secretaria General y Jurídica | B23: 27
A24: Gcia. Jurídica | B24: 4
A25: Gcia. Talento Humano | B25: 12
A26: Ofic. Control Interno
A27: Ofic. Estratégia y Desarrollo | B27: 1
A28: Ofic. Gestión Integral del Riesgo
A29: Ofic. Tecnologías de la Información | B29: 9
A30: Secretaría General y Jurídica | B30: 1
A31: Técnica | B31: 4
A32: Gcia. Actuaría
A33: Gcia. Indemnizaciones
A34: Gerencia Médica | B34: 4
A35: Total general | B35: 230

Sheet PLAN
E2: PLAN ANUAL DE ADQUISICIONES
E4: A. INFORMACIÓN GENERAL DE LA ENTIDAD
E5: Nombre | F5: POSITIVA COMPAÑÍA DE SEGUROS S.A. | K5: El principal objetivo del Plan Anual de Adquisiciones es permitir que la entidad estatal aumente la probabilidad de lograr mejores condiciones de competencia a través de la participación de un mayor número de operadores económicos interesados en los procesos de selección que se van a adelantar durante el año fiscal, y que el Estado cuente con información suficiente para realizar compras coordinadas.
E6: Dirección | F6: Avenida Carrera 45 No. 94-72
E7: Teléfono | F7: PBX:(57-1)6502200
E8: Página web | F8: www.positiva.gov.co
E9: Misión y visión | F9: MISION: Protegemos Integralmente la vida de las personas contribuyendo al bienestar de las familias, las empresas y la sociedad VISION: Ser la aseguradora que garantiza oportunamente la máxima protección a nuestros clientes
E10: Perspectiva estratégica | F10: POSITIVA COMPAÑÍA DE SEGUROS S.A., diseña e implementa un modelo de negocio de Responsabilidad Global que contribuya con la rentabilidad y el desarrollo sostenible de la empresa y que coadyude con el logro de sus objetivos específicos.
E11: Información de contacto | F11: Gerencia de Abastecimiento Estratégico contratacion@positiva.gov.co PBX: (1)6502200 Ext: 10641 | K11: El Plan Anual de Adquisiciones es un documento de naturaleza informativa y las adquisiciones incluidas en el mismo pueden ser canceladas, revisadas o modificadas. Esta información no representa compromiso u obligación alguna por parte de la entidad estatal ni la compromete a adquirir los bienes, obras y servicios en él señalados.
E12: Valor total del PAA | F12: =SUM(M:M) -> 3.479013042e+11
E13: Límite de contratación menor cuantía | F13: Régimen Especial de Contratación | Z13: SI
E14: Límite de contratación mínima cuantía | F14: Régimen Especial de Contratación | Z14: NO
E15: Fecha de última actualización del PAA | F15: 2021-12-16
E17: NOTA | F17: Acorde con el Decreto 2973 de 2013 en relación con el régimen de las reservas técnicas de las entidades aseguradoras y se dictan otras disposiciones, los contratos para la atención del siniestro se pagan con los recursos destinados a la reserva técnica. Este tipo de contratos son de cuantía indeterminada y aunque es determinable, al momento de la planeación únicamente se refleja el valor asociado al control presupuestal.
E21: B. ADQUISICIONES PLANEADAS
A22: VICEPRESIDENCIA/SECTREATARÍA GENERAL | B22: ÁREA | C22: ¿YA SE CONTRATÓ? | D22: ORDEN | E22: Códigos UNSPSC | F22: Descripción | G22: Fecha estimada de inicio de proceso de selección | H22: MES | I22: Fecha fin contrato | J22: Duración estimada del contrato (Meses) | K22: Modalidad de selección | L22: Fuente de los recursos | M22: Valor total estimado | N22: Valor estimado en la vigencia actual | O22: ¿Se requieren vigencias futuras? | P22: Estado de solicitud de vigencias futuras | Q22: Datos de contacto del responsable | R22: ¿Su necesidad contiene información financiera y secretos comerciales? Ejm: Tarifas comerciales, disminución de la siniestralidad, atención o servicio conexo al siniestro, know how del negocio, clasificación de empresas, estrategias comerciales. | S22: ¿Su necesidad y el proceso de contratación son catalogados como misionales? Ejm: Gestión comercial, Gestión de clientes, Atención al siniestro, Estrategias de disminución de la siniestralidad, Gestión integral del portafolio, Gestión de reservas y reaseguros. | T22: En caso de ser una necesidad tecnologica ¿Su necesidad contiene información sensible? Ejm: Administración de bases de datos de clientes, información comercial de la Compañía, información relevante al know how del negocio. | U22: ¿De publicarse esta información referente al proceso de contratación podrían vulnerarse los intereses de Positiva con relación a su competencia al revelar información misional? | V22: CLASIFICACIÓN DE LA INFORMACIÓN | W22: DESCRIPCIÓN AJUSTADA
A23: Financiera y Administrativa | B23: Gcia. Abastecimiento Estrategico | D23: C55512021 | E23: 80111607 | F23: PRESTACION DE SERVICIOS PROFESIONALES DE ABOGADO, BRINDANDO APOYO Y ACOMPAÑAMIENTO PARA LA ATENCION DE LOS DIFERENTES PROCESOS, ACTIVIDADES Y GESTIONES A CARGO DE LA GERENCIA DE ABASTECIMIENTO ESTRATEGICO DE LA VICEPRESIDENCIA FINANCIERA Y ADMINISTRATIVA DE POSITIVA COMPALIA DE SEGUROS SA | G23: 1/01/2021 | H23: 1 | I23: 31/12/2021 | J23: 12.13333333 | K23: Invitación directa | L23: GastosAdministrativos | M23: 108489963 | N23: 0 | O23: SI | P23: APROBADAS | Q23: Gerencia de Abastecimiento Estratégico contratacion@positiva.gov.co PBX: (1)6502200 Ext: 10641 | R23: NO | S23: NO | T23: NO | U23: NO | V23: Pública | W23: C55512021-Tipo de información Pública-PRESTACION DE SERVICIOS PROFESIONALES DE ABOGADO, BRINDANDO APOYO Y ACOMPAÑAMIENTO PARA LA ATENCION DE LOS DIFERENTES PROCESOS, ACTIVIDADES Y GESTIONES A CARGO DE LA GERENCIA DE ABASTECIMIENTO ESTRATEGICO DE LA VICEPRESIDENCIA FINANCIERA Y ADMINISTRATIVA DE POSITIVA COMPALIA DE SEGUROS SA
A24: Financiera y Administrativa | B24: Gcia. Abastecimiento Estrategico | D24: C55522021 | E24: 80111607 | F24: PRESTACION DE SERVICIOS PROFESIONALES DE ABOGADO, BRINDANDO APOYO Y ACOMPAÑAMIENTO PARA LA ATENCION DE LOS DIFERENTES PROCESOS, ACTIVIDADES Y GESTIONES A CARGO DE LA GERENCIA DE ABASTECIMIENTO ESTRATEGICO DE LA VICEPRESIDENCIA FINANCIERA Y ADMINISTRATIVA DE POSITIVA COMPALIA DE SEGUROS SA | G24: 1/01/2021 | H24: 1 | I24: 31/12/2021 | J24: 12.13333333 | K24: Invitación directa | L24: GastosAdministrativos | M24: 108489963 | N24: 0 | O24: SI | P24: APROBADAS | Q24: Gerencia de Abastecimiento Estratégico contratacion@positiva.gov.co PBX: (1)6502200 Ext: 10641 | R24: NO | S24: NO | T24: NO | U24: NO | V24: Pública | W24: C55522021-Tipo de información Pública-PRESTACION DE SERVICIOS PROFESIONALES DE ABOGADO, BRINDANDO APOYO Y ACOMPAÑAMIENTO PARA LA ATENCION DE LOS DIFERENTES PROCESOS, ACTIVIDADES Y GESTIONES A CARGO DE LA GERENCIA DE ABASTECIMIENTO ESTRATEGICO DE LA VICEPRESIDENCIA FINANCIERA Y ADMINISTRATIVA DE POSITIVA COMPALIA DE SEGUROS SA
A25: Financiera y Administrativa | B25: Gcia. Abastecimiento Estrategico | D25: C55532021 | E25: 80111607 | F25: PRESTACION DE SERVICIOS PROFESIONALES DE ABOGADO, BRINDANDO APOYO Y ACOMPAÑAMIENTO PARA LA ATENCION DE LOS DIFERENTES PROCESOS, ACTIVIDADES Y GESTIONES A CARGO DE LA GERENCIA DE ABASTECIMIENTO ESTRATEGICO DE LA VICEPRESIDENCIA FINANCIERA Y ADMINISTRATIVA DE POSITIVA COMPALIA DE SEGUROS SA | G25: 1/01/2021 | H25: 1 | I25: 2021-03-31 | J25: 2.966666667 | K25: Invitación directa | L25: GastosAdministrativos | M25: 108489963 | N25: 0 | O25: SI | P25: APROBADAS | Q25: Gerencia de Abastecimiento Estratégico contratacion@positiva.gov.co PBX: (1)6502200 Ext: 10641 | R25: NO | S25: NO | T25: NO | U25: NO | V25: Pública | W25: C55532021-Tipo de información Pública-PRESTACION DE SERVICIOS PROFESIONALES DE ABOGADO, BRINDANDO APOYO Y ACOMPAÑAMIENTO PARA LA ATENCION DE LOS DIFERENTES PROCESOS, ACTIVIDADES Y GESTIONES A CARGO DE LA GERENCIA DE ABASTECIMIENTO ESTRATEGICO DE LA VICEPRESIDENCIA FINANCIERA Y ADMINISTRATIVA DE POSITIVA COMPALIA DE SEGUROS SA
A26: Financiera y Administrativa | B26: Gcia. Abastecimiento Estrategico | D26: C56172021 | E26: 80111607 | F26: PRESTACION DE SERVICIOS PROFESIONALES DE ABOGADO, BRINDANDO APOYO Y ACOMPAÑAMIENTO PARA LA ATENCION DE LOS DIFERENTES PROCESOS, ACTIVIDADES Y GESTIONES A CARGO DE LA GERENCIA DE ABASTECIMIENTO ESTRATEGICO DE LA VICEPRESIDENCIA FINANCIERA Y ADMINISTRATIVA DE POSITIVA COMPALIA DE SEGUROS SA | G26: 2021-06-08 | H26: 6 | I26: 2021-12-31 | J26: 6.866666667 | K26: Invitación directa | L26: GastosAdministrativos | M26: 57516667 | N26: 57516667 | O26: NO | Q26: Gerencia de Abastecimiento Estratégico contratacion@positiva.gov.co PBX: (1)6502200 Ext: 10641 | R26: NO | S26: NO | T26: NO | U26: NO | V26: Pública | W26: C56172021-Tipo de información Pública-PRESTACION DE SERVICIOS PROFESIONALES DE ABOGADO, BRINDANDO APOYO Y ACOMPAÑAMIENTO PARA LA ATENCION DE LOS DIFERENTES PROCESOS, ACTIVIDADES Y GESTIONES A CARGO DE LA GERENCIA DE ABASTECIMIENTO ESTRATEGICO DE LA VICEPRESIDENCIA FINANCIERA Y ADMINISTRATIVA DE POSITIVA COMPALIA DE SEGUROS SA
A27: Financiera y Administrativa | B27: Gcia. Abastecimiento Estrategico | D27: C55552021 | E27: 81112200 | F27: RENOVACIÓN DE LICENCIA - SERVICIO DE ARRENDAMIENTO BAJO LA MODALIDAD DE SERVICIO SAAS DEL PRODUCTO ARIBA, EN EL MÓDULO ARIBA SOURCING PROFESSIONAL PARA 15 USUARIOS LÍDERES, CON ILIMITADO NÚMERO DE MIEMBROS DE EQUIPO Y DE PROCESOS CONTRACTUALES. | G27: 2021-07-23 | H27: 7 | I27: 2023-08-31 | J27: 12 | K27: Invitación directa | L27: GastosAdministrativos | M27: 1806000000 | N27: 938987637 | O27: SI | P27: APROBADAS | Q27: Gerencia de Abastecimiento Estratégico contratacion@positiva.gov.co PBX: (1)6502200 Ext: 10641 | R27: NO | S27: NO | T27: NO | U27: SI | V27: Pública clasificada | W27: C55552021-Tipo de información Pública clasificada-RENOVACIÓN DE LICENCIA - SERVICIO DE ARRENDAMIENTO BAJO LA MODALIDAD DE SERVICIO SAAS DEL PRODUCTO ARIBA, EN EL MÓDULO ARIBA SOURCING PROFESSIONAL PARA 15 USUARIOS LÍDERES, CON ILIMITADO NÚMERO DE MIEMBROS DE EQUIPO Y DE PROCESOS CONTRACTUALES.
A28: Financiera y Administrativa | B28: Gcia. Abastecimiento Estrategico | D28: C55562021 | E28: 83120000;93151509;55111500 | F28: PRESTACIÓN DE SERVICIOS DE SUSCRIPCIÓN AL LIBRO ELECTRÓNICO DENOMINADO: ESTATUTO DE LA CONTRATACIÓN ESTATAL EN COLOMBIA, UBICADO EN LA DIRECCIÓN DE INTERNET WWW.CONTRATACIONESTATAL.COM, EN LA MODALIDAD DE LICENCIA DE USO (2 EDICIÓN - ISBN 978- 958-98685-1-5) PARA 12 USUARIOS FUNCIONARIOS DE LA COMPAÑÍA. | G28: 2021-09-01 | H28: 9 | I28: 30/10/2022 | J28: 12 | K28: Invitación directa | L28: GastosAdministrativos | M28: 2651000 | N28: 2651000 | O28: NO | Q28: Gerencia de Abastecimiento Estratégico contratacion@positiva.gov.co PBX: (1)6502200 Ext: 10641 | R28: NO | S28: NO | T28: NO | U28: NO | V28: Pública | W28: C55562021-Tipo de información Pública-PRESTACIÓN DE SERVICIOS DE SUSCRIPCIÓN AL LIBRO ELECTRÓNICO DENOMINADO: ESTATUTO DE LA CONTRATACIÓN ESTATAL EN COLOMBIA, UBICADO EN LA DIRECCIÓN DE INTERNET WWW.CONTRATACIONESTATAL.COM, EN LA MODALIDAD DE LICENCIA DE USO (2 EDICIÓN - ISBN 978- 958-98685-1-5) PARA 12 USUARIOS FUNCIONARIOS DE LA COMPAÑÍA.
A29: Financiera y Administrativa | B29: Gcia. de Tesorería | D29: C55572021 | E29: 84121806 | F29: En virtud del endoso de los físicos u orden de abono o cargo por anotación en cuenta de los títulos valores o valores desmaterializados u otros derechos financieros por parte del DEPOSITANTE, DECEVAL asume la custodia, la administración de los valores, cuando el depositante lo solicite, el registro de los gravámenes o limitaciones de dominio que el depositante o la autoridad competente le comunique, la compensación y liquidación de estos títulos valores, valores u otros derechos financieros. | G29: 1/01/2021 | H29: 1 | I29: 31/12/2021 | J29: 12.13333333 | K29: Invitación directa | L29: OtrosIngresosYEgresos | M29: 358319230 | N29: 358319230 | O29: NO | Q29: Gerencia de Abastecimiento Estratégico contratacion@positiva.gov.co PBX: (1)6502200 Ext: 10641 | R29: SI | S29: SI | T29: NO | U29: SI | V29: Pública clasificada | W29: C55572021-Tipo de información Pública clasificada-En virtud del endoso de los físicos u orden de abono o cargo por anotación en cuenta de los títulos valores o valores desmaterializados u otros derechos financieros por parte del DEPOSITANTE, DECEVAL asume la custodia, la administración de los valores, cuando el depositante lo solicite, el registro de los gravámenes o limitaciones de dominio que el depositante o la autoridad competente le comunique, la compensación y liquidación de estos títulos valores, valores u otros derechos financieros.
A30: Financiera y Administrativa | B30: Gcia. de Tesorería | D30: C55582021 | E30: 84121705 | F30: En virtud del presente Contrato PRECIA se obliga con EL CLIENTE a prestar el servicio de suscripción anual para el acceso a los servicios de cálculo, determinación y proveeduría o suministro de INFORMACIÓN para la valoración de las inversiones de EL CLIENTE y de los fondos que administre, así como la suscripción anual para el acceso a servicios de cálculo y análisis de variables o factores de riesgo como insumo para la medición de riesgos financieros, de acuerdo con las metodologías de valoración de PRECIA, y conforme a los servicios que sean requeridos por EL CLIENTE | G30: 1/01/2021 | H30: 1 | I30: 31/12/2021 | J30: 12.13333333 | K30: Invitación directa | L30: GastosAdministrativos | M30: 97377418 | N30: 97377418 | O30: NO | Q30: Gerencia de Abastecimiento Estratégico contratacion@positiva.gov.co PBX: (1)6502200 Ext: 10641 | R30: SI | S30: SI | T30: NO | U30: SI | V30: Pública clasificada | W30: C55582021-Tipo de información Pública clasificada-En virtud del presente Contrato PRECIA se obliga con EL CLIENTE a prestar el servicio de suscripción anual para el acceso a los servicios de cálculo, determinación y proveeduría o suministro de INFORMACIÓN para la valoración de las inversiones de EL CLIENTE y de los fondos que administre, así como la suscripción anual para el acceso a servicios de cálculo y análisis de variables o factores de riesgo como insumo para la medición de riesgos financieros, de acuerdo con las metodologías de valoración de PRECIA, y conforme a los servicios que sean requeridos por EL CLIENTE
A31: Financiera y Administrativa | B31: Gcia. de Tesorería | D31: C55592021 | E31: 81112502 | F31: Arrendamiento de la plataforma tecnológica y el aplicativo para la administración y valoración del portafolio de inversiones, así como también cualquier otro servicio que se derive de la prestación de los mismos, de acuerdo con las especificaciones y funcionalidades requeridas por Positiva S.A. | G31: 1/01/2021 | H31: 1 | I31: 31/12/2021 | J31: 12.13333333 | K31: Invitación directa | L31: GastosAdministrativos | M31: 576798720 | N31: 576798720 | O31: NO | Q31: Gerencia de Abastecimiento Estratégico contratacion@positiva.gov.co PBX: (1)6502200 Ext: 10641 | R31: SI | S31: SI | T31: NO | U31: SI | V31: Pública clasificada | W31: C55592021-Tipo de información Pública clasificada-Arrendamiento de la plataforma tecnológica y el aplicativo para la administración y valoración del portafolio de inversiones, así como también cualquier otro servicio que se derive de la prestación de los mismos, de acuerdo con las especificaciones y funcionalidades requeridas por Positiva S.A.
A32: Financiera y Administrativa | B32: Gcia. Gestión Financiera | D32: C55612021 | E32: 84111802 | F32: Prestación de servicios profesionales de Revisoría Fiscal | G32: 1/04/2021 | H32: 4 | I32: 31/03/2022 | J32: 12.13333333 | K32: Invitación directa | L32: GastosAdministrativos | M32: 563147568 | N32: 422360676 | O32: SI | P32: Aprobada | Q32: Gerencia de Abastecimiento Estratégico contratacion@positiva.gov.co PBX: (1)6502200 Ext: 10641 | R32: SI | S32: NO | T32: NO | U32: SI | V32: Pública clasificada | W32: C55612021-Tipo de información Pública clasificada-Prestación de servicios profesionales de Revisoría Fiscal
A33: Financiera y Administrativa | B33: Gcia. Gestión Financiera | D33: C55632021 | E33: 81112501 | F33: Prestación de servicios para la renovación de la garantía, soporte y actualizaciones de la licencia adicional del software GaussProfit Edición Advanced. | G33: 1/10/2021 | H33: 10 | I33: 30/09/2022 | J33: 12.13333333 | K33: Invitación directa | L33: GastosAdministrativos | M33: 32133124 | N33: 0 | O33: SI | P33: EN TRAMITE | Q33: Gerencia de Abastecimiento Estratégico contratacion@positiva.gov.co PBX: (1)6502200 Ext: 10641 | R33: SI | S33: NO | T33: NO | U33: SI | V33: Pública clasificada | W33: C55632021-Tipo de información Pública clasificada-Prestación de servicios para la renovación de la garantía, soporte y actualizaciones de la licencia adicional del software GaussProfit Edición Advanced.
A34: Financiera y Administrativa | B34: Gcia. Gestión Financiera | D34: C55672021 | E34: 80101500 | F34: Prestación de servicios profesionales especializados para el soporte, acompañamiento y socialización en la implementación de las Normas Internacionales de Información Financiera y sus interpretaciones sobre todas las áreas de impacto en POSITIVA | G34: 2021-02-28 | H34: 2 | I34: 31/12/2021 | J34: 10.2 | K34: Invitación directa | L34: GastosAdministrativos | M34: 76924155 | N34: 76924155 | O34: NO | Q34: Gerencia de Abastecimiento Estratégico contratacion@positiva.gov.co PBX: (1)6502200 Ext: 10641 | R34: SI | S34: NO | T34: NO | U34: SI | V34: Pública clasificada | W34: C55672021-Tipo de información Pública clasificada-Prestación de servicios profesionales especializados para el soporte, acompañamiento y socialización en la implementación de las Normas Internacionales de Información Financiera y sus interpretaciones sobre todas las áreas de impacto en POSITIVA
A35: Financiera y Administrativa | B35: Gcia. Gestión Financiera | D35: C55682021 | E35: 80101500 | F35: Prestación de servicios - para el soporte, acompañamiento y socialización de la normatividad tributaria a nivel nacional, distrital y municipal para POSITIVA. | G35: 1/01/2021 | H35: 1 | I35: 31/12/2021 | J35: 12.13333333 | K35: Invitación directa | L35: GastosAdministrativos | M35: 76817761 | N35: 76817761 | O35: NO | Q35: Gerencia de Abastecimiento Estratégico contratacion@positiva.gov.co PBX: (1)6502200 Ext: 10641 | R35: SI | S35: NO | T35: NO | U35: SI | V35: Pública clasificada | W35: C55682021-Tipo de información Pública clasificada-Prestación de servicios - para el soporte, acompañamiento y socialización de la normatividad tributaria a nivel nacional, distrital y municipal para POSITIVA.
A36: Financiera y Administrativa | B36: Gcia. Gestión Financiera | D36: C55692021 | E36: 80101500 | F36: Prestación del servicio para el soporte funcional presencial y remoto del módulo FI-CO del ERP SAP, de acuerdo con las necesidades de POSITIVA | G36: 1/01/2021 | H36: 1 | I36: 31/12/2021 | J36: 12.13333333 | K36: Invitación directa | L36: GastosAdministrativos | M36: 422500000 | N36: 0 | O36: SI | P36: EN TRAMITE | Q36: Gerencia de Abastecimiento Estratégico contratacion@positiva.gov.co PBX: (1)6502200 Ext: 10641 | R36: SI | S36: NO | T36: NO | U36: SI | V36: Pública clasificada | W36: C55692021-Tipo de información Pública clasificada-Prestación del servicio para el soporte funcional presencial y remoto del módulo FI-CO del ERP SAP, de acuerdo con las necesidades de POSITIVA
A37: Financiera y Administrativa | B37: Gcia. Gestión Financiera | D37: C55702021 | E37: 80101500 | F37: Prestación de servicios -para el acompañamiento financiero especializado para realizar la valoración de los ramos distintos a Administración de Riesgos Laborales- ARL, con énfasis en los ramos de largo plazo: Conmutación pensional, BEPS, Rentas vitalicias, ARL largo plazo, Vida grupo, Vida individual, Accidentes personales, entre otros, en adelante las unidades de negocio. | G37: 2021-06-01 | H37: 6 | I37: 31/12/2021 | J37: 7.1 | K37: Invitación directa | L37: GastosAdministrativos | M37: 35700000 | N37: 35700000 | O37: NO | Q37: Gerencia de Abastecimiento Estratégico contratacion@positiva.gov.co PBX: (1)6502200 Ext: 10641 | R37: SI | S37: NO | T37: NO | U37: SI | V37: Pública clasificada | W37: C55702021-Tipo de información Pública clasificada-Prestación de servicios -para el acompañamiento financiero especializado para realizar la valoración de los ramos distintos a Administración de Riesgos Laborales- ARL, con énfasis en los ramos de largo plazo: Conmutación pensional, BEPS, Rentas vitalicias, ARL largo plazo, Vida grupo, Vida individual, Accidentes personales, entre otros, en adelante las unidades de negocio.
A38: Financiera y Administrativa | B38: Gcia. Gestión Financiera | D38: C55712021 | E38: 80101500 | F38: Prestación de servicios - para la calificación de la fortaleza financiera y capacidad de pago de siniestros derivados de la suscripción de pólizas y otras obligaciones contractuales de POSITIVA. | G38: 5/04/2021 | H38: 4 | I38: 4/04/2022 | J38: 12.13333333 | K38: Invitación directa | L38: GastosAdministrativos | M38: 34795121 | N38: 34962916 | O38: NO | Q38: Gerencia de Abastecimiento Estratégico contratacion@positiva.gov.co PBX: (1)6502200 Ext: 10641 | R38: SI | S38: NO | T38: NO | U38: SI | V38: Pública clasificada | W38: C55712021-Tipo de información Pública clasificada-Prestación de servicios - para la calificación de la fortaleza financiera y capacidad de pago de siniestros derivados de la suscripción de pólizas y otras obligaciones contractuales de POSITIVA.
A39: Financiera y Administrativa | B39: Gcia. Gestión Financiera | D39: C55722021 | E39: 80101500 | F39: Prestación de servicios - para la estimación de la prueba de deterioro de la plusvalía (Crédito Mercantil) adquirida de la cesión de activos, pasivos y contratos del negocio de riesgos laborales del Instituto Seguro Social, de conformidad con los lineamientos establecidos en las Normas Internacionales de Información Financiera (NIIF) y la NIC36 - deterioro del valor de los activos | G39: 1/10/2021 | H39: 10 | I39: 31/12/2021 | J39: 3.033333333 | K39: Invitación directa | L39: GastosAdministrativos | M39: 45325681 | N39: 45325681 | O39: NO | Q39: Gerencia de Abastecimiento Estratégico contratacion@positiva.gov.co PBX: (1)6502200 Ext: 10641 | R39: SI | S39: NO | T39: NO | U39: SI | V39: Pública clasificada | W39: C55722021-Tipo de información Pública clasificada-Prestación de servicios - para la estimación de la prueba de deterioro de la plusvalía (Crédito Mercantil) adquirida de la cesión de activos, pasivos y contratos del negocio de riesgos laborales del Instituto Seguro Social, de conformidad con los lineamientos establecidos en las Normas Internacionales de Información Financiera (NIIF) y la NIC36 - deterioro del valor de los activos
A40: Financiera y Administrativa | B40: Gcia. Gestión Financiera | D40: C56152021 | E40: 80111504 | F40: Prestación de servicios para desarrollar una actividad para fortalecer el reconocimiento, reconexión y relacionamiento de los equipos que participan en los procesos de la Gerencia de Gestión Financiera | G40: 2021-07-09 | H40: 7 | I40: 31/12/2021 | J40: 5.833333333 | K40: Invitación directa | L40: GastosAdministrativos | M40: 46492000 | N40: 46492000 | O40: NO | Q40: Gerencia de Abastecimiento Estratégico contratacion@positiva.gov.co PBX: (1)6502200 Ext: 10641 | R40: SI | S40: NO | T40: NO | U40: SI | V40: Pública clasificada | W40: C56152021-Tipo de información Pública clasificada-Prestación de servicios para desarrollar una actividad para fortalecer el reconocimiento, reconexión y relacionamiento de los equipos que participan en los procesos de la Gerencia de Gestión Financiera
A41: Financiera y Administrativa | B41: Gcia. Gestión Financiera | D41: C69512021;C55092022 | E41: 80111504 | F41: Prestación de servicios profesionales para la realización de un plan piloto de implementación de NIIF 17 en dos productos de seguros de Positiva: Conmutación Pensional y Accidentes Personales Generación. Así como el acompañamiento y asesoría para la actualización del ejercicio cuantitativo de Solvencia II a presentar a Fasecolda. | G41: 2021-10-11 | H41: =MONTH(G41) -> 10 | I41: 2022-04-30 | J41: =_xlfn.DAYS(I41,G41)/30 -> 6.7 | K41: Invitación directa | L41: GastosAdministrativos | M41: 248900400 | N41: 124450200 | O41: SI | P41: Aprobadas | Q41: Gerencia de Abastecimiento Estratégico contratacion@positiva.gov.co PBX: (1)6502200 Ext: 10641 | R41: SI | S41: NO | T41: NO | U41: SI | V41: =IF(U41="SI","Pública clasificada","Pública") -> Pública clasificada | W41: =CONCATENATE(D41,"-","Tipo de información"," ",V41,"-",F41) -> C69512021;C55092022-Tipo de información Pública clasificada-Prestación de servicios profesionales para la realización de un plan piloto de implementación de NIIF 17 en dos productos de seguros de Positiva: Conmutación Pensional y Accidentes Personales Generación. Así como el acompañamiento y asesoría para la actualización del ejercicio cuantitativo de Solvencia II a presentar a Fasecolda.
A42: Financiera y Administrativa | B42: Gcia. Logística | D42: C55482021 | E42: 83110000 | F42: Proyecto telefónia a Nivel Nacional | G42: 1/04/2021 | H42: 4 | I42: 2023-12-31 | J42: 33.46666667 | K42: Invitación directa | L42: GastosAdministrativos | M42: 1170307819 | N42: 319174861 | O42: SI | P42: Aprobadas | R42: NO | S42: NO | T42: NO | U42: SI | V42: Pública clasificada | W42: C55482021-Tipo de información Pública clasificada-Proyecto telefónia a Nivel Nacional
A43: Financiera y Administrativa | B43: Gcia. Logística | D43: C55882021 | E43: 56101700 | F43: Suministro de sillas para funcionarios | G43: 2021-10-22 | H43: 10 | I43: 2021-12-31 | J43: 2.5 | K43: Invitación cerrada | L43: GastosAdministrativos | M43: 380713363 | N43: 380713363 | O43: NO | R43: NO | S43: NO | T43: NO | U43: SI | V43: Pública clasificada | W43: C55882021-Tipo de información Pública clasificada-Suministro de sillas para funcionarios
A44: Financiera y Administrativa | B44: Gcia. Logística | D44: C55892021 | E44: 72151207 | F44: Suministro: Compraventa e instalación de equipos de aire acondicionado de las oficinas de Positiva a nivel nacional | G44: 44409 | H44: 8 | I44: 44545 | J44: 3.5 | K44: Invitación cerrada | L44: GastosAdministrativos | M44: 128400000 | N44: 285000000 | O44: NO | R44: NO | S44: NO | T44: NO | U44: SI | V44: Pública clasificada | W44: C55892021-Tipo de información Pública clasificada-Suministro: Compraventa e instalación de equipos de aire acondicionado de las oficinas de Positiva a nivel nacional
A45: Financiera y Administrativa | B45: Gcia. Logística | D45: C56232021 | M45: 156600000 | R45: NO | S45: NO | T45: NO | U45: SI | V45: Pública clasificada | W45: C56232021-Tipo de información Pública clasificada-
A46: Financiera y Administrativa | B46: Gcia. Logística | D46: C56242021 | E46: 72101507 | F46: Obra: traslado punto atención Medellin | G46: 2021-08-01 | H46: 8 | I46: 2021-10-01 | J46: 1 | K46: Invitación directa | L46: GastosAdministrativos | M46: 60000000 | N46: 60000000 | O46: NO | R46: NO | S46: NO | T46: NO | U46: SI | V46: Pública clasificada | W46: C56242021-Tipo de información Pública clasificada-Obra: traslado punto atención Medellin
A47: Financiera y Administrativa | B47: Gcia. Logística | D47: C56092021 | E47: 72153613 | F47: Suministro: Mueble para Presidencia | G47: 2021-02-05 | H47: 2 | I47: 2021-03-15 | J47: 1.266666667 | K47: Invitación directa | L47: GastosAdministrativos | M47: 4165000 | N47: 4165000 | O47: NO | R47: NO | S47: NO | T47: NO | U47: SI | V47: Pública clasificada | W47: C56092021-Tipo de información Pública clasificada-Suministro: Mueble para Presidencia
A48: Financiera y Administrativa | B48: Gcia. Logística | D48: C56552021 | E48: 80101500 | F48: Valoración de activos fijos (Equipo de Cómputo, Muebles y Enseres, Vehículos y Bienes Recibidos en Dación de Pago; bajo el método de valor revaluado. | G48: 2021-10-15 | H48: =MONTH(G48) -> 10 | I48: 2021-12-31 | J48: =_xlfn.DAYS(I48,G48)/30 -> 2.566666667 | K48: Invitación directa | L48: GastosAdministrativos | M48: 565250000 | N48: 565250000 | O48: NO | P48: NA | R48: NO | S48: NO | T48: NO | U48: SI | V48: Pública clasificada | W48: C56092021-Tipo de información Pública clasificada-Suministro: Mueble para Presidencia
A49: Financiera y Administrativa | B49: Gcia. Logística | D49: C55902021 | E49: 78131602-80161506 | F49: Prestación del servicio especializado en gestión documental de compañía para la administración y custodia del archivo físico tanto administrativo como misional de la compañía. | G49: 2021-02-15 | H49: 2 | I49: 2022-10-31 | J49: 20.76666667 | K49: Invitación pública | L49: GastosAdministrativos | M49: 3825803042 | N49: 1689108907 | O49: SI | P49: Aprobada | R49: NO | S49: NO | T49: NO | U49: SI | V49: Pública clasificada | W49: C55902021-Tipo de información Pública clasificada-Prestación del servicio especializado en gestión documental de compañía para la administración y custodia del archivo físico tanto administrativo como misional de la compañía.
A50: Financiera y Administrativa | B50: Gcia. Logística | D50: C55912021 | E50: 90000000 | F50: Suministro de tiquetes aéreos para los servidores en el desarrollo de las actividades de Positiva Compañía de Seguros SA | G50: 2021-07-07 | H50: 7 | I50: 2021-12-31 | J50: 5 | K50: Invitación cerrada | L50: GastosAdministrativos | M50: 50000000 | N50: 92000000 | O50: NO | R50: NO | S50: NO | T50: NO | U50: SI | V50: Pública clasificada | W50: C55912021-Tipo de información Pública clasificada-Suministro de tiquetes aéreos para los servidores en el desarrollo de las actividades de Positiva Compañía de Seguros SA
A51: Financiera y Administrativa | B51: Gcia. Logística | D51: C55932021 | E51: 78181500 | F51: Prestación de servicio de mantenimiento preventivo y correctivo con el suministro de repuestos, insumos y accesorios para los vehículos de casa matriz y la coordinadora Bogotá de Positiva Compañía de Seguros S.A. | G51: 2021-04-01 | H51: 4 | I51: 2021-12-31 | J51: 9.133333333 | K51: Invitación directa | L51: GastosAdministrativos | M51: 52272951 | N51: 52272951 | O51: NO | R51: NO | S51: NO | T51: NO | U51: SI | V51: Pública clasificada | W51: C55932021-Tipo de información Pública clasificada-Prestación de servicio de mantenimiento preventivo y correctivo con el suministro de repuestos, insumos y accesorios para los vehículos de casa matriz y la coordinadora Bogotá de Positiva Compañía de Seguros S.A.
A52: Financiera y Administrativa | B52: Gcia. Logística | D52: C55942021 | E52: 78181500 | F52: Prestación de servicio de mantenimiento preventivo y correctivo con el suministro de repuestos, insumos y accesorios para los vehículos de las coordinadoras Antioquia, Atlántico, Valle y Santander de Positiva Compañía de Seguros S.A. | G52: 2021-02-01 | H52: 2 | I52: 2021-12-31 | J52: 11.1 | K52: Invitación directa | L52: GastosAdministrativos | M52: 30870000 | N52: 30870000 | O52: NO | R52: NO | S52: NO | T52: NO | U52: SI | V52: Pública clasificada | W52: C55942021-Tipo de información Pública clasificada-Prestación de servicio de mantenimiento preventivo y correctivo con el suministro de repuestos, insumos y accesorios para los vehículos de las coordinadoras Antioquia, Atlántico, Valle y Santander de Positiva Compañía de Seguros S.A.
A53: Financiera y Administrativa | B53: Gcia. Logística | E53: 72101507 | F53: Prestación de servicios de mantenimiento locativo sedes a Nivel Nacional | G53: 2021-08-15 | H53: 8 | I53: 2022-12-15 | J53: 16.23333333 | K53: Invitación pública | L53: GastosAdministrativos | M53: 1021000000 | N53: 611000000 | O53: SI | P53: EN TRAMITE | R53: NO | S53: NO | T53: NO | U53: SI | V53: Pública clasificada | W53: -Tipo de información Pública clasificada-Prestación de servicios de mantenimiento locativo sedes a Nivel Nacional
A54: Financiera y Administrativa | B54: Gcia. Logística | D54: C55972021 | E54: 72101507 | F54: Prestacion de servicios para el mantenimiento preventivo y correctivo de la Planta de Emergencia y Sub Estacion de Cali | G54: 2021-05-15 | H54: 5 | I54: 2021-12-31 | J54: 7.666666667 | K54: Invitación directa | L54: GastosAdministrativos | M54: 10083278 | N54: 10083278 | O54: NO | R54: NO | S54: NO | T54: NO | U54: SI | V54: Pública clasificada | W54: C55972021-Tipo de información Pública clasificada-Prestacion de servicios para el mantenimiento preventivo y correctivo de la Planta de Emergencia y Sub Estacion de Cali
A55: Financiera y Administrativa | B55: Gcia. Logística | D55: C55982021 | E55: 47000000 | F55: Prestacion del servicio para el mantenimiento del equipo hidroneumatico y manteniminto de piscinas Cali. | G55: 2021-04-05 | H55: 4 | I55: 2021-12-31 | J55: 9 | K55: Invitación directa | L55: GastosAdministrativos | M55: 16000000 | N55: 16000000 | O55: NO | R55: NO | S55: NO | T55: NO | U55: SI | V55: Pública clasificada | W55: C55982021-Tipo de información Pública clasificada-Prestacion del servicio para el mantenimiento del equipo hidroneumatico y manteniminto de piscinas Cali.
A56: Financiera y Administrativa | B56: Gcia. Logística | D56: C55992021 | E56: 72101507 | F56: Obra: Adecuación Traslado Meta | G56: 2021-03-01 | H56: 3 | I56: 2021-04-30 | J56: 2 | K56: Invitación directa | L56: GastosAdministrativos | M56: 85000000 | N56: 85000000 | O56: NO | R56: NO | S56: NO | T56: NO | U56: SI | V56: Pública clasificada | W56: C55992021-Tipo de información Pública clasificada-Obra: Adecuación Traslado Meta
A57: Financiera y Administrativa | B57: Gcia. Logística | D57: C56002021 | E57: 72101507 | F57: Obra: Adecuación Traslado Caquetá | G57: 2021-05-01 | H57: 5 | I57: 2021-07-31 | J57: 3.033333333 | K57: Invitación directa | L57: GastosAdministrativos | M57: 31447258 | N57: 31447258 | O57: NO | R57: NO | S57: NO | T57: NO | U57: SI | V57: Pública clasificada | W57: C56002021-Tipo de información Pública clasificada-Obra: Adecuación Traslado Caquetá
A58: Financiera y Administrativa | B58: Gcia. Logística | D58: C56012021 | E58: 72154066 | F58: Prestación de servicios de mantenimiento CCTV con repuestos | G58: 2021-03-01 | H58: 3 | I58: 2021-12-31 | J58: 10.16666667 | K58: Invitación directa | L58: GastosAdministrativos | M58: 105000000 | N58: 17324001 | O58: NO | R58: NO | S58: NO | T58: NO | U58: SI | V58: Pública clasificada | W58: C56012021-Tipo de información Pública clasificada-Prestación de servicios de mantenimiento CCTV con repuestos
A59: Financiera y Administrativa | B59: Gcia. Logística | D59: C56022021 | E59: 72154066 | F59: Prestación de servicios de mantenimiento dispositivos video conferencia con repuestos | G59: 2021-03-01 | H59: 3 | I59: 2021-12-31 | J59: 10.16666667 | K59: Invitación directa | L59: GastosAdministrativos | M59: 60000000 | N59: 60000000 | O59: NO | R59: NO | S59: NO | T59: NO | U59: SI | V59: Pública clasificada | W59: C56022021-Tipo de información Pública clasificada-Prestación de servicios de mantenimiento dispositivos video conferencia con repuestos
A60: Financiera y Administrativa | B60: Gcia. Logística | D60: C56032021 | E60: 72154066 | F60: Prestación de servicios de mantenimiento digiturnos | G60: 2021-05-01 | H60: 5 | I60: 2021-12-31 | J60: 8.133333333 | K60: Invitación directa | L60: GastosAdministrativos | M60: 17324001 | N60: 30000000 | O60: NO | R60: NO | S60: NO | T60: NO | U60: SI | V60: Pública clasificada | W60: C56032021-Tipo de información Pública clasificada-Prestación de servicios de mantenimiento digiturnos
A61: Financiera y Administrativa | B61: Gcia. Logística | E61: 78181701 | F61: Suminisro de combustible vehiculos Positiva Compañía de Seguros SA | G61: 2021-10-25 | H61: 10 | I61: 2022-12-31 | J61: 14.4 | K61: Invitación directa | L61: GastosAdministrativos | M61: 78486000 | N61: 0 | O61: SI | P61: EN TRAMITE | R61: NO | S61: NO | T61: NO | U61: SI | V61: Pública clasificada | W61: -Tipo de información Pública clasificada-Suminisro de combustible vehiculos Positiva Compañía de Seguros SA
A62: Financiera y Administrativa | B62: Gcia. Logística | D62: C56062021 | E62: 81112200 | F62: Prestación de servicios de mantenimiento aplicativos Sunboxes y Sico Viáticos | G62: 2021-05-01 | H62: 5 | I62: 2021-12-31 | J62: 8.133333333 | K62: Invitación directa | L62: GastosAdministrativos | M62: 66600000 | N62: 66600000 | O62: NO | R62: NO | S62: NO | T62: NO | U62: SI | V62: Pública clasificada | W62: C56062021-Tipo de información Pública clasificada-Prestación de servicios de mantenimiento aplicativos Sunboxes y Sico Viáticos
A63: Financiera y Administrativa | B63: Gcia. Logística | D63: C56072021 | E63: 80131802 | F63: Prestación de servicios de actualización de los avalúos a los inmuebles de propiedad de Positiva bajo las Normas Internacionales de Información Financiera (NIIF). | G63: 2021-10-01 | H63: 10 | I63: 2021-12-31 | J63: 3.033333333 | K63: Invitación directa | L63: GastosAdministrativos | M63: 87861861 | N63: 87861861 | O63: NO | R63: NO | S63: NO | T63: NO | U63: SI | V63: Pública clasificada | W63: C56072021-Tipo de información Pública clasificada-Prestación de servicios de avalúos inmuebles
A64: Financiera y Administrativa | B64: Gcia. Logística | D64: C56112021 | E64: 72151207 | F64: Prestación de servicios para el mantenimiento preventivo de Sistemas de Aire Acondicionado y mantenimiento correctivo de ducto aire acondicionado central del inmueble “El Limonar” de la Sucursal Valle Tipo A Coordinadora de POSITIVA COMPAÑÍA DE SEGUROS | G64: 2021-07-07 | H64: 7 | I64: 2021-12-15 | J64: 5 | K64: Invitación directa | L64: GastosAdministrativos | M64: 10539330 | N64: 10539330 | O64: NO | R64: NO | S64: NO | T64: NO | U64: SI | V64: Pública clasificada | W64: C56112021-Tipo de información Pública clasificada-Prestación de servicios para el mantenimiento preventivo de Sistemas de Aire Acondicionado y mantenimiento correctivo de ducto aire acondicionado central del inmueble “El Limonar” de la Sucursal Valle Tipo A Coordinadora de POSITIVA COMPAÑÍA DE SEGUROS
A65: Financiera y Administrativa | B65: Gcia. Logística | D65: C56122021 | E65: 46191601 | F65: Suministro: Compra de 64 Extintores contra incendio tipo NBC-BIOXIDO DE CARBONO GAS CO2, (Dotado de valbula de descargue, Cilindro en ACERO AL CARBONO pintado en color rojo, manguera, cornetadielectrica), Modelo 10 Libras de capacidad , debidamente cargado, con su respectiva señalizacion. | G65: 2021-12-16 | H65: 12 | I65: 2021-12-31 | J65: 0.5 | K65: Invitación directa | L65: GastosAdministrativos | M65: 16640000 | N65: 16640000 | O65: NO | R65: NO | S65: NO | T65: NO | U65: SI | V65: Pública clasificada | W65: C56122021-Tipo de información Pública clasificada-Suministro: Compra de 64 Extintores contra incendio tipo NBC-BIOXIDO DE CARBONO GAS CO2, (Dotado de valbula de descargue, Cilindro en ACERO AL CARBONO pintado en color rojo, manguera, cornetadielectrica), Modelo 10 Libras de capacidad , debidamente cargado, con su respectiva señalizacion.
A66: Financiera y Administrativa | B66: Gcia. Logística | D66: C56132021 | E66: 71123005 | F66: Suministrar la logística para atender reuniones de nivel directivo en Positiva Compañía de Seguros a través del servicio de catering para los eventos que programe la Compañía. | G66: 2021-04-20 | H66: 4 | I66: 2021-12-31 | J66: 8.5 | K66: Invitación directa | L66: GastosAdministrativos | M66: 20000000 | N66: 20000000 | O66: NO | R66: NO | S66: NO | T66: NO | U66: SI | V66: Pública clasificada | W66: C56132021-Tipo de información Pública clasificada-Suministrar la logística para atender reuniones de nivel directivo en Positiva Compañía de Seguros a través del servicio de catering para los eventos que programe la Compañía.
A67: Financiera y Administrativa | B67: Gcia. Logística | D67: C56142021 | E67: 72101507 | F67: Obra: Adecuación locativa para entrega del local del bien inmueble ubicado en la Calle 49 Número 19- 81 Piso 1 Barrio Colombia en Barrancabermeja y Suministro e instalación de Gato hidráulico marca Speedy ref. m25, para puerta principal de la ciudad de Bucaramanga-Santander | G67: 2021-06-01 | H67: 6 | I67: 2021-06-30 | J67: 0.9666666667 | K67: Invitación directa | L67: GastosAdministrativos | M67: 5778948 | N67: 5778948 | O67: NO | R67: NO | S67: NO | T67: NO | U67: SI | V67: Pública clasificada | W67: C56142021-Tipo de información Pública clasificada-Obra: Adecuación locativa para entrega del local del bien inmueble ubicado en la Calle 49 Número 19- 81 Piso 1 Barrio Colombia en Barrancabermeja y Suministro e instalación de Gato hidráulico marca Speedy ref. m25, para puerta principal de la ciudad de Bucaramanga-Santander
A68: Financiera y Administrativa | B68: Gcia. Logística | D68: C56162021 | E68: 72101507 | F68: Prestación de servicios de mantenimiento locativo de la sede Pereira de Positiva Compañía de Seguros S.A. | G68: 2021-08-09 | H68: 8 | I68: 2021-10-25 | J68: 2.566666667 | K68: Invitación directa | L68: GastosAdministrativos | M68: 31260244 | N68: 31260244 | O68: NO | R68: NO | S68: NO | T68: NO | U68: SI | V68: Pública clasificada | W68: C56162021-Tipo de información Pública clasificada-Prestación de servicios de mantenimiento locativo de la sede Pereira de Positiva Compañía de Seguros S.A.
A69: Financiera y Administrativa | B69: Gcia. Logística | D69: C55522022 | E69: 78102203 | F69: Prestar el servicio de transporte, distribución, control y entrega a nivel nacional de la mensajería, documentos, paquetes, mercancías y demás objetos postales, así como el servicio de mensajero motorizado para las entregas urbanas generadas en el ejercicio de la actividad administrativa y misional de positiva Compañía de Seguros S.A.) | G69: 2021-12-16 | H69: 12 | I69: 2022-12-31 | J69: 12.66666667 | K69: Invitación directa | L69: GastosAdministrativos | M69: 450000000 | N69: 0 | O69: SI | P69: EN TRAMITE | R69: NO | S69: NO | T69: NO | U69: SI | V69: Pública clasificada | W69: -Tipo de información Pública clasificada-Prestar el servicio de transporte, distribución, control y entrega a nivel nacional de la mensajería, documentos, paquetes, mercancías y demás objetos postales, así como el servicio de mensajero motorizado para las entregas urbanas generadas en el ejercicio de la actividad administrativa y misional de positiva Compañía de Seguros S.A.)
A70: Financiera y Administrativa | B70: Gcia. Logística | E70: 80131502 | F70: Arrendamiento inmueble Sucursal Meta | G70: 2021-09-01 | H70: 9 | I70: 2023-09-30 | J70: 25.3 | K70: Invitación directa | L70: GastosAdministrativos | M70: 217305900 | N70: 26775000 | O70: SI | P70: EN TRAMITE | R70: NO | S70: NO | T70: NO | U70: SI | V70: Pública clasificada | W70: -Tipo de información Pública clasificada-Arrendamiento inmueble Sucursal Meta
A71: Financiera y Administrativa | B71: Gcia. Logística | E71: 80131502 | F71: Arrendamiento inmueble Sucursal Caqueta | G71: 2021-09-30 | H71: 9 | I71: 2022-12-31 | J71: 15.23333333 | K71: Invitación directa | L71: GastosAdministrativos | M71: 39000000 | N71: 3000000 | O71: SI | P71: EN TRAMITE | R71: NO | S71: NO | T71: NO | U71: SI | V71: Pública clasificada | W71: -Tipo de información Pública clasificada-Arrendamiento inmueble Sucursal Caqueta
A72: Financiera y Administrativa | B72: Gcia. Logística | E72: 80131502 | F72: Arrendamiento inmueble Punto de Atencion Antioquia | G72: 2021-11-01 | H72: 11 | I72: 2022-12-31 | J72: 14.16666667 | K72: Invitación directa | L72: GastosAdministrativos | M72: 180000000 | N72: 0 | O72: SI | P72: EN TRAMITE | R72: NO | S72: NO | T72: NO | U72: SI | V72: Pública clasificada | W72: -Tipo de información Pública clasificada-Arrendamiento inmueble Punto de Atencion Antioquia
A73: Financiera y Administrativa | B73: Gcia. Logística | E73: 92101500 | F73: Prestacion de servicios de vigilancia y seguridad privada con monitoreo de alarmas para las coodirnadores sucursales y puntos de atencion de Positiva Compañía de seguros s.a. | G73: 2021-09-15 | H73: 9 | I73: 2022-12-31 | J73: 15.73333333 | K73: Invitación pública | L73: GastosAdministrativos | M73: 1216838593 | N73: 0 | O73: SI | P73: EN TRAMITE | R73: NO | S73: NO | T73: NO | U73: SI | V73: Pública clasificada | W73: -Tipo de información Pública clasificada-Prestacion de servicios de vigilancia y seguridad privada con monitoreo de alarmas para las coodirnadores sucursales y puntos de atencion de Positiva Compañía de seguros s.a.
A74: Financiera y Administrativa | B74: Gcia. Logística | E74: 76110000, 90101700 | F74: Prestacion de servicios de Aseo y Cafeteria con el suministro de insumos y elementos para la atencion a colaboradores y clientes ubicados en Casa Matriz y coodinadoras sucursales y puntos de atencion de Positiva Compañía de Seguros | G74: 2021-09-15 | H74: 9 | I74: 2022-12-31 | J74: 16 | K74: Invitación pública | L74: GastosAdministrativos | M74: 1539036287 | N74: 0 | O74: SI | P74: EN TRAMITE | R74: NO | S74: NO | T74: NO | U74: SI | V74: Pública clasificada | W74: -Tipo de información Pública clasificada-Prestacion de servicios de Aseo y Cafeteria con el suministro de insumos y elementos para la atencion a colaboradores y clientes ubicados en Casa Matriz y coodinadoras sucursales y puntos de atencion de Positiva Compañía de Seguros
A75: Financiera y Administrativa | B75: Gcia. Logística | E75: 80111612 | F75: prestacion del Servicio profesionales de conductor para atender las necesidades requeridas en la Casa Matriz y Gerencias Coordinadoras de la compañía | G75: 2021-09-15 | H75: 9 | I75: 2022-12-31 | J75: 15.73333333 | K75: Invitación cerrada | L75: GastosAdministrativos | M75: 627873350.3 | N75: 0 | O75: SI | P75: EN TRAMITE | R75: NO | S75: NO | T75: NO | U75: SI | V75: Pública clasificada | W75: -Tipo de información Pública clasificada-prestacion del Servicio profesionales de conductor para atender las necesidades requeridas en la Casa Matriz y Gerencias Coordinadoras de la compañía
A76: Financiera y Administrativa | B76: Gcia. Logística | E76: 79181500 | F76: Mantenimiento corectivo y preventivo con suministro de respuestos, insumos y accesorios para los vehiculos de las coordinadoras Antioquia, Atlantico, Valle y Santander de Positiva Compañía de Seguros S.A. | G76: 2021-10-25 | H76: 10 | I76: 2022-12-31 | J76: 14.4 | K76: Invitación directa | L76: GastosAdministrativos | M76: 31796100 | N76: 0 | O76: SI | P76: EN TRAMITE | R76: NO | S76: NO | T76: NO | U76: SI | V76: Pública clasificada | W76: -Tipo de información Pública clasificada-Mantenimiento corectivo y preventivo con suministro de respuestos, insumos y accesorios para los vehiculos de las coordinadoras Antioquia, Atlantico, Valle y Santander de Positiva Compañía de Seguros S.A.
A77: Financiera y Administrativa | B77: Gcia. Logística | E77: 79181500 | F77: Mantenimiento corectivo y preventivo con suministro de respuestos, insumos y accesorios para los vehiculos de la coordinadora Bogota y Casa Matriz de Positiva Compañía de Seguros S.A. | G77: 2021-10-25 | H77: 10 | I77: 2022-12-31 | J77: 14.4 | K77: Invitación directa | L77: GastosAdministrativos | M77: 68891553 | N77: 0 | O77: SI | P77: EN TRAMITE | R77: NO | S77: NO | T77: NO | U77: SI | V77: Pública clasificada | W77: -Tipo de información Pública clasificada-Mantenimiento corectivo y preventivo con suministro de respuestos, insumos y accesorios para los vehiculos de la coordinadora Bogota y Casa Matriz de Positiva Compañía de Seguros S.A.
A78: Financiera y Administrativa | B78: Gcia. Logística | E78: 72151207 | F78: Mantenimiento de aires acondicionados zona norte | G78: 2021-09-01 | H78: 9 | I78: 2022-12-31 | J78: 16.2 | K78: Invitación directa | L78: GastosAdministrativos | M78: 42044750 | N78: 22044750 | O78: SI | P78: EN TRAMITE | R78: NO | S78: NO | T78: NO | U78: SI | V78: Pública clasificada | W78: -Tipo de información Pública clasificada-Mantenimiento de aires acondicionados zona norte
A79: Financiera y Administrativa | B79: Gcia. Logística | E79: 47000000 | F79: Prestacion del servicio para el mantenimiento del equipo hidroneumatico y mantenimiento de piscinas Cali | G79: 2021-08-15 | H79: 8 | I79: 2022-12-15 | J79: 16.23333333 | K79: Invitación directa | L79: GastosAdministrativos | M79: 31000000 | N79: 16000000 | O79: SI | P79: EN TRAMITE | R79: NO | S79: NO | T79: NO | U79: SI | V79: Pública clasificada | W79: -Tipo de información Pública clasificada-Prestacion del servicio para el mantenimiento del equipo hidroneumatico y mantenimiento de piscinas Cali
A80: Financiera y Administrativa | B80: Gcia. Logística | E80: 46190000 | F80: Prestacion del servicio para el mantenimiento de la red contra incendios | G80: 2021-08-30 | H80: 8 | I80: 2021-11-30 | J80: 3.066666667 | K80: Invitación directa | L80: GastosAdministrativos | M80: 6500000 | N80: 6500000 | O80: NO | R80: NO | S80: NO | T80: NO | U80: SI | V80: Pública clasificada | W80: -Tipo de información Pública clasificada-Prestacion del servicio para el mantenimiento de la red contra incendios
A81: Financiera y Administrativa | B81: Gcia. Logística | E81: 70111706 | F81: Prestacion del servicio mantenimiento zonas verdes Cali(corte swinglia, pasto ) | G81: 2021-08-15 | H81: 8 | I81: 2022-12-15 | J81: 16.23333333 | K81: Invitación directa | L81: GastosAdministrativos | M81: 54468094 | N81: 24468094 | O81: SI | P81: EN TRAMITE | R81: NO | S81: NO | T81: NO | U81: SI | V81: Pública clasificada | W81: -Tipo de información Pública clasificada-Prestacion del servicio mantenimiento zonas verdes Cali(corte swinglia, pasto )
A82: Financiera y Administrativa | B82: Gcia. Logística | E82: 80131802 | F82: Prestación de servicios de avalúos inmuebles | G82: 2021-10-01 | H82: 10 | I82: 2021-12-15 | J82: 2.5 | K82: Invitación directa | L82: GastosAdministrativos | M82: 65000000 | N82: 65000000 | O82: NO | R82: NO | S82: NO | T82: NO | U82: SI | V82: Pública clasificada | W82: -Tipo de información Pública clasificada-Prestación de servicios de avalúos inmuebles
A83: Financiera y Administrativa | B83: Gcia. Logística | E83: 72151207 | F83: Mantenimiento de aires acondicionados zona Surocidente y ducto de Aire Central el Limonar Cali. | G83: 2021-10-01 | H83: 10 | I83: 2022-12-31 | J83: 15.2 | K83: Invitación directa | L83: GastosAdministrativos | M83: 20000000 | N83: 0 | O83: SI | P83: EN TRAMITE | R83: NO | S83: NO | T83: NO | U83: SI | V83: Pública clasificada | W83: -Tipo de información Pública clasificada-Mantenimiento de aires acondicionados zona Surocidente y ducto de Aire Central el Limonar Cali.
A84: Financiera y Administrativa | B84: Gcia. Logística | E84: 72101507 | F84: Se requiere el Mantenimiento Planta de Emergencia y Sub Estacion Electrica para el inmueble El Limonar de Cali. | G84: 2021-10-15 | H84: 10 | I84: 2022-12-31 | J84: 14.73333333 | K84: Invitación directa | L84: GastosAdministrativos | M84: 15000000 | N84: 0 | O84: SI | P84: EN TRAMITE | R84: NO | S84: NO | T84: NO | U84: SI | V84: Pública clasificada | W84: -Tipo de información Pública clasificada-Se requiere el Mantenimiento Planta de Emergencia y Sub Estacion Electrica para el inmueble El Limonar de Cali.
A85: Financiera y Administrativa | B85: Gcia. Logística | E85: 14111828,44122003,44111515 | F85: Prestacion de servicios de suministro de papeleria utiles de oficina y elementos de archivo a nivel nacional | G85: 2021-09-01 | H85: 9 | I85: 2022-12-15 | J85: 15.66666667 | K85: Invitación directa | L85: GastosAdministrativos | M85: 100000000 | N85: 0 | O85: SI | P85: EN TRAMITE | R85: NO | S85: NO | T85: NO | U85: SI | V85: Pública clasificada | W85: -Tipo de información Pública clasificada-Prestacion de servicios de suministro de papeleria utiles de oficina y elementos de archivo a nivel nacional
A86: Financiera y Administrativa | B86: Gcia. Logística | E86: 80111608 | F86: Prestación de servicios de mantenimiento, actualizacion y nuevos requerimientos para los aplicativos Sunboxes (cajas menores) y Sico (Viáticos). | G86: 2021-09-01 | H86: 9 | I86: 2022-12-31 | J86: 16.2 | K86: Invitación directa | L86: GastosAdministrativos | M86: 75000000 | N86: 0 | O86: SI | P86: EN TRAMITE | R86: NO | S86: NO | T86: NO | U86: SI | V86: Pública clasificada | W86: -Tipo de información Pública clasificada-Prestación de servicios de mantenimiento, actualizacion y nuevos requerimientos para los aplicativos Sunboxes (cajas menores) y Sico (Viáticos).
A87: Financiera y Administrativa | B87: Gcia. Logística | E87: 72151207 | F87: Mantenimiento de aires acondicionados zona oriente | G87: 2021-12-01 | H87: 12 | I87: 2022-12-31 | J87: 13.16666667 | K87: Invitación directa | L87: GastosAdministrativos | M87: 20000000 | O87: NO | R87: NO | S87: NO | T87: NO | U87: SI | V87: Pública clasificada | W87: -Tipo de información Pública clasificada-Mantenimiento de aires acondicionados zona oriente
A88: Financiera y Administrativa | B88: Gcia. Logística | E88: 72151207 | F88: Mantenimiento de aires acondicionados zona centro | G88: 2021-12-01 | H88: 12 | I88: 2022-12-31 | J88: 13.16666667 | K88: Invitación directa | L88: GastosAdministrativos | M88: 20000000 | O88: NO | R88: NO | S88: NO | T88: NO | U88: SI | V88: Pública clasificada | W88: -Tipo de información Pública clasificada-Mantenimiento de aires acondicionados zona centro
A89: Financiera y Administrativa | B89: Gcia. Logística | E89: 72151207 | F89: Mantenimiento de aires acondicionados zona occidente | G89: 2021-12-01 | H89: 12 | I89: 2022-12-31 | J89: 13.16666667 | K89: Invitación directa | L89: GastosAdministrativos | M89: 20000000 | O89: NO | R89: NO | S89: NO | T89: NO | U89: SI | V89: Pública clasificada | W89: -Tipo de información Pública clasificada-Mantenimiento de aires acondicionados zona occidente
A90: Financiera y Administrativa | B90: Gcia. Logística | E90: 72101507 | F90: Prestación de servicios de mantenimiento locativo oficina Gerencia de Logistica Casa Matriz | G90: 2021-09-06 | H90: 9 | I90: 2021-09-27 | J90: 0.7 | K90: Invitación directa | L90: GastosAdministrativos | M90: 3439236 | O90: NO | R90: NO | S90: NO | T90: NO | U90: SI | V90: Pública clasificada | W90: -Tipo de información Pública clasificada-Prestación de servicios de mantenimiento locativo oficina Gerencia de Logistica Casa Matriz
A91: Financiera y Administrativa | B91: Gcia. Logística | E91: 90000000 | F91: Suministro de tiquetes aéreos para los servidores en el desarrollo de las actividades de Positiva Compañía de Seguros SA | G91: 2021-10-01 | H91: 10 | I91: 2022-12-31 | J91: 15.2 | K91: Invitación cerrada | L91: GastosAdministrativos | M91: 360000000 | O91: SI | P91: EN TRAMITE | R91: NO | S91: NO | T91: NO | U91: SI | V91: Pública clasificada | W91: -Tipo de información Pública clasificada-Suministro de tiquetes aéreos para los servidores en el desarrollo de las actividades de Positiva Compañía de Seguros SA
A92: Financiera y Administrativa | B92: Gcia. Logística | E92: 72101507 | F92: Suministro de señalización de lenguaje de señas para sedes de Positiva | G92: 2021-11-01 | H92: 1 | I92: 2021-11-30 | J92: 1 | K92: Invitación directa | L92: GastosAdministrativos | M92: $ 5.901.210,00 | N92: 5901210 | O92: NO | R92: NO | S92: NO | T92: NO | U92: SI | V92: Pública clasificada | W92: -Tipo de información Pública clasificada-Suministro de señalización de lenguaje de señas para sedes de Positiva
A93: Negocios | B93: Gcia. Canales | C93: SI | D93: C35302021 | E93: 80141600 | F93: Prestación de servicios outsorcing de personal | G93: 1/03/2021 | H93: =MONTH(G93) -> 3 | I93: 31/12/2021 | J93: =_xlfn.DAYS(I93,G93)/30 -> 10.16666667 | K93: Invitación cerrada | L93: GastosAdministrativos | M93: 5226142781 | N93: 5226142781 | O93: NO | P93: NA | Q93: Gerencia de Abastecimiento Estratégico contratacion@positiva.gov.co PBX: (1)6502200 Ext: 10641 | R93: SI | S93: SI | T93: NA | U93: SI | V93: =IF(U93="SI","Pública clasificada","Pública") -> Pública clasificada | W93: =CONCATENATE(D93,"-","Tipo de información"," ",V93,"-",F93) -> C35302021-Tipo de información Pública clasificada-Prestación de servicios outsorcing de personal
A94: Negocios | B94: Gcia. Canales | C94: NO | D94: C35432021 | E94: 80141607 | F94: Prestación de servicios plan de formación | G94: 1/03/2021 | H94: 3 | I94: 31/05/2021 | J94: 3.033333333 | K94: Invitación directa | L94: GastosAdministrativos | M94: 793253451 | N94: 793253451 | O94: NO | P94: NA | Q94: Gerencia de Abastecimiento Estratégico contratacion@positiva.gov.co PBX: (1)6502200 Ext: 10641 | R94: NO | S94: SI | T94: NA | U94: NO | V94: Pública | W94: C35432021-Tipo de información Pública-Prestación de servicios plan de formación
A95: Negocios | B95: Gcia. Canales | C95: SI | D95: C35322021 | E95: 43232303 | F95: Servicios de habilitación de suscripción salesforce.com, así como los servicios de soporte tecnológico y capacitación funcional. | G95: 1/01/2021 | H95: 1 | I95: 31/12/2021 | J95: 12.13333333 | K95: Invitación directa | L95: GastosAdministrativos | M95: 610238339 | N95: 610238339 | O95: NO | P95: NA | Q95: Gerencia de Abastecimiento Estratégico contratacion@positiva.gov.co PBX: (1)6502200 Ext: 10641 | R95: SI | S95: SI | T95: SI | U95: SI | V95: Pública clasificada | W95: C35322021-Tipo de información Pública clasificada-Servicios de habilitación de suscripción salesforce.com, así como los servicios de soporte tecnológico y capacitación funcional.
A96: Negocios | B96: Gcia. Canales | C96: NO | D96: C35402021 | E96: 82101800, 82101701, 82101801, 82101802, 82101900, | F96: Prestación de servicios para la planeación e implementación de estrategias de mercadeo y comunicaciones, las cuales se ejecutarán por medio de las diversas actividades y disciplinas de marketing, endomarketing y comunicaciones, orientadas a fortalecer la posición de positiva compañía de seguros en el mercado y al interior de la compañía | G96: 1/05/2021 | H96: 5 | I96: 31/12/2021 | J96: 8.133333333 | K96: Invitación directa | L96: GastosAdministrativos | M96: 120000000 | N96: 120000000 | O96: NO | P96: NA | Q96: Gerencia de Abastecimiento Estratégico contratacion@positiva.gov.co PBX: (1)6502200 Ext: 10641 | R96: SI | S96: SI | T96: NA | U96: SI | V96: Pública clasificada | W96: C35402021-Tipo de información Pública clasificada-Prestación de servicios para la planeación e implementación de estrategias de mercadeo y comunicaciones, las cuales se ejecutarán por medio de las diversas actividades y disciplinas de marketing, endomarketing y comunicaciones, orientadas a fortalecer la posición de positiva compañía de seguros en el mercado y al interior de la compañía
A97: Negocios | B97: Gcia. Canales | C97: SI | D97: C35252021 | E97: 86101804 | F97: Prestación de servicios, capacitaciones virtuales para la estructura comercial e intermediarios | G97: 1/01/2021 | H97: 1 | I97: 31/12/2021 | J97: 12.13333333 | K97: Invitación directa | L97: GastosAdministrativos | M97: 100000000 | N97: 100000000 | O97: NO | P97: NA | Q97: Gerencia de Abastecimiento Estratégico contratacion@positiva.gov.co PBX: (1)6502200 Ext: 10641 | R97: SI | S97: NO | T97: SI | U97: SI | V97: Pública clasificada | W97: C35252021-Tipo de información Pública clasificada-Prestación de servicios, capacitaciones virtuales para la estructura comercial e intermediarios
A98: Negocios | B98: Gcia. Canales | C98: NO | D98: C35232021 | E98: 86132001 | F98: Capacitación y entrenamiento fuerza comercial | G98: 1/03/2021 | H98: 3 | I98: 31/12/2021 | J98: 9 | K98: Invitación directa | L98: GastosAdministrativos | M98: 90000000 | N98: 90000000 | O98: NO | P98: NA | Q98: Gerencia de Abastecimiento Estratégico contratacion@positiva.gov.co PBX: (1)6502200 Ext: 10641 | R98: SI | S98: SI | T98: NA | U98: SI | V98: Pública clasificada | W98: C35232021-Tipo de información Pública clasificada-Capacitación y entrenamiento fuerza comercial
A99: Negocios | B99: Gcia. Seguros de Vida | C99: SI | D99: C35112021 | E99: 82101500 | F99: Renovación póliza magisterio contratada por intermedio de lym | G99: 2021-05-01 | H99: 5 | I99: 31/12/2021 | J99: =_xlfn.DAYS(I99,G99)/30 -> 8.133333333 | K99: Invitación directa | L99: GastosAdministrativos | M99: 15315000 | N99: 15315000 | O99: NO | P99: NA | Q99: Gerencia de Abastecimiento Estratégico contratacion@positiva.gov.co PBX: (1)6502200 Ext: 10641 | R99: SI | S99: SI | T99: NA | U99: SI | V99: Pública clasificada | W99: C35112021-Tipo de información Pública clasificada-Renovación póliza magisterio contratada por intermedio de lym
A100: Negocios | B100: Gcia. Canales | C100: SI | D100: C35332021 | E100: 80141500 | F100: Adquisición de estudio de la calidad del servicio de las arl | G100: 1/02/2021 | H100: 2 | I100: 31/05/2021 | J100: 3.966666667 | K100: Invitación directa | L100: GastosAdministrativos | M100: 13911636 | N100: 13911636 | O100: NO | P100: NA | Q100: Gerencia de Abastecimiento Estratégico contratacion@positiva.gov.co PBX: (1)6502200 Ext: 10641 | R100: SI | S100: SI | T100: NA | U100: SI | V100: Pública clasificada | W100: C35332021-Tipo de información Pública clasificada-Adquisición de estudio de la calidad del servicio de las arl
A101: Negocios | B101: Gcia. Canales | C101: NO | D101: C35392021 | E101: 80141500 | F101: Contratar los servicios de una agencia de investigación de mercado, para realizar investigaciones que permitan recolectar información de interés para la compañía | G101: 1/04/2021 | H101: 4 | I101: 31/07/2021 | J101: 4.033333333 | K101: Invitación directa | L101: GastosAdministrativos | M101: 13783500 | N101: 13783500 | O101: NO | P101: NA | Q101: Gerencia de Abastecimiento Estratégico contratacion@positiva.gov.co PBX: (1)6502200 Ext: 10641 | R101: SI | S101: SI | T101: NA | U101: NO | V101: Pública | W101: C35392021-Tipo de información Pública-Contratar los servicios de una agencia de investigación de mercado, para realizar investigaciones que permitan recolectar información de interés para la compañía
A102: Negocios | B102: Gcia. Canales | C102: NO | D102: C35352021 | E102: 80141500 | F102: Adquisición de estudio de la calidad del servicio de las arl | G102: 1/02/2021 | H102: 2 | I102: 31/05/2021 | J102: 3.966666667 | K102: Invitación directa | L102: GastosAdministrativos | M102: 2250186 | N102: 2250186 | O102: NO | P102: NA | Q102: Gerencia de Abastecimiento Estratégico contratacion@positiva.gov.co PBX: (1)6502200 Ext: 10641 | R102: SI | S102: SI | T102: NA | U102: SI | V102: Pública clasificada | W102: C35352021-Tipo de información Pública clasificada-Adquisición de estudio de la calidad del servicio de las arl
A103: Negocios | B103: Gcia. Experiencia del Cliente | C103: NO | D103: C35182021 | E103: 81131504 | F103: Prestación de servicios / medición de satisfacción y experiencia con los productos y servicios que ofrece positiva compañía de seguros s.a. dirigida a clientes, empresas ramo rl, tomadores de póliza seguros de vida, intermediarios y proveedores. | G103: 1/02/2021 | H103: 2 | I103: 31/12/2021 | J103: 11.1 | K103: Invitación cerrada | L103: GastosAdministrativos | M103: 313191750 | N103: 313191750 | O103: NO | P103: NA | Q103: Gerencia de Abastecimiento Estratégico contratacion@positiva.gov.co PBX: (1)6502200 Ext: 10641 | R103: SI | S103: SI | T103: NA | U103: SI | V103: Pública clasificada | W103: C35182021-Tipo de información Pública clasificada-Prestación de servicios / medición de satisfacción y experiencia con los productos y servicios que ofrece positiva compañía de seguros s.a. dirigida a clientes, empresas ramo rl, tomadores de póliza seguros de vida, intermediarios y proveedores.
A104: Negocios | B104: Gcia. Experiencia del Cliente | C104: SI | D104: C35212021 | E104: 80141600 | F104: Prestación de servicios outsorcing de personal | G104: 1/03/2021 | H104: 3 | I104: 31/12/2021 | J104: 10.16666667 | K104: Invitación cerrada | L104: GastosAdministrativos | M104: 297707485 | N104: 297707485 | O104: NO | P104: NA | Q104: Gerencia de Abastecimiento Estratégico contratacion@positiva.gov.co PBX: (1)6502200 Ext: 10641 | R104: SI | S104: SI | T104: NA | U104: SI | V104: Pública clasificada | W104: C35212021-Tipo de información Pública clasificada-Prestación de servicios outsorcing de personal
A105: Negocios | B105: Gcia. Experiencia del Cliente | C105: NO | D105: C35202021 | E105: 14111608 | F105: Prestación de servicios / contar con un programa de fidelización y experiencia para los clientes. | G105: 1/06/2021 | H105: 6 | I105: 31/12/2021 | J105: 7.1 | K105: Invitación directa | L105: GastosAdministrativos | M105: 102100000 | N105: 102100000 | O105: NO | P105: NA | Q105: Gerencia de Abastecimiento Estratégico contratacion@positiva.gov.co PBX: (1)6502200 Ext: 10641 | R105: SI | S105: SI | T105: NA | U105: SI | V105: Pública clasificada | W105: C35202021-Tipo de información Pública clasificada-Prestación de servicios / contar con un programa de fidelización y experiencia para los clientes.
A106: Negocios | B106: Gcia. Experiencia del Cliente | C106: SI | D106: C35172021 | E106: 86101804 | F106: Prestación de servicios / desarrollar el programa de educación financiera a través de capacitaciones presenciales en el territorio nacional, dirigido a los trabajadores de las empresas afiliadas a riesgos laborales, tomadores de pólizas de vida y de otros ramos y/o clientes potenciales. | G106: 1/03/2021 | H106: 3 | I106: 31/12/2021 | J106: 10.16666667 | K106: Invitación directa | L106: GastosAdministrativos | M106: 91890000 | N106: 91890000 | O106: NO | P106: NA | Q106: Gerencia de Abastecimiento Estratégico contratacion@positiva.gov.co PBX: (1)6502200 Ext: 10641 | R106: NO | S106: SI | T106: NA | U106: NO | V106: Pública | W106: C35172021-Tipo de información Pública-Prestación de servicios / desarrollar el programa de educación financiera a través de capacitaciones presenciales en el territorio nacional, dirigido a los trabajadores de las empresas afiliadas a riesgos laborales, tomadores de pólizas de vida y de otros ramos y/o clientes potenciales.
A107: Negocios | B107: Gcia. Experiencia del Cliente | C107: SI | D107: C35342021 | E107: 80111616 | F107: Prestación de servicios / contar con el defensor del consumidor financiero | G107: 1/05/2021 | H107: 5 | I107: 31/12/2021 | J107: 8.133333333 | K107: Invitación directa | L107: GastosAdministrativos | M107: 71470000 | N107: 71470000 | O107: NO | P107: NA | Q107: Gerencia de Abastecimiento Estratégico contratacion@positiva.gov.co PBX: (1)6502200 Ext: 10641 | R107: NO | S107: SI | T107: NA | U107: NO | V107: Pública | W107: C35342021-Tipo de información Pública-Prestación de servicios / contar con el defensor del consumidor financiero
A108: Negocios | B108: Gcia. Experiencia del Cliente | C108: NO | D108: C35442021 | E108: 14111608 | F108: Prestación de servicios / contar con un programa de fidelización y experiencia en los diferentes momentos de verdad | G108: 2021-10-01 | H108: 10 | I108: 31/12/2021 | J108: 3.033333333 | K108: Invitación directa | L108: GastosAdministrativos | M108: 52000000 | N108: 30000000 | O108: NO | P108: NA | Q108: Gerencia de Abastecimiento Estratégico contratacion@positiva.gov.co PBX: (1)6502200 Ext: 10641 | R108: SI | S108: SI | T108: NA | U108: SI | V108: Pública clasificada | W108: C35442021-Tipo de información Pública clasificada-Prestación de servicios / contar con un programa de fidelización y experiencia en los diferentes momentos de verdad
A109: Negocios | B109: Gcia. Experiencia del Cliente | C109: NO | D109: C35452021 | E109: 81131504 | F109: Prestación de servicios / realizar medición de satisfacción y experiencia en tiempo real | G109: 1/04/2021 | H109: 4 | I109: 31/12/2021 | J109: 9.133333333 | K109: Invitación directa | L109: GastosAdministrativos | M109: 39053250 | N109: 39053250 | O109: NO | P109: NA | Q109: Gerencia de Abastecimiento Estratégico contratacion@positiva.gov.co PBX: (1)6502200 Ext: 10641 | R109: SI | S109: SI | T109: SI | U109: SI | V109: Pública clasificada | W109: C35452021-Tipo de información Pública clasificada-Prestación de servicios / realizar medición de satisfacción y experiencia en tiempo real
A110: Negocios | B110: Gcia. Experiencia del Cliente | C110: SI | D110: C35222021 | E110: 80111616 | F110: Prestación de servicios / contar con el defensor del consumidor financiero | G110: 2021-01-30 | H110: 1 | I110: 2021-04-30 | J110: 3 | K110: Invitación directa | L110: GastosAdministrativos | M110: 30630000 | N110: 30630000 | O110: NO | P110: NA | Q110: Gerencia de Abastecimiento Estratégico contratacion@positiva.gov.co PBX: (1)6502200 Ext: 10641 | R110: NO | S110: SI | T110: NA | U110: NO | V110: Pública | W110: C35222021-Tipo de información Pública-Prestación de servicios / contar con el defensor del consumidor financiero
A111: Negocios | B111: Gcia. Seguros de Vida | C111: NO | D111: C35142021 | E111: 80141600, 80141606, 80141613 | F111: Prestación de servicios de promoción y prevención para implementar, mejorar y/o mantener actividades de asesoría, asistencia técnica y de formación en seguridad y salud en el trabajo, del plan básico en los programas (estructura empresarial, preparación y atención de emergencias, promoción y prevención en salud, protección colectiva e individual), plan avanzado en los programas (gestión de incidentes y accidentes de trabajo, gestión de enfermedad laboral), plan especializado (programa de vigilancia epidemiológica), plan gestión integral (sistemas integrados de gestión) de la estrategia crea del modelo de gestión positiva suma, de acuerdo a los planes de trabajo pactados con las empresas y cargados en el aplicativo gestpos, para empresas afiliadas a positiva compañía de seguros sucursales antioquia y chocó. / actividades de formación en prevención de accidentes, para estudiantes de las empresas clientes, de seguros de vida, especialmente municipio de medellín y la empresa itm de la sucursal antioquia de la zona antioquia | G111: 2021-09-01 | H111: 9 | I111: 31/12/2021 | J111: 4.033333333 | K111: Invitación directa | L111: GastosAdministrativos | M111: 4269700 | N111: 4269700 | O111: NO | P111: NA | Q111: Gerencia de Abastecimiento Estratégico contratacion@positiva.gov.co PBX: (1)6502200 Ext: 10641 | R111: SI | S111: SI | T111: NA | U111: SI | V111: Pública clasificada | W111: C35142021-Tipo de información Pública clasificada-Prestación de servicios de promoción y prevención para implementar, mejorar y/o mantener actividades de asesoría, asistencia técnica y de formación en seguridad y salud en el trabajo, del plan básico en los programas (estructura empresarial, preparación y atención de emergencias, promoción y prevención en salud, protección colectiva e individual), plan avanzado en los programas (gestión de incidentes y accidentes de trabajo, gestión de enfermedad laboral), plan especializado (programa de vigilancia epidemiológica), plan gestión integral (sistemas integrados de gestión) de la estrategia crea del modelo de gestión positiva suma, de acuerdo a los planes de trabajo pactados con las empresas y cargados en el aplicativo gestpos, para empresas afiliadas a positiva compañía de seguros sucursales antioquia y chocó. / actividades de formación en prevención de accidentes, para estudiantes de las empresas clientes, de seguros de vida, especialmente municipio de medellín y la empresa itm de la sucursal antioquia de la zona antioquia
A112: Negocios | B112: Gcia. Seguros de Vida | C112: NO | D112: C35362021 | E112: 14111514- 55101509 | F112: Suministro de material impreso para la divulgación de mensajes de promoción y prevención de accidentes en la póliza de accidentes personales de la universidad nacional | G112: 1/01/2021 | H112: 1 | I112: 31/12/2021 | J112: 12.13333333 | K112: Invitación directa | L112: GastosAdministrativos | M112: 189053102 | N112: 189053102 | O112: NO | P112: NA | Q112: Gerencia de Abastecimiento Estratégico contratacion@positiva.gov.co PBX: (1)6502200 Ext: 10641 | R112: SI | S112: SI | T112: NA | U112: SI | V112: Pública clasificada | W112: =CONCATENATE(D112,"-","Tipo de información"," ",V112,"-",F112) -> C35362021-Tipo de información Pública clasificada-Suministro de material impreso para la divulgación de mensajes de promoción y prevención de accidentes en la póliza de accidentes personales de la universidad nacional
A113: Negocios | B113: Gcia. Seguros de Vida | C113: SI | D113: C35372021 | E113: 83121700-83121703-82101903 | F113: Manejo de redes sociales de la universidad nacional que incluyen campañas para controlar la accidentalidad y prevención, vida saludable, valores y actividades | G113: 1/01/2021 | H113: 1 | I113: 31/12/2021 | J113: 12.13333333 | K113: Invitación directa | L113: GastosAdministrativos | M113: 60500000 | N113: 60500000 | O113: NO | P113: NA | Q113: Gerencia de Abastecimiento Estratégico contratacion@positiva.gov.co PBX: (1)6502200 Ext: 10641 | R113: SI | S113: SI | T113: NA | U113: SI | V113: Pública clasificada | W113: C35372021-Tipo de información Pública clasificada-Manejo de redes sociales de la universidad nacional que incluyen campañas para controlar la accidentalidad y prevención, vida saludable, valores y actividades
A114: Negocios | B114: Gcia. Canales | C114: SI | D114: C35242021 | E114: 80141625 | F114: Suministro de productos y/o servicios de acuerdo con los requerimientos, cantidades y precios demandados por la compañía, para satisfacer las necesidades referentes a la entrega de incentivos a la gestión comercial | G114: 2021-04-01 | H114: 4 | I114: 31/12/2021 | J114: 9.133333333 | K114: Invitación directa | L114: GastosAdministrativos | M114: 90000000 | N114: 90000000 | O114: NO | P114: NA | Q114: Gerencia de Abastecimiento Estratégico contratacion@positiva.gov.co PBX: (1)6502200 Ext: 10641 | R114: SI | S114: SI | T114: SI | U114: SI | V114: Pública clasificada | W114: C35242021-Tipo de información Pública clasificada-Suministro de productos y/o servicios de acuerdo con los requerimientos, cantidades y precios demandados por la compañía, para satisfacer las necesidades referentes a la entrega de incentivos a la gestión comercial
A115: Operaciones | B115: Gcia. Afiliaciones y Novedades | C115: NO | D115: C45072021 | E115: 80121610 | F115: Suministros de Carnés Ramo Vida y ARL | G115: 1/05/2021 | H115: 5 | I115: 30/12/2021 | J115: 8.1 | K115: Invitación directa | L115: GastosAdministrativos | M115: 205021936 | N115: 205021936 | O115: NO | P115: NA | Q115: Gerencia de Abastecimiento Estratégico contratacion@positiva.gov.co PBX: (1)6502200 Ext: 10641 | R115: SI | S115: SI | T115: NO | U115: SI | V115: Pública clasificada | W115: C45072021-Tipo de información Pública clasificada-Suministros de Carnés Ramo Vida y ARL
A116: Operaciones | B116: Gcia. Afiliaciones y Novedades | C116: NO | D116: C45082021 C45042022 C45012023 | E116: 80101510 | F116: Prestación de servicios de procesamiento de información y transferencia a las bases de datos de POSITIVA | G116: 2021-08-01 | H116: 8 | I116: 2023-07-31 | J116: 24.3 | K116: Invitación directa | L116: GastosAdministrativos | M116: 56938791319 | N116: 9139925719 | O116: NO | P116: NA | Q116: Gerencia de Abastecimiento Estratégico contratacion@positiva.gov.co PBX: (1)6502200 Ext: 10641 | R116: SI | S116: SI | T116: NO | U116: SI | V116: Pública clasificada | W116: C45082021 C45042022 C45012023-Tipo de información Pública clasificada-Prestación de servicios de procesamiento de información y transferencia a las bases de datos de POSITIVA
A117: Operaciones | B117: Gcia. Afiliaciones y Novedades | C117: NO | D117: C45252021 | E117: 80101510 | F117: Prestación de servicios de procesamiento de información y transferencia a las bases de datos de POSITIVA | G117: 1/06/2021 | H117: =MONTH(G117) -> 6 | I117: 2021-07-31 | J117: 2 | K117: Invitación directa | L117: GastosAdministrativos | M117: 4400000000 | N117: 4400000000 | O117: NO | P117: NA | Q117: Gerencia de Abastecimiento Estratégico contratacion@positiva.gov.co PBX: (1)6502200 Ext: 10641 | R117: SI | S117: SI | T117: NO | U117: SI | V117: Pública clasificada | W117: C45252021-Tipo de información Pública clasificada-Prestación de servicios de procesamiento de información y transferencia a las bases de datos de POSITIVA
A118: Operaciones | B118: Gcia. Recaudo y Cartera | C118: SI | D118: C45102021 | E118: 80121610 | F118: "Prestar sus servicios profesionales a la Gerencia de Recaudo y Cartera de POSITIVA en la revisión y conciliación de la información registrada en los diferentes aplicativos de los procesos de recaudo, cartera y liquidación de comisiones a fin de identificar inconsistencias y realizar los ajustes a que haya lugar; así como a apoyar en la legalización y reporte de los saldos pendientes por recuperar y/o los saldos pendientes por pagar en las cuentas corrientes de los intermediarios." | G118: 1/01/2021 | H118: 1 | I118: 2021-12-31 | J118: 12.13333333 | K118: Invitación directa | L118: GastosAdministrativos | M118: 146404972 | N118: 146404972 | O118: NO | P118: NA | Q118: Gerencia de Abastecimiento Estratégico contratacion@positiva.gov.co PBX: (1)6502200 Ext: 10641 | R118: SI | S118: SI | T118: NO | U118: SI | V118: Pública clasificada | W118: C45102021-Tipo de información Pública clasificada-"Prestar sus servicios profesionales a la Gerencia de Recaudo y Cartera de POSITIVA en la revisión y conciliación de la información registrada en los diferentes aplicativos de los procesos de recaudo, cartera y liquidación de comisiones a fin de identificar inconsistencias y realizar los ajustes a que haya lugar; así como a apoyar en la legalización y reporte de los saldos pendientes por recuperar y/o los saldos pendientes por pagar en las cuentas corrientes de los intermediarios."
A119: Operaciones | B119: Gcia. Recaudo y Cartera | C119: SI | D119: C45112021 | E119: 80121610 | F119: Prestar servicios a la Gerencia de Afiliaciones y Novedades y a la Gerencia de Recaudo y Cartera de la Vicepresidencia de Operaciones de POSITIVA S.A en los asuntos administrativos que les competan en materia de afiliaciones, novedades, recaudos, cartera y recobros, así como en los temas específicos de naturaleza análoga que requiera directamente la Vicepresidencia de Operaciones. | G119: 1/01/2021 | H119: 1 | I119: 2021-12-31 | J119: 12.13333333 | K119: Invitación directa | L119: GastosAdministrativos | M119: 146404972 | N119: 146404972 | O119: NO | P119: NA | Q119: Gerencia de Abastecimiento Estratégico contratacion@positiva.gov.co PBX: (1)6502200 Ext: 10641 | R119: SI | S119: SI | T119: NO | U119: SI | V119: Pública clasificada | W119: C45112021-Tipo de información Pública clasificada-Prestar servicios a la Gerencia de Afiliaciones y Novedades y a la Gerencia de Recaudo y Cartera de la Vicepresidencia de Operaciones de POSITIVA S.A en los asuntos administrativos que les competan en materia de afiliaciones, novedades, recaudos, cartera y recobros, así como en los temas específicos de naturaleza análoga que requiera directamente la Vicepresidencia de Operaciones.
A120: Operaciones | B120: Gcia. Recaudo y Cartera | C120: SI | D120: C45122021 | E120: 80121610 | F120: "Prestar sus servicios profesionales a la Gerencia de Recaudo y Cartera de POSITIVA en la revisión y conciliación de la información registrada en los diferentes aplicativos de los procesos de recaudo, cartera y liquidación de comisiones a fin de identificar inconsistencias y realizar los ajustes a que haya lugar; así como a apoyar en la legalización y reporte de los saldos pendientes por recuperar y/o los saldos pendientes por pagar en las cuentas corrientes de los intermediarios." | G120: 1/01/2021 | H120: 1 | I120: 2021-12-31 | J120: 12.13333333 | K120: Invitación directa | L120: GastosAdministrativos | M120: 123029388 | N120: 123029388 | O120: NO | P120: NA | Q120: Gerencia de Abastecimiento Estratégico contratacion@positiva.gov.co PBX: (1)6502200 Ext: 10641 | R120: SI | S120: SI | T120: NO | U120: SI | V120: Pública clasificada | W120: C45122021-Tipo de información Pública clasificada-"Prestar sus servicios profesionales a la Gerencia de Recaudo y Cartera de POSITIVA en la revisión y conciliación de la información registrada en los diferentes aplicativos de los procesos de recaudo, cartera y liquidación de comisiones a fin de identificar inconsistencias y realizar los ajustes a que haya lugar; así como a apoyar en la legalización y reporte de los saldos pendientes por recuperar y/o los saldos pendientes por pagar en las cuentas corrientes de los intermediarios."
A121: Operaciones | B121: Gcia. Recaudo y Cartera | C121: SI | D121: C45132021 | E121: 80121610 | F121: Prestar sus servicios a la Gerencia de Afiliaciones y Novedades en la revisión, validación, conciliación y gestión de los procesos de mantenimiento de pólizas de los ramos de vida individual y colectivo. | G121: 1/01/2021 | H121: 1 | I121: 2021-12-31 | J121: 12.13333333 | K121: Invitación directa | L121: GastosAdministrativos | M121: 50109345 | N121: 50109345 | O121: NO | P121: NA | Q121: Gerencia de Abastecimiento Estratégico contratacion@positiva.gov.co PBX: (1)6502200 Ext: 10641 | R121: SI | S121: SI | T121: NO | U121: SI | V121: Pública clasificada | W121: C45132021-Tipo de información Pública clasificada-Prestar sus servicios a la Gerencia de Afiliaciones y Novedades en la revisión, validación, conciliación y gestión de los procesos de mantenimiento de pólizas de los ramos de vida individual y colectivo.
A122: Operaciones | B122: Gcia. Recaudo y Cartera | C122: NO | D122: C45142021 | E122: 80121610 | F122: Prestar servicios a la Gerencia de Afiliaciones y Novedades y a la Gerencia de Recaudo y Cartera de la Vicepresidencia de Operaciones de POSITIVA S.A en los asuntos administrativos que les competan en materia de afiliaciones, novedades, recaudos, cartera y recobros, así como en los temas específicos de naturaleza análoga que requiera directamente la Vicepresidencia de Operaciones. | G122: 1/01/2021 | H122: 1 | I122: 2021-12-31 | J122: 12.13333333 | K122: Invitación directa | L122: GastosAdministrativos | M122: 123029388 | N122: 123029388 | O122: NO | P122: NA | Q122: Gerencia de Abastecimiento Estratégico contratacion@positiva.gov.co PBX: (1)6502200 Ext: 10641 | R122: SI | S122: SI | T122: SI | U122: SI | V122: Pública clasificada | W122: C45142021-Tipo de información Pública clasificada-Prestar servicios a la Gerencia de Afiliaciones y Novedades y a la Gerencia de Recaudo y Cartera de la Vicepresidencia de Operaciones de POSITIVA S.A en los asuntos administrativos que les competan en materia de afiliaciones, novedades, recaudos, cartera y recobros, así como en los temas específicos de naturaleza análoga que requiera directamente la Vicepresidencia de Operaciones.
A123: Operaciones | B123: Gcia. Recaudo y Cartera | C123: NO | D123: C45152021 | E123: 80121610 | F123: Prestar los servicios de Gestión administrativa, persuasiva y pre jurídica de cobro por aportes de riesgos laborales en mora o inexactos. | G123: 1/06/2021 | H123: 6 | I123: 2022-05-31 | J123: 12.13333333 | K123: Invitación directa | L123: GastosAdministrativos | M123: 346189042 | N123: 346189042 | O123: NO | P123: NA | Q123: Gerencia de Abastecimiento Estratégico contratacion@positiva.gov.co PBX: (1)6502200 Ext: 10641 | R123: SI | S123: SI | T123: NO | U123: SI | V123: Pública clasificada | W123: C45152021-Tipo de información Pública clasificada-Prestar los servicios de Gestión administrativa, persuasiva y pre jurídica de cobro por aportes de riesgos laborales en mora o inexactos.
A124: Operaciones | B124: Gcia. Recaudo y Cartera | C124: NO | D124: C45162021 | E124: 80121610 | F124: Prestar los servicios de (i) envío de notificaciones certificadas y no certificadas, (ii) gestión administrativa, persuasiva y pre jurídica de cobro por aportes de riesgos laborales en mora o inexactos y (iii) Gestión administrativa, persuasiva y pre jurídica de recobros por mora, inconsistencias administrativas y ETB. | G124: 1/06/2021 | H124: 6 | I124: 2022-05-31 | J124: 12.13333333 | K124: Invitación directa | L124: GastosAdministrativos | M124: 1400000000 | N124: 1400000000 | O124: NO | P124: NA | Q124: Gerencia de Abastecimiento Estratégico contratacion@positiva.gov.co PBX: (1)6502200 Ext: 10641 | R124: SI | S124: SI | T124: NO | U124: SI | V124: Pública clasificada | W124: C45162021-Tipo de información Pública clasificada-Prestar los servicios de (i) envío de notificaciones certificadas y no certificadas, (ii) gestión administrativa, persuasiva y pre jurídica de cobro por aportes de riesgos laborales en mora o inexactos y (iii) Gestión administrativa, persuasiva y pre jurídica de recobros por mora, inconsistencias administrativas y ETB.
A125: Operaciones | B125: Gcia. Recaudo y Cartera | C125: NO | D125: C45172021 | E125: 80121610 | F125: Prestar los servicios de Gestión administrativa, persuasiva y pre jurídica de cobro por aportes de riesgos laborales en mora o inexactos y gestión administrativa de cobro de cartera vida. | G125: 1/06/2021 | H125: 6 | I125: 2022-05-31 | J125: 12.13333333 | K125: Invitación directa | L125: GastosAdministrativos | M125: 321151456 | N125: 321151456 | O125: NO | P125: NA | Q125: Gerencia de Abastecimiento Estratégico contratacion@positiva.gov.co PBX: (1)6502200 Ext: 10641 | R125: SI | S125: SI | T125: NO | U125: SI | V125: Pública clasificada | W125: C45172021-Tipo de información Pública clasificada-Prestar los servicios de Gestión administrativa, persuasiva y pre jurídica de cobro por aportes de riesgos laborales en mora o inexactos y gestión administrativa de cobro de cartera vida.
A126: Operaciones | B126: Gcia. Recaudo y Cartera | C126: NO | D126: C45012022 | E126: 80121610 | F126: Prestar los servicios de Gestión administrativa, persuasiva y pre jurídica de cobro por aportes de riesgos laborales en mora o inexactos. | G126: 1/06/2021 | H126: 6 | I126: 2022-05-31 | J126: 12.13333333 | K126: Invitación directa | L126: GastosAdministrativos | M126: 300000000 | N126: 300000000 | O126: SI | P126: APROBADA | Q126: Gerencia de Abastecimiento Estratégico contratacion@positiva.gov.co PBX: (1)6502200 Ext: 10641 | R126: SI | S126: SI | T126: NO | U126: SI | V126: Pública clasificada | W126: C45012022-Tipo de información Pública clasificada-Prestar los servicios de Gestión administrativa, persuasiva y pre jurídica de cobro por aportes de riesgos laborales en mora o inexactos.
A127: Operaciones | B127: Gcia. Recaudo y Cartera | C127: NO | D127: C4502222 | E127: 80121610 | F127: Prestar los servicios de (i) envío de notificaciones certificadas y no certificadas, (ii) gestión administrativa, persuasiva y pre jurídica de cobro por aportes de riesgos laborales en mora o inexactos y (iii) Gestión administrativa, persuasiva y pre jurídica de recobros por mora, inconsistencias administrativas y ETB. | G127: 1/06/2021 | H127: 6 | I127: 2022-05-31 | J127: 12.13333333 | K127: Invitación directa | L127: GastosAdministrativos | M127: 1100000000 | N127: 1100000000 | O127: SI | P127: APROBADA | Q127: Gerencia de Abastecimiento Estratégico contratacion@positiva.gov.co PBX: (1)6502200 Ext: 10641 | R127: SI | S127: SI | T127: NO | U127: SI | V127: Pública clasificada | W127: C4502222-Tipo de información Pública clasificada-Prestar los servicios de (i) envío de notificaciones certificadas y no certificadas, (ii) gestión administrativa, persuasiva y pre jurídica de cobro por aportes de riesgos laborales en mora o inexactos y (iii) Gestión administrativa, persuasiva y pre jurídica de recobros por mora, inconsistencias administrativas y ETB.
A128: Operaciones | B128: Gcia. Recaudo y Cartera | C128: NO | D128: C45032022 | E128: 80121610 | F128: Prestar los servicios de Gestión administrativa, persuasiva y pre jurídica de cobro por aportes de riesgos laborales en mora o inexactos y gestión administrativa de cobro de cartera vida. | G128: 1/06/2021 | H128: 6 | I128: 2022-05-31 | J128: 12.13333333 | K128: Invitación directa | L128: GastosAdministrativos | M128: 155000000 | N128: 155000000 | O128: SI | P128: APROBADA | Q128: Gerencia de Abastecimiento Estratégico contratacion@positiva.gov.co PBX: (1)6502200 Ext: 10641 | R128: SI | S128: SI | T128: NO | U128: SI | V128: Pública clasificada | W128: C45032022-Tipo de información Pública clasificada-Prestar los servicios de Gestión administrativa, persuasiva y pre jurídica de cobro por aportes de riesgos laborales en mora o inexactos y gestión administrativa de cobro de cartera vida.
A129: Operaciones | B129: Gcia. Recaudo y Cartera | C129: NO | D129: C45182021 | E129: 80121610 | F129: Prestación de Servicios de gestion de cobro en etapa persuasiva y prejuridica de firmas externas para Cartera ARL, y recobros por Mora a la Fecha del evento por GESTION DE COBRANZA CARTERA APORTES CONCILIACION | G129: 01/06/2020 | H129: 6 | I129: 31/05/2021 | J129: 12.13333333 | K129: Invitación directa | L129: GastosAdministrativos | M129: 47180000 | N129: 47180000 | O129: NO | P129: NA | Q129: Gerencia de Abastecimiento Estratégico contratacion@positiva.gov.co PBX: (1)6502200 Ext: 10641 | R129: SI | S129: SI | T129: SI | U129: SI | V129: Pública clasificada | W129: C45182021-Tipo de información Pública clasificada-Prestación de Servicios de gestion de cobro en etapa persuasiva y prejuridica de firmas externas para Cartera ARL, y recobros por Mora a la Fecha del evento por GESTION DE COBRANZA CARTERA APORTES CONCILIACION
A130: Operaciones | B130: Gcia. Recaudo y Cartera | C130: NO | D130: C45192021 | E130: 80121610 | F130: Prestación de Servicios de Compra de registros al operador de información por datos Seguridad social sistema de Riesgos laborales. | G130: 2021-07-01 | H130: 7 | I130: 2022-06-30 | J130: 12.13333333 | K130: Invitación directa | L130: GastosAdministrativos | M130: 9100598039 | N130: 9100598039 | O130: SI | P130: EN TRAMITE | Q130: Gerencia de Abastecimiento Estratégico contratacion@positiva.gov.co PBX: (1)6502200 Ext: 10641 | R130: SI | S130: SI | T130: NO | U130: SI | V130: Pública clasificada | W130: C45192021-Tipo de información Pública clasificada-Prestación de Servicios de Compra de registros al operador de información por datos Seguridad social sistema de Riesgos laborales.
A131: Operaciones | B131: Gcia. Recaudo y Cartera | C131: NO | D131: C45202021 | E131: 80121610 | F131: Prestación de Servicios de Compra de registros al operador de información por datos Seguridad social sistema de Riesgos laborales. | G131: 2021-07-01 | H131: 7 | I131: 2022-06-30 | J131: 12.13333333 | K131: Invitación directa | L131: GastosAdministrativos | M131: 120403938 | N131: 120403938 | O131: SI | P131: EN TRAMITE | Q131: Gerencia de Abastecimiento Estratégico contratacion@positiva.gov.co PBX: (1)6502200 Ext: 10641 | R131: SI | S131: SI | T131: NO | U131: SI | V131: Pública clasificada | W131: C45202021-Tipo de información Pública clasificada-Prestación de Servicios de Compra de registros al operador de información por datos Seguridad social sistema de Riesgos laborales.
A132: Operaciones | B132: Vice. de Operaciones | C132: NO | D132: C45092021 | E132: 80121610 | F132: Prestación de Servicios de Contact Center | G132: 2021-12-01 | H132: 12 | I132: 2022-11-30 | J132: 12.13333333 | K132: Invitación directa | L132: GastosAdministrativos | M132: 4800000000 | N132: 395000000 | O132: SI | P132: EN TRAMITE | Q132: Gerencia de Abastecimiento Estratégico contratacion@positiva.gov.co PBX: (1)6502200 Ext: 10641 | R132: SI | S132: SI | T132: NO | U132: SI | V132: Pública clasificada | W132: C45092021-Tipo de información Pública clasificada-Prestación de Servicios de Contact Center
A133: Promoción y Prevención | B133: Gcia. Administración del Riesgo | C133: SI | D133: C77842021 | E133: 93141808 93141811 | F133: Prestación de servicios de Promoción y Prevención para implementar, mejorar y/o mantener actividades de asesoría técnica del Sistema de Gestión de Seguridad y Salud en Trabajo, con base en los Programas de la Estrategia POSITIVA CREA del Modelo de Gestión POSITIVA SUMA en PLAN BASICO - Programa de Prevención y Protección Colectiva e Individual, Programa de Promoción y Prevención en Salud y Programa de Investigación de Incidentes y Accidentes de Trabajo PLAN AVANZADO - Programa Gestión para el control de Incidentes y Accidentes de Trabajo y Programa Gestión para la Prevención de la Enfermedad Laboral PLAN ESPECIALIZADO - Programas de Vigilancia Epidemiológica y PLAN GESTION INTEGRAL – Sistemas Integrados de Gestión para el acompañamiento de las empresas afiliadas a POSITIVA COMPAÑÍA DE SEGUROS en la Zona Bogotá; Gerencia de Corredores en la modalidad de atención Planes Regulares | G133: 2021-03-01 | H133: 3 | I133: 2021-11-30 | J133: 11 | K133: Invitación directa | L133: PromociónyPrevención | M133: 61238000 | N133: 61238000 | O133: NO | P133: NA | Q133: Gerencia de Abastecimiento Estratégico contratacion@positiva.gov.co PBX: (1)6502200 Ext: 10641 | R133: SI | S133: NO | T133: NO | U133: SI | V133: =IF(U133="SI","Pública clasificada","Pública") -> Pública clasificada | W133: C77842021-Tipo de información Pública clasificada-Prestación de servicios de Promoción y Prevención para implementar, mejorar y/o mantener actividades de asesoría técnica del Sistema de Gestión de Seguridad y Salud en Trabajo, con base en los Programas de la Estrategia POSITIVA CREA del Modelo de Gestión POSITIVA SUMA en PLAN BASICO - Programa de Prevención y Protección Colectiva e Individual, Programa de Promoción y Prevención en Salud y Programa de Investigación de Incidentes y Accidentes de Trabajo PLAN AVANZADO - Programa Gestión para el control de Incidentes y Accidentes de Trabajo y Programa Gestión para la Prevención de la Enfermedad Laboral PLAN ESPECIALIZADO - Programas de Vigilancia Epidemiológica y PLAN GESTION INTEGRAL – Sistemas Integrados de Gestión para el acompañamiento de las empresas afiliadas a POSITIVA COMPAÑÍA DE SEGUROS en la Zona Bogotá; Gerencia de Corredores en la modalidad de atención Planes Regulares
A134: Promoción y Prevención | B134: Gcia. Administración del Riesgo | C134: SI | D134: C76282021 | E134: 93141808 93141811 | F134: Prestación de servicios de Promoción y Prevención del Sistema de Gestión de Seguridad y Salud en el Trabajo, para la ejecución de actividades de asesoría y asistencia técnica en el acompañamiento para el desarrollo de actividades de acondicionamiento físico mediante la utilización de una app y una plataforma digital de bienestar que se trabajará en tres ejes principales, el Físico, el emocional y el de comunidad, en la implementación del programa gestión en la prevención de enfermedades profesionales, del PLAN ESPECIALIZADO de la Estrategia CREA del Modelo de Gestión de Positiva SUMA para los trabajadores de la sede Bogotá de la empresa CARBONES DEL CERREJON LIMITED, en la sucursal Guajira de la Zona Atlántico. | G134: 2021-02-26 | H134: 2 | I134: 2021-04-30 | J134: 2 | K134: Invitación directa | L134: PromociónyPrevención | M134: 41600000 | N134: 41600000 | O134: NO | P134: NA | Q134: Gerencia de Abastecimiento Estratégico contratacion@positiva.gov.co PBX: (1)6502200 Ext: 10641 | R134: SI | S134: NO | T134: NO | U134: SI | V134: Pública clasificada | W134: C76282021-Tipo de información Pública clasificada-Prestación de servicios de Promoción y Prevención del Sistema de Gestión de Seguridad y Salud en el Trabajo, para la ejecución de actividades de asesoría y asistencia técnica en el acompañamiento para el desarrollo de actividades de acondicionamiento físico mediante la utilización de una app y una plataforma digital de bienestar que se trabajará en tres ejes principales, el Físico, el emocional y el de comunidad, en la implementación del programa gestión en la prevención de enfermedades profesionales, del PLAN ESPECIALIZADO de la Estrategia CREA del Modelo de Gestión de Positiva SUMA para los trabajadores de la sede Bogotá de la empresa CARBONES DEL CERREJON LIMITED, en la sucursal Guajira de la Zona Atlántico.
A135: Promoción y Prevención | B135: Gcia. Administración del Riesgo | C135: SI | D135: C78172021 | E135: 93141808 93141811 | F135: Prestación de servicios de Promoción y Prevención para implementar, mejorar y/o mantener actividades de asesoría técnica del Sistema de Gestión de Seguridad y Salud en Trabajo, con base en los Programas de la Estrategia POSITIVA CREA del Modelo de Gestión POSITIVA SUMA PLAN AVANZADO - Programa Gestión para la Prevención de la Enfermedad Laboral para el acompañamiento de las empresas afiliadas a POSITIVA COMPAÑÍA DE SEGUROS en las Zonas Bogotá, Atlántico, Antioquia, Santander y Valle, atendidas en modalidad Gran Empresas | G135: 2021-02-15 | H135: 2 | I135: 2021-11-30 | J135: 9 | K135: Invitación directa | L135: PromociónyPrevención | M135: 250000000 | N135: 250000000 | O135: NO | P135: NA | Q135: Gerencia de Abastecimiento Estratégico contratacion@positiva.gov.co PBX: (1)6502200 Ext: 10641 | R135: SI | S135: NO | T135: NO | U135: SI | V135: Pública clasificada | W135: C78172021-Tipo de información Pública clasificada-Prestación de servicios de Promoción y Prevención para implementar, mejorar y/o mantener actividades de asesoría técnica del Sistema de Gestión de Seguridad y Salud en Trabajo, con base en los Programas de la Estrategia POSITIVA CREA del Modelo de Gestión POSITIVA SUMA PLAN AVANZADO - Programa Gestión para la Prevención de la Enfermedad Laboral para el acompañamiento de las empresas afiliadas a POSITIVA COMPAÑÍA DE SEGUROS en las Zonas Bogotá, Atlántico, Antioquia, Santander y Valle, atendidas en modalidad Gran Empresas
A136: Promoción y Prevención | B136: Gcia. Administración del Riesgo | C136: SI | D136: C77882021 | E136: 93141808 93141811 | F136: prestación de de servicios de Promoción y Prevención para implementar, mejorar y/o mantener actividades de asesoría técnica del Sistema de Gestión de Seguridad y Salud en Trabajo, con base en los Programas de la Estrategia POSITIVA CREA del Modelo de Gestión POSITIVA SUMA en PLAN BASICO - Programa de Prevención y Protección Colectiva e Individual, Programa de Promoción y Prevención en Salud y Programa de Investigación de Incidentes y Accidentes de Trabajo PLAN AVANZADO - Programa Gestión para el control de Incidentes y Accidentes de Trabajo y Programa Gestión para la Prevención de la Enfermedad Laboral PLAN ESPECIALIZADO - Programas de Vigilancia Epidemiológica y PLAN GESTION INTEGRAL – Sistemas Integrados de Gestión para el acompañamiento de las empresas afiliadas a POSITIVA COMPAÑÍA DE SEGUROS en la Zona Bogotá; Gerencia de Corredores en la modalidad de atención Planes Regulares. | G136: 2021-02-12 | H136: 2 | I136: 2021-11-30 | J136: 9 | K136: Invitación directa | L136: PromociónyPrevención | M136: 10752800 | N136: 10752800 | O136: NO | P136: NA | Q136: Gerencia de Abastecimiento Estratégico contratacion@positiva.gov.co PBX: (1)6502200 Ext: 10641 | R136: SI | S136: NO | T136: NO | U136: SI | V136: Pública clasificada | W136: C77882021-Tipo de información Pública clasificada-prestación de de servicios de Promoción y Prevención para implementar, mejorar y/o mantener actividades de asesoría técnica del Sistema de Gestión de Seguridad y Salud en Trabajo, con base en los Programas de la Estrategia POSITIVA CREA del Modelo de Gestión POSITIVA SUMA en PLAN BASICO - Programa de Prevención y Protección Colectiva e Individual, Programa de Promoción y Prevención en Salud y Programa de Investigación de Incidentes y Accidentes de Trabajo PLAN AVANZADO - Programa Gestión para el control de Incidentes y Accidentes de Trabajo y Programa Gestión para la Prevención de la Enfermedad Laboral PLAN ESPECIALIZADO - Programas de Vigilancia Epidemiológica y PLAN GESTION INTEGRAL – Sistemas Integrados de Gestión para el acompañamiento de las empresas afiliadas a POSITIVA COMPAÑÍA DE SEGUROS en la Zona Bogotá; Gerencia de Corredores en la modalidad de atención Planes Regulares.
A137: Promoción y Prevención | B137: Gcia. Administración del Riesgo | C137: SI | D137: C82372021 | E137: 93141808 93141811 | F137: prestación de servicios de Promoción y Prevención para implementar, mejorar y/o mantener actividades de asesoría técnica del Sistema de Gestión de Seguridad y Salud en Trabajo, con base en los Programas de la Estrategia POSITIVA CREA del Modelo de Gestión POSITIVA SUMA, en PLAN BASICO Preparación y Atención de Emergencias y Protección Colectiva e Individual, para los servidores de la Fiscalía General de la Nación en la ciudad de Bucaramanga. | G137: 2021-02-08 | H137: 2 | I137: 2021-11-30 | J137: 9 | K137: Invitación directa | L137: PromociónyPrevención | M137: 112000000 | N137: 112000000 | O137: NO | P137: NA | Q137: Gerencia de Abastecimiento Estratégico contratacion@positiva.gov.co PBX: (1)6502200 Ext: 10641 | R137: SI | S137: NO | T137: NO | U137: SI | V137: Pública clasificada | W137: C82372021-Tipo de información Pública clasificada-prestación de servicios de Promoción y Prevención para implementar, mejorar y/o mantener actividades de asesoría técnica del Sistema de Gestión de Seguridad y Salud en Trabajo, con base en los Programas de la Estrategia POSITIVA CREA del Modelo de Gestión POSITIVA SUMA, en PLAN BASICO Preparación y Atención de Emergencias y Protección Colectiva e Individual, para los servidores de la Fiscalía General de la Nación en la ciudad de Bucaramanga.
A138: Promoción y Prevención | B138: Gcia. Administración del Riesgo | C138: SI | D138: C78162021 | E138: 93141808 | F138: Eis nivel nacional | G138: 16/03/2021 | H138: 3 | I138: 31/12/2021 | J138: =_xlfn.DAYS(I138,G138)/30 -> 9.666666667 | K138: Invitación cerrada | L138: PromociónyPrevención | M138: 7110480000 | N138: 7110480000 | O138: NO | P138: NA | Q138: Gerencia de Abastecimiento Estratégico contratacion@positiva.gov.co PBX: (1)6502200 Ext: 10641 | R138: SI | S138: NO | T138: NO | U138: SI | V138: Pública clasificada | W138: C78162021-Tipo de información Pública clasificada-Eis nivel nacional
A139: Promoción y Prevención | B139: Gcia. Administración del Riesgo | C139: SI | D139: C78142021 | E139: 93141808 | F139: App cuenta fgn | G139: 1/05/2021 | H139: 5 | I139: 31/12/2021 | J139: 8.133333333 | K139: Invitación cerrada | L139: PromociónyPrevención | M139: 6470300000 | N139: 6470300000 | O139: NO | P139: NA | Q139: Gerencia de Abastecimiento Estratégico contratacion@positiva.gov.co PBX: (1)6502200 Ext: 10641 | R139: SI | S139: NO | T139: NO | U139: SI | V139: Pública clasificada | W139: C78142021-Tipo de información Pública clasificada-App cuenta fgn
A140: Promoción y Prevención | B140: Gcia. Administración del Riesgo | C140: SI | D140: C78012021 | E140: 93141808 | F140: Garantizar la continuidad de los servicios de asesoría, asistencia técnica, capacitación interdisciplinaria en la prevención de riesgos laborales para los servidores de fiscalía general de la nación | G140: 4/01/2021 | H140: 1 | I140: 30/04/2021 | J140: 3.866666667 | K140: Invitación directa | L140: PromociónyPrevención | M140: 4998041540 | N140: 4998041540 | O140: NO | P140: NA | Q140: Gerencia de Abastecimiento Estratégico contratacion@positiva.gov.co PBX: (1)6502200 Ext: 10641 | R140: SI | S140: NO | T140: NO | U140: SI | V140: Pública clasificada | W140: C78012021-Tipo de información Pública clasificada-Garantizar la continuidad de los servicios de asesoría, asistencia técnica, capacitación interdisciplinaria en la prevención de riesgos laborales para los servidores de fiscalía general de la nación
A141: Promoción y Prevención | B141: Gcia. Administración del Riesgo | C141: NO | D141: C78022021 | E141: 93141808 | F141: "prestación de servicios de apoyo logístico, que permitan garantizar la adecuada ejecución de las actividades del plan de trabajo pactado con fiscalía general de la nación y rama judicial; como soporte para la organización y ejecución de eventos, programas y actividades de seguridad y salud en el trabajo. adicionalmente, se requiere contar con el desarrollo de campañas atl, btl, servicios de planeación estratégica, creativa y divulgación para el apoyo de la gestión en sst de las empresas afiliadas, enmarcado en nuestras líneas de acción estratégica positiva comunica y positiva educa a nivel nacional." | G141: 1/01/2021 | H141: 1 | I141: 31/05/2021 | J141: 5 | K141: Invitación directa | L141: PromociónyPrevención | M141: 4000000000 | N141: 4000000000 | O141: NO | P141: NA | Q141: Gerencia de Abastecimiento Estratégico contratacion@positiva.gov.co PBX: (1)6502200 Ext: 10641 | R141: SI | S141: NO | T141: NO | U141: SI | V141: Pública clasificada | W141: C78022021-Tipo de información Pública clasificada-"prestación de servicios de apoyo logístico, que permitan garantizar la adecuada ejecución de las actividades del plan de trabajo pactado con fiscalía general de la nación y rama judicial; como soporte para la organización y ejecución de eventos, programas y actividades de seguridad y salud en el trabajo. adicionalmente, se requiere contar con el desarrollo de campañas atl, btl, servicios de planeación estratégica, creativa y divulgación para el apoyo de la gestión en sst de las empresas afiliadas, enmarcado en nuestras líneas de acción estratégica positiva comunica y positiva educa a nivel nacional."
A142: Promoción y Prevención | B142: Gcia. Administración del Riesgo | C142: NO | D142: C78082021 | E142: 93141808 | F142: Dar continuidad a los servicios integrales en rol ejecutivo integral de servicios (eis) para la asesoría y asistencia técnica interdisciplinaria en prevención de riesgos laborales, de conformidad con el marco legal colombiano vigente, en empresas afiliadas con cobertura a nivel nacional de positiva compañía de seguros | G142: 27/03/2020 | H142: 3 | I142: 15/03/2021 | J142: 11.76666667 | K142: Invitación directa | L142: PromociónyPrevención | M142: 3927632000 | N142: 3927632000 | O142: NO | P142: NA | Q142: Gerencia de Abastecimiento Estratégico contratacion@positiva.gov.co PBX: (1)6502200 Ext: 10641 | R142: SI | S142: NO | T142: NO | U142: SI | V142: Pública clasificada | W142: C78082021-Tipo de información Pública clasificada-Dar continuidad a los servicios integrales en rol ejecutivo integral de servicios (eis) para la asesoría y asistencia técnica interdisciplinaria en prevención de riesgos laborales, de conformidad con el marco legal colombiano vigente, en empresas afiliadas con cobertura a nivel nacional de positiva compañía de seguros
A143: Promoción y Prevención | B143: Gcia. Administración del Riesgo | C143: NO | D143: C78042021 | E143: 93141808 | F143: Dar continuidad a prestación de servicios integrales en promoción y prevención para brindar asesoría, asistencia técnica, capacitación, con un grupo de personal interdisciplinario especializado en prevención de riesgos laborales y realizar servicios transversales de actividades técnico-administrativas propias del proceso de promoción y prevención, de conformidad con el marco legal colombiano vigente, en empresas afiliadas en la zona bogotá y con presencia nacional. | G143: 30/04/2020 | H143: 4 | I143: 31/03/2021 | J143: 11.16666667 | K143: Invitación directa | L143: PromociónyPrevención | M143: 3691452170 | N143: 3691452170 | O143: NO | P143: NA | Q143: Gerencia de Abastecimiento Estratégico contratacion@positiva.gov.co PBX: (1)6502200 Ext: 10641 | R143: SI | S143: NO | T143: NO | U143: SI | V143: Pública clasificada | W143: C78042021-Tipo de información Pública clasificada-Dar continuidad a prestación de servicios integrales en promoción y prevención para brindar asesoría, asistencia técnica, capacitación, con un grupo de personal interdisciplinario especializado en prevención de riesgos laborales y realizar servicios transversales de actividades técnico-administrativas propias del proceso de promoción y prevención, de conformidad con el marco legal colombiano vigente, en empresas afiliadas en la zona bogotá y con presencia nacional.
A144: Promoción y Prevención | B144: Gcia. Administración del Riesgo | C144: SI | D144: C78152021 | E144: 93141808 | F144: App cuenta rama judicial | G144: 1/03/2021 | H144: 3 | I144: 31/12/2021 | J144: 10.16666667 | K144: Invitación cerrada | L144: PromociónyPrevención | M144: 3431458640 | N144: 3431458640 | O144: NO | P144: NA | Q144: Gerencia de Abastecimiento Estratégico contratacion@positiva.gov.co PBX: (1)6502200 Ext: 10641 | R144: SI | S144: NO | T144: NO | U144: SI | V144: Pública clasificada | W144: C78152021-Tipo de información Pública clasificada-App cuenta rama judicial
A145: Promoción y Prevención | B145: Gcia. Administración del Riesgo | C145: SI | D145: C77682021 | E145: 93141808 | F145: "de acuerdo con los planes de trabajo establecidos para las empresas afiliadas a positiva compañia de seguros en la zona bogotá;gerencia de corredores, sucursal bogotá coordinadora y sucursal bogotá cundinamarca se contemplan actividades de asesoría estratégica orientada a plantear soluciones a los problemas que presenta la empresa en materia de seguridad y salud en el trabajo." | G145: 15/01/2021 | H145: 1 | I145: 31/12/2021 | J145: 11.66666667 | K145: Invitación directa | L145: PromociónyPrevención | M145: 3400000000 | N145: 3400000000 | O145: NO | P145: NA | Q145: Gerencia de Abastecimiento Estratégico contratacion@positiva.gov.co PBX: (1)6502200 Ext: 10641 | R145: SI | S145: NO | T145: NO | U145: SI | V145: Pública clasificada | W145: C77682021-Tipo de información Pública clasificada-"de acuerdo con los planes de trabajo establecidos para las empresas afiliadas a positiva compañia de seguros en la zona bogotá;gerencia de corredores, sucursal bogotá coordinadora y sucursal bogotá cundinamarca se contemplan actividades de asesoría estratégica orientada a plantear soluciones a los problemas que presenta la empresa en materia de seguridad y salud en el trabajo."
A146: Promoción y Prevención | B146: Gcia. Administración del Riesgo | C146: SI | D146: C77012021 | E146: 93141808 | F146: Servicios en empresas clientes representativos para la sucursales cundinamarca, bogota coordinadora y gerencia corredores como el sena, idu, comapan entre otras,para la prestacion de los actividades en plan básico promoción y prevención en salud, plan avanzado- gestión de para la prevención de la enfermedad laboral -plan especializado- programas de vigilancia epidemiológico se proyectan para el próximo año 53,940 horas de ejecución | G146: 1/01/2021 | H146: 1 | I146: 31/12/2021 | J146: 12.13333333 | K146: Invitación directa | L146: PromociónyPrevención | M146: 2900000000 | N146: 2900000000 | O146: NO | P146: NA | Q146: Gerencia de Abastecimiento Estratégico contratacion@positiva.gov.co PBX: (1)6502200 Ext: 10641 | R146: SI | S146: NO | T146: NO | U146: SI | V146: Pública clasificada | W146: C77012021-Tipo de información Pública clasificada-Servicios en empresas clientes representativos para la sucursales cundinamarca, bogota coordinadora y gerencia corredores como el sena, idu, comapan entre otras,para la prestacion de los actividades en plan básico promoción y prevención en salud, plan avanzado- gestión de para la prevención de la enfermedad laboral -plan especializado- programas de vigilancia epidemiológico se proyectan para el próximo año 53,940 horas de ejecución
A147: Promoción y Prevención | B147: Gcia. Administración del Riesgo | C147: NO | D147: C78052021 | E147: 93141808 | F147: Dar continuidad a los servicios integrales en rol asesoría por proyecto en prevención para asesoría, asistencia técnica y capacitación interdisciplinaria en prevención de riesgos laborales de conformidad con el marco legal colombiano vigente en empresas afiliadas a la zona valle. | G147: 2021-01-01 | H147: 1 | I147: 31/03/2021 | J147: 2.966666667 | K147: Invitación directa | L147: PromociónyPrevención | M147: 2656242326 | N147: 2656242326 | O147: NO | P147: NA | Q147: Gerencia de Abastecimiento Estratégico contratacion@positiva.gov.co PBX: (1)6502200 Ext: 10641 | R147: SI | S147: NO | T147: NO | U147: SI | V147: Pública clasificada | W147: C78052021-Tipo de información Pública clasificada-Dar continuidad a los servicios integrales en rol asesoría por proyecto en prevención para asesoría, asistencia técnica y capacitación interdisciplinaria en prevención de riesgos laborales de conformidad con el marco legal colombiano vigente en empresas afiliadas a la zona valle.
A148: Promoción y Prevención | B148: Gcia. Administración del Riesgo | C148: NO | D148: C83052021 | E148: 93141808 | F148: Suministro, entrega y distribución de elementos de protección personal para la prevención, control y mitigación por exposición ocupacional de los efectos del covid-19, en las empresas afiliadas a positiva compañía de seguros, con base en los programas de la estrategia positiva crea del modelo de gestión positiva suma en plan basico - promoción y prevención en salud, plan avanzado - gestión para la prevención de la enfermedad laboral, para el acompañamiento de las empresas afiliadas a positiva compañía de seguros a nivel nacional de acuerdo con el anexo no. 1 denominado “especificaciones técnicas mínimas de los elementos de protección personal”. | G148: 6/11/2020 | H148: 11 | I148: 28/02/2021 | J148: 3.8 | K148: Invitación directa | L148: PromociónyPrevención | M148: 1919602260 | N148: 1919602260 | O148: NO | P148: NA | Q148: Gerencia de Abastecimiento Estratégico contratacion@positiva.gov.co PBX: (1)6502200 Ext: 10641 | R148: SI | S148: NO | T148: NO | U148: SI | V148: Pública clasificada | W148: C83052021-Tipo de información Pública clasificada-Suministro, entrega y distribución de elementos de protección personal para la prevención, control y mitigación por exposición ocupacional de los efectos del covid-19, en las empresas afiliadas a positiva compañía de seguros, con base en los programas de la estrategia positiva crea del modelo de gestión positiva suma en plan basico - promoción y prevención en salud, plan avanzado - gestión para la prevención de la enfermedad laboral, para el acompañamiento de las empresas afiliadas a positiva compañía de seguros a nivel nacional de acuerdo con el anexo no. 1 denominado “especificaciones técnicas mínimas de los elementos de protección personal”.
A149: Promoción y Prevención | B149: Gcia. Administración del Riesgo | C149: NO | D149: C83042021 | E149: 93141808 | F149: Suministro, entrega y distribución de elementos de protección personal para la prevención, control y mitigación por exposición ocupacional de los efectos del covid-19, en las empresas afiliadas a positiva compañía de seguros, con base en los programas de la estrategia positiva crea del modelo de gestión positiva suma en plan basico - promoción y prevención en salud, plan avanzado - gestión para la prevención de la enfermedad laboral, para el acompañamiento de las empresas afiliadas a positiva compañía de seguros a nivel nacional de acuerdo con el anexo no. 1 denominado “especificaciones técnicas mínimas de los elementos de protección personal”. | G149: 6/11/2020 | H149: 11 | I149: 28/02/2021 | J149: 3.8 | K149: Invitación directa | L149: PromociónyPrevención | M149: 1753965000 | N149: 1753965000 | O149: NO | P149: NA | Q149: Gerencia de Abastecimiento Estratégico contratacion@positiva.gov.co PBX: (1)6502200 Ext: 10641 | R149: SI | S149: NO | T149: NO | U149: SI | V149: Pública clasificada | W149: C83042021-Tipo de información Pública clasificada-Suministro, entrega y distribución de elementos de protección personal para la prevención, control y mitigación por exposición ocupacional de los efectos del covid-19, en las empresas afiliadas a positiva compañía de seguros, con base en los programas de la estrategia positiva crea del modelo de gestión positiva suma en plan basico - promoción y prevención en salud, plan avanzado - gestión para la prevención de la enfermedad laboral, para el acompañamiento de las empresas afiliadas a positiva compañía de seguros a nivel nacional de acuerdo con el anexo no. 1 denominado “especificaciones técnicas mínimas de los elementos de protección personal”.
A150: Promoción y Prevención | B150: Gcia. Administración del Riesgo | C150: NO | D150: C83022021 | E150: 93141808 | F150: Suministro, entrega y distribución de elementos de protección personal para la prevención, control y mitigación por exposición ocupacional de los efectos del covid-19, en las empresas afiliadas a positiva compañía de seguros, con base en los programas de la estrategia positiva crea del modelo de gestión positiva suma en plan basico - promoción y prevención en salud, plan avanzado - gestión para la prevención de la enfermedad laboral, para el acompañamiento de las empresas afiliadas a positiva compañía de seguros a nivel nacional de acuerdo con el anexo no. 1 denominado “especificaciones técnicas mínimas de los elementos de protección personal”. | G150: 11/11/2020 | H150: 11 | I150: 28/02/2021 | J150: 3.633333333 | K150: Invitación directa | L150: PromociónyPrevención | M150: 1707600000 | N150: 1707600000 | O150: NO | P150: NA | Q150: Gerencia de Abastecimiento Estratégico contratacion@positiva.gov.co PBX: (1)6502200 Ext: 10641 | R150: SI | S150: NO | T150: NO | U150: SI | V150: Pública clasificada | W150: C83022021-Tipo de información Pública clasificada-Suministro, entrega y distribución de elementos de protección personal para la prevención, control y mitigación por exposición ocupacional de los efectos del covid-19, en las empresas afiliadas a positiva compañía de seguros, con base en los programas de la estrategia positiva crea del modelo de gestión positiva suma en plan basico - promoción y prevención en salud, plan avanzado - gestión para la prevención de la enfermedad laboral, para el acompañamiento de las empresas afiliadas a positiva compañía de seguros a nivel nacional de acuerdo con el anexo no. 1 denominado “especificaciones técnicas mínimas de los elementos de protección personal”.
A151: Promoción y Prevención | B151: Gcia. Administración del Riesgo | C151: SI | D151: C81062021 | E151: 93141808 | F151: Garantizar la atención de empresas mipymes afiliadas a positiva compañía de seguros, lo que contribuye al cumplimiento de la exigencia legal sobre la implementación del sistema de gestión de seguridad y salud en el trabajo y estándares mínimos, y al logro de los objetivos estratégicos de fidelización y la satisfacción de las necesidades y expectativas de los clientes. | G151: 1/01/2020 | H151: 1 | I151: 31/12/2020 | J151: 12.16666667 | K151: Invitación directa | L151: PromociónyPrevención | M151: 1622520000 | N151: 1622520000 | O151: NO | P151: NA | Q151: Gerencia de Abastecimiento Estratégico contratacion@positiva.gov.co PBX: (1)6502200 Ext: 10641 | R151: SI | S151: NO | T151: NO | U151: SI | V151: Pública clasificada | W151: C81062021-Tipo de información Pública clasificada-Garantizar la atención de empresas mipymes afiliadas a positiva compañía de seguros, lo que contribuye al cumplimiento de la exigencia legal sobre la implementación del sistema de gestión de seguridad y salud en el trabajo y estándares mínimos, y al logro de los objetivos estratégicos de fidelización y la satisfacción de las necesidades y expectativas de los clientes.
A152: Promoción y Prevención | B152: Gcia. Administración del Riesgo | C152: SI | D152: C81052021 | E152: 93141808 | F152: Garantizar la atención de empresas mipymes afiliadas a positiva compañía de seguros, lo que contribuye al cumplimiento de la exigencia legal sobre la implementación del sistema de gestión de seguridad y salud en el trabajo y estándares mínimos, y al logro de los objetivos estratégicos de fidelización y la satisfacción de las necesidades y expectativas de los clientes. | G152: 1/01/2020 | H152: 1 | I152: 31/12/2020 | J152: 12.16666667 | K152: Invitación directa | L152: PromociónyPrevención | M152: 1575000000 | N152: 1575000000 | O152: NO | P152: NA | Q152: Gerencia de Abastecimiento Estratégico contratacion@positiva.gov.co PBX: (1)6502200 Ext: 10641 | R152: SI | S152: NO | T152: NO | U152: SI | V152: Pública clasificada | W152: C81052021-Tipo de información Pública clasificada-Garantizar la atención de empresas mipymes afiliadas a positiva compañía de seguros, lo que contribuye al cumplimiento de la exigencia legal sobre la implementación del sistema de gestión de seguridad y salud en el trabajo y estándares mínimos, y al logro de los objetivos estratégicos de fidelización y la satisfacción de las necesidades y expectativas de los clientes.
A153: Promoción y Prevención | B153: Gcia. Administración del Riesgo | C153: SI | D153: C82352021 | E153: 93141808 93141811 | F153: prestación de los servicios de Promoción y Prevención para implementar, mejorar y/o mantener actividades de asesoría técnica del Sistema de Gestión de Seguridad y Salud en Trabajo, con base en los Programas de la Estrategia POSITIVA CREA del Modelo de Gestión POSITIVA SUMA, en PLAN BASICO Preparación y Atención de Emergencias y Protección Colectiva e Individual, para los servidores de la Fiscalía General de la Nación en las ciudades de Cali. PARÁGRAFO PRIMERO: Niveles de Servicio y Operación: Para mayor ilustración del alcance de la presente aceptación de oferta, la justificación de la contratación, los estudios previos, la invitación, la matriz de riesgos la propuesta comercial de la firma y los demás documentos precontractuales, hacen parte integral de la misma | G153: 2021-02-03 | H153: 2 | I153: 2021-11-30 | J153: 9 | K153: Invitación directa | L153: PromociónyPrevención | M153: 110000000 | N153: 110000000 | O153: NO | P153: NA | Q153: Gerencia de Abastecimiento Estratégico contratacion@positiva.gov.co PBX: (1)6502200 Ext: 10641 | R153: SI | S153: NO | T153: NO | U153: SI | V153: Pública clasificada | W153: C82352021-Tipo de información Pública clasificada-prestación de los servicios de Promoción y Prevención para implementar, mejorar y/o mantener actividades de asesoría técnica del Sistema de Gestión de Seguridad y Salud en Trabajo, con base en los Programas de la Estrategia POSITIVA CREA del Modelo de Gestión POSITIVA SUMA, en PLAN BASICO Preparación y Atención de Emergencias y Protección Colectiva e Individual, para los servidores de la Fiscalía General de la Nación en las ciudades de Cali. PARÁGRAFO PRIMERO: Niveles de Servicio y Operación: Para mayor ilustración del alcance de la presente aceptación de oferta, la justificación de la contratación, los estudios previos, la invitación, la matriz de riesgos la propuesta comercial de la firma y los demás documentos precontractuales, hacen parte integral de la misma
A154: Promoción y Prevención | B154: Gcia. Administración del Riesgo | C154: SI | D154: C77452021 | E154: 93141808 | F154: "de acuerdo con los planes de trabajo establecidos para las empresas afiliadas a positiva compañia de seguros en la zona bogotá; gerencia de corredores, sucursal bogotá coordinadora y sucursal bogotá cundinamarca se contemplan actividades de asesoría estratégica integral orientada a plantear soluciones a los problemas que presenta la empresa en materia de seguridad y salud en el trabajo con el animo de generar impacto en la disminucion de la siniestralidad de accidentes y enfermedades laborales." | G154: 15/01/2021 | H154: 1 | I154: 31/12/2021 | J154: =_xlfn.DAYS(I154,G154)/30 -> 11.66666667 | K154: Invitación directa | L154: PromociónyPrevención | M154: 1500000000 | N154: 1500000000 | O154: NO | P154: NA | Q154: Gerencia de Abastecimiento Estratégico contratacion@positiva.gov.co PBX: (1)6502200 Ext: 10641 | R154: SI | S154: NO | T154: NO | U154: SI | V154: Pública clasificada | W154: C77452021-Tipo de información Pública clasificada-"de acuerdo con los planes de trabajo establecidos para las empresas afiliadas a positiva compañia de seguros en la zona bogotá; gerencia de corredores, sucursal bogotá coordinadora y sucursal bogotá cundinamarca se contemplan actividades de asesoría estratégica integral orientada a plantear soluciones a los problemas que presenta la empresa en materia de seguridad y salud en el trabajo con el animo de generar impacto en la disminucion de la siniestralidad de accidentes y enfermedades laborales."
A155: Promoción y Prevención | B155: Gcia. Administración del Riesgo | C155: SI | D155: C81042021 | E155: 93141808 | F155: Garantizar la atención de empresas mipymes afiliadas a positiva compañía de seguros, lo que contribuye al cumplimiento de la exigencia legal sobre la implementación del sistema de gestión de seguridad y salud en el trabajo y estándares mínimos, y al logro de los objetivos estratégicos de fidelización y la satisfacción de las necesidades y expectativas de los clientes. | G155: 1/01/2020 | H155: 1 | I155: 31/12/2020 | J155: 12.16666667 | K155: Invitación directa | L155: PromociónyPrevención | M155: 1475000000 | N155: 1475000000 | O155: NO | P155: NA | Q155: Gerencia de Abastecimiento Estratégico contratacion@positiva.gov.co PBX: (1)6502200 Ext: 10641 | R155: SI | S155: NO | T155: NO | U155: SI | V155: Pública clasificada | W155: C81042021-Tipo de información Pública clasificada-Garantizar la atención de empresas mipymes afiliadas a positiva compañía de seguros, lo que contribuye al cumplimiento de la exigencia legal sobre la implementación del sistema de gestión de seguridad y salud en el trabajo y estándares mínimos, y al logro de los objetivos estratégicos de fidelización y la satisfacción de las necesidades y expectativas de los clientes.
A156: Promoción y Prevención | B156: Gcia. Administración del Riesgo | C156: NO | D156: C78032021 | E156: 93141808 | F156: En cumplimiento de la atención a empresas afiliadas a positiva compañía de seguros para realizar actividades de asesoría, asistencia técnica y de formación sobre el sistema de gestion de seguridad y salud en el trabajo y dar cumplimiento al ordenamiento legal contemplado en: decreto 1295 de 1994, especialmente en sus artículos, 2, 19, 59 y 80, parágrafo 1 en el que se señala que “las entidades administradoras de riesgos profesionales (hoy administradoras de riesgos laborales) deberán contratar o conformar equipos de prevención de riesgos laborales, para la planeación, organización, ejecución y supervisión de las actividades de que tratan los literales f y g del mismo artículo. ley 1562 de 2012, en el artículo 11 que define los servicios de promoción y prevención, señalando las actividades mínimas a realizar por parte de las administradoras de riesgos laborales. de acuerdo a la normatividad se autoriza a las arls a contratar con terceros para llevar a cabo la gestión, brindar asesoría y realizar seguimiento, en procura de fortalecer la intervención a empresas y trabajadores afiliados a positiva compañía de seguros. | G156: 1/01/2021 | H156: 1 | I156: 28/02/2021 | J156: 1.933333333 | K156: Invitación directa | L156: PromociónyPrevención | M156: 1389053680 | N156: 1389053680 | O156: NO | P156: NA | Q156: Gerencia de Abastecimiento Estratégico contratacion@positiva.gov.co PBX: (1)6502200 Ext: 10641 | R156: SI | S156: NO | T156: NO | U156: SI | V156: Pública clasificada | W156: C78032021-Tipo de información Pública clasificada-En cumplimiento de la atención a empresas afiliadas a positiva compañía de seguros para realizar actividades de asesoría, asistencia técnica y de formación sobre el sistema de gestion de seguridad y salud en el trabajo y dar cumplimiento al ordenamiento legal contemplado en: decreto 1295 de 1994, especialmente en sus artículos, 2, 19, 59 y 80, parágrafo 1 en el que se señala que “las entidades administradoras de riesgos profesionales (hoy administradoras de riesgos laborales) deberán contratar o conformar equipos de prevención de riesgos laborales, para la planeación, organización, ejecución y supervisión de las actividades de que tratan los literales f y g del mismo artículo. ley 1562 de 2012, en el artículo 11 que define los servicios de promoción y prevención, señalando las actividades mínimas a realizar por parte de las administradoras de riesgos laborales. de acuerdo a la normatividad se autoriza a las arls a contratar con terceros para llevar a cabo la gestión, brindar asesoría y realizar seguimiento, en procura de fortalecer la intervención a empresas y trabajadores afiliados a positiva compañía de seguros.
A157: Promoción y Prevención | B157: Gcia. Administración del Riesgo | C157: SI | D157: C78092021 | E157: 93141808 | F157: App zona antioquia | G157: 1/05/2021 | H157: 5 | I157: 31/12/2021 | J157: 8.133333333 | K157: Invitación cerrada | L157: PromociónyPrevención | M157: 1296000000 | N157: 1296000000 | O157: NO | P157: NA | Q157: Gerencia de Abastecimiento Estratégico contratacion@positiva.gov.co PBX: (1)6502200 Ext: 10641 | R157: SI | S157: NO | T157: NO | U157: SI | V157: Pública clasificada | W157: =CONCATENATE(D157,"-","Tipo de información"," ",V157,"-",F157) -> C78092021-Tipo de información Pública clasificada-App zona antioquia
A158: Promoción y Prevención | B158: Gcia. Administración del Riesgo | C158: SI | D158: C81022021 | E158: 93141808 | F158: Garantizar la atención de empresas mipymes afiliadas a positiva compañía de seguros, lo que contribuye al cumplimiento de la exigencia legal sobre la implementación del sistema de gestión de seguridad y salud en el trabajo y estándares mínimos, y al logro de los objetivos estratégicos de fidelización y la satisfacción de las necesidades y expectativas de los clientes. | G158: 1/01/2020 | H158: 1 | I158: 31/12/2020 | J158: 12.16666667 | K158: Invitación directa | L158: PromociónyPrevención | M158: 1275000000 | N158: 1275000000 | O158: NO | P158: NA | Q158: Gerencia de Abastecimiento Estratégico contratacion@positiva.gov.co PBX: (1)6502200 Ext: 10641 | R158: SI | S158: NO | T158: NO | U158: SI | V158: Pública clasificada | W158: C81022021-Tipo de información Pública clasificada-Garantizar la atención de empresas mipymes afiliadas a positiva compañía de seguros, lo que contribuye al cumplimiento de la exigencia legal sobre la implementación del sistema de gestión de seguridad y salud en el trabajo y estándares mínimos, y al logro de los objetivos estratégicos de fidelización y la satisfacción de las necesidades y expectativas de los clientes.
A159: Promoción y Prevención | B159: Gcia. Administración del Riesgo | C159: NO | D159: C83012021 | E159: 93141808 | F159: Suministro, entrega y distribución de elementos de protección personal para la prevención, control y mitigación por exposición ocupacional de los efectos del covid-19, en las empresas afiliadas a positiva compañía de seguros, con base en los programas de la estrategia positiva crea del modelo de gestión positiva suma en plan basico - promoción y prevención en salud, plan avanzado - gestión para la prevención de la enfermedad laboral, para el acompañamiento de las empresas afiliadas a positiva compañía de seguros a nivel nacional de acuerdo con el anexo no. 1 denominado “especificaciones técnicas mínimas de los elementos de protección personal”. | G159: 29/11/2020 | H159: 11 | I159: 28/02/2021 | J159: 3.033333333 | K159: Invitación directa | L159: PromociónyPrevención | M159: 1214911300 | N159: 1214911300 | O159: NO | P159: NA | Q159: Gerencia de Abastecimiento Estratégico contratacion@positiva.gov.co PBX: (1)6502200 Ext: 10641 | R159: SI | S159: NO | T159: NO | U159: SI | V159: Pública clasificada | W159: C83012021-Tipo de información Pública clasificada-Suministro, entrega y distribución de elementos de protección personal para la prevención, control y mitigación por exposición ocupacional de los efectos del covid-19, en las empresas afiliadas a positiva compañía de seguros, con base en los programas de la estrategia positiva crea del modelo de gestión positiva suma en plan basico - promoción y prevención en salud, plan avanzado - gestión para la prevención de la enfermedad laboral, para el acompañamiento de las empresas afiliadas a positiva compañía de seguros a nivel nacional de acuerdo con el anexo no. 1 denominado “especificaciones técnicas mínimas de los elementos de protección personal”.
A160: Promoción y Prevención | B160: Gcia. Administración del Riesgo | C160: SI | D160: C76072021 | E160: 93141808 | F160: El aliado estratégico conhintec, ha ejecutado diversos contratos con nuestra compañía desde el año 2015 y que la empresa cliente tiene trabajadores expuestos a riesgos de higiene que pueden generar enfermedad laboral, se requiere realizar intervención oportuna, con estándares de calidad que contribuyan al logro de los objetivos estratégicos de fidelización y la satisfacción de las necesidades y expectativas de los clientes. | G160: 1/01/2021 | H160: 1 | I160: 30/11/2021 | J160: 11.1 | K160: Invitación directa | L160: PromociónyPrevención | M160: 1200000000 | N160: 1200000000 | O160: NO | P160: NA | Q160: Gerencia de Abastecimiento Estratégico contratacion@positiva.gov.co PBX: (1)6502200 Ext: 10641 | R160: SI | S160: NO | T160: NO | U160: SI | V160: Pública clasificada | W160: C76072021-Tipo de información Pública clasificada-El aliado estratégico conhintec, ha ejecutado diversos contratos con nuestra compañía desde el año 2015 y que la empresa cliente tiene trabajadores expuestos a riesgos de higiene que pueden generar enfermedad laboral, se requiere realizar intervención oportuna, con estándares de calidad que contribuyan al logro de los objetivos estratégicos de fidelización y la satisfacción de las necesidades y expectativas de los clientes.
A161: Promoción y Prevención | B161: Gcia. Administración del Riesgo | C161: SI | D161: C77332021 | E161: 93141808 | F161: Continuidad de servicios para los planes de trabajo de los clientes de la sucursal bogota cundinamarca, proveedor con contratos en vigencias pasadas y prestacion de servicios para los clientes de la sucursal. | G161: 15/01/2021 | H161: 1 | I161: 31/12/2021 | J161: 11.66666667 | K161: Invitación directa | L161: PromociónyPrevención | M161: 1200000000 | N161: 1200000000 | O161: NO | P161: NA | Q161: Gerencia de Abastecimiento Estratégico contratacion@positiva.gov.co PBX: (1)6502200 Ext: 10641 | R161: SI | S161: NO | T161: NO | U161: SI | V161: Pública clasificada | W161: C77332021-Tipo de información Pública clasificada-Continuidad de servicios para los planes de trabajo de los clientes de la sucursal bogota cundinamarca, proveedor con contratos en vigencias pasadas y prestacion de servicios para los clientes de la sucursal.
A162: Promoción y Prevención | B162: Gcia. Administración del Riesgo | C162: SI | D162: C76032021 | E162: 93141808 | F162: En cumplimiento de la atención a empresas afiliadas a positiva compañía de seguros para realizar actividades de asesoría, asistencia técnica y de formación sobre el sistema de gestion de seguridad y salud en el trabajo, con base en el modelo de gestión positiva suma, el cual conforma la estructura técnica para brindar la asesoría y asistencia en prevención de riesgos laborales. las estrategias que conforman este modelo de gestión son, positiva investiga, positiva crea y positiva premia, las cuales permiten identificar las mejores prácticas para la gestión, orientando y direccionado a las empresas afiliadas para conformar una cultura de modelo de gestión que le permita la realización de actividades laborales en unas óptimas condiciones de salud de sus trabajadores y unas adecuadas condiciones de trabajo en sus instalaciones, implementando programas de acuerdo con los riesgos laborales identificados. se requiere brindar atención a las empresas afiliadas a positiva compañía de seguros, para ejecutar actividades de promoción y prevención del modelo de gestión positiva suma, en asesoría y asistencia técnica del sistema de gestión en seguridad y salud en el trabajo con el fin de dar cumplimiento legal y promover comportamientos seguros para la prevención de los riesgos laborales. salud ocupacional sanitas, es un proveedor que brinda atención con oportunidad y eficacia, cuenta con un equipo humano y técnico calificado y formado, asimismo cuenta con la aceptación del cliente carbones del cerrejon ltda. | G162: 1/01/2021 | H162: 1 | I162: 30/11/2021 | J162: 11.1 | K162: Invitación directa | L162: PromociónyPrevención | M162: 1129756140 | N162: 1129756140 | O162: NO | P162: NA | Q162: Gerencia de Abastecimiento Estratégico contratacion@positiva.gov.co PBX: (1)6502200 Ext: 10641 | R162: SI | S162: NO | T162: NO | U162: SI | V162: Pública clasificada | W162: C76032021-Tipo de información Pública clasificada-En cumplimiento de la atención a empresas afiliadas a positiva compañía de seguros para realizar actividades de asesoría, asistencia técnica y de formación sobre el sistema de gestion de seguridad y salud en el trabajo, con base en el modelo de gestión positiva suma, el cual conforma la estructura técnica para brindar la asesoría y asistencia en prevención de riesgos laborales. las estrategias que conforman este modelo de gestión son, positiva investiga, positiva crea y positiva premia, las cuales permiten identificar las mejores prácticas para la gestión, orientando y direccionado a las empresas afiliadas para conformar una cultura de modelo de gestión que le permita la realización de actividades laborales en unas óptimas condiciones de salud de sus trabajadores y unas adecuadas condiciones de trabajo en sus instalaciones, implementando programas de acuerdo con los riesgos laborales identificados. se requiere brindar atención a las empresas afiliadas a positiva compañía de seguros, para ejecutar actividades de promoción y prevención del modelo de gestión positiva suma, en asesoría y asistencia técnica del sistema de gestión en seguridad y salud en el trabajo con el fin de dar cumplimiento legal y promover comportamientos seguros para la prevención de los riesgos laborales. salud ocupacional sanitas, es un proveedor que brinda atención con oportunidad y eficacia, cuenta con un equipo humano y técnico calificado y formado, asimismo cuenta con la aceptación del cliente carbones del cerrejon ltda.
A163: Promoción y Prevención | B163: Gcia. Administración del Riesgo | C163: NO | D163: C77182021 | E163: 93141808 | F163: Servicios en empresas clientes representativas para la sucursales cundinamarca, bogota coordinadora y gerencia corredores como el sena, rama judicial, inpec, universidad nacional, uspec, salgado melendez, entre otras, para la prestacion de las actividades en plan avanzado (programa de gestión prevención de la enfermedad profesional, énfasis psicosocial, programa gestión para el control de incidentes y accidentes de trabajo) plan especializado (programas de vigilancia epidemiológico con énfasis psicosocial), y plan de gestion integral, (programa sistema de gestión en s&so-ohsas 18001) se proyectan para el próximo año 20,029 horas de ejecución | G163: 27/04/2020 | H163: 4 | I163: 31/03/2021 | J163: 11.26666667 | K163: Invitación directa | L163: PromociónyPrevención | M163: 1076880440 | N163: 1076880440 | O163: NO | P163: NA | Q163: Gerencia de Abastecimiento Estratégico contratacion@positiva.gov.co PBX: (1)6502200 Ext: 10641 | R163: SI | S163: NO | T163: NO | U163: SI | V163: Pública clasificada | W163: C77182021-Tipo de información Pública clasificada-Servicios en empresas clientes representativas para la sucursales cundinamarca, bogota coordinadora y gerencia corredores como el sena, rama judicial, inpec, universidad nacional, uspec, salgado melendez, entre otras, para la prestacion de las actividades en plan avanzado (programa de gestión prevención de la enfermedad profesional, énfasis psicosocial, programa gestión para el control de incidentes y accidentes de trabajo) plan especializado (programas de vigilancia epidemiológico con énfasis psicosocial), y plan de gestion integral, (programa sistema de gestión en s&so-ohsas 18001) se proyectan para el próximo año 20,029 horas de ejecución
A164: Promoción y Prevención | B164: Gcia. Administración del Riesgo | C164: SI | D164: C81032021 | E164: 93141808 | F164: Garantizar la atención de empresas mipymes afiliadas a positiva compañía de seguros, lo que contribuye al cumplimiento de la exigencia legal sobre la implementación del sistema de gestión de seguridad y salud en el trabajo y estándares mínimos, y al logro de los objetivos estratégicos de fidelización y la satisfacción de las necesidades y expectativas de los clientes. | G164: 1/01/2020 | H164: 1 | I164: 31/12/2020 | J164: 12.16666667 | K164: Invitación directa | L164: PromociónyPrevención | M164: 1075000000 | N164: 1075000000 | O164: NO | P164: NA | Q164: Gerencia de Abastecimiento Estratégico contratacion@positiva.gov.co PBX: (1)6502200 Ext: 10641 | R164: SI | S164: NO | T164: NO | U164: SI | V164: Pública clasificada | W164: C81032021-Tipo de información Pública clasificada-Garantizar la atención de empresas mipymes afiliadas a positiva compañía de seguros, lo que contribuye al cumplimiento de la exigencia legal sobre la implementación del sistema de gestión de seguridad y salud en el trabajo y estándares mínimos, y al logro de los objetivos estratégicos de fidelización y la satisfacción de las necesidades y expectativas de los clientes.
A165: Promoción y Prevención | B165: Gcia. Administración del Riesgo | C165: NO | D165: C78072021 | E165: 93141808 | F165: Servicios integrales en rol asesoría por proyecto en prevención para asesoría, asistencia técnica y capacitación interdisciplinaria en prevención de riesgos laborales de conformidad con el marco legal colombiano vigente en empresas afiliadas a la zona santander | G165: 1/01/2021 | H165: 1 | I165: 30/04/2021 | J165: 3.966666667 | K165: Invitación directa | L165: PromociónyPrevención | M165: 1060000000 | N165: 1060000000 | O165: NO | P165: NA | Q165: Gerencia de Abastecimiento Estratégico contratacion@positiva.gov.co PBX: (1)6502200 Ext: 10641 | R165: SI | S165: NO | T165: NO | U165: SI | V165: Pública clasificada | W165: C78072021-Tipo de información Pública clasificada-Servicios integrales en rol asesoría por proyecto en prevención para asesoría, asistencia técnica y capacitación interdisciplinaria en prevención de riesgos laborales de conformidad con el marco legal colombiano vigente en empresas afiliadas a la zona santander
A166: Promoción y Prevención | B166: Gcia. Administración del Riesgo | C166: SI | D166: C78122021 | E166: 93141808 | F166: App zona santander | G166: 1/05/2021 | H166: 5 | I166: 31/12/2021 | J166: 8.133333333 | K166: Invitación cerrada | L166: PromociónyPrevención | M166: 1056000000 | N166: 1056000000 | O166: NO | P166: NA | Q166: Gerencia de Abastecimiento Estratégico contratacion@positiva.gov.co PBX: (1)6502200 Ext: 10641 | R166: SI | S166: NO | T166: NO | U166: SI | V166: Pública clasificada | W166: C78122021-Tipo de información Pública clasificada-App zona santander
A167: Promoción y Prevención | B167: Gcia. Administración del Riesgo | C167: NO | D167: C83072021 | E167: 93141808 | F167: Continuar con el desarrollo del proyecto de automatización de los procesos de pyp a través de alissta® sum y desarrollo evolutivo de alissta® en las necesidades de las empresas para facilitar la implementación del sistema de gestión en seguridad y salud en el trabajo. | G167: 19/12/2019 | H167: 12 | I167: 31/05/2021 | J167: 17.63333333 | K167: Invitación directa | L167: PromociónyPrevención | M167: 1050139037 | N167: 1050139037 | O167: NO | P167: NA | Q167: Gerencia de Abastecimiento Estratégico contratacion@positiva.gov.co PBX: (1)6502200 Ext: 10641 | R167: SI | S167: NO | T167: NO | U167: SI | V167: Pública clasificada | W167: C83072021-Tipo de información Pública clasificada-Continuar con el desarrollo del proyecto de automatización de los procesos de pyp a través de alissta® sum y desarrollo evolutivo de alissta® en las necesidades de las empresas para facilitar la implementación del sistema de gestión en seguridad y salud en el trabajo.
A168: Promoción y Prevención | B168: Gcia. Administración del Riesgo | C168: SI | D168: C77042021 | E168: 93141808 | F168: Servicios en empresas clinica del occidente sa, ese hospital universitario de la samaritana,ministerio de vivienda ciudad y territorio y grasco ltda, entre otras, para la prestacion de la asesoría de las actividades en plan básico (programa estructura empresarial, programa de preparación y atención de emergencias, programa de prevención y protección colectiva e individual, programa promoción y prevención en salud, programa de investigación de incidencia y accidentes de trabajo), plan avanzado (programa de gestión para el control de incidentes y accidentes de trabajo, programa de gestión prevención de la enfermedad profesional) plan especializado (programas de vigilancia epidemiológico) plan gestión integral (sistema de gestión en s&so – oshas 18001) se proyectan para el próximo año 18,600 horas de ejecución | G168: 1/01/2021 | H168: 1 | I168: 31/12/2021 | J168: 12.13333333 | K168: Invitación directa | L168: PromociónyPrevención | M168: 1000000000 | N168: 1000000000 | O168: NO | P168: NA | Q168: Gerencia de Abastecimiento Estratégico contratacion@positiva.gov.co PBX: (1)6502200 Ext: 10641 | R168: SI | S168: NO | T168: NO | U168: SI | V168: Pública clasificada | W168: C77042021-Tipo de información Pública clasificada-Servicios en empresas clinica del occidente sa, ese hospital universitario de la samaritana,ministerio de vivienda ciudad y territorio y grasco ltda, entre otras, para la prestacion de la asesoría de las actividades en plan básico (programa estructura empresarial, programa de preparación y atención de emergencias, programa de prevención y protección colectiva e individual, programa promoción y prevención en salud, programa de investigación de incidencia y accidentes de trabajo), plan avanzado (programa de gestión para el control de incidentes y accidentes de trabajo, programa de gestión prevención de la enfermedad profesional) plan especializado (programas de vigilancia epidemiológico) plan gestión integral (sistema de gestión en s&so – oshas 18001) se proyectan para el próximo año 18,600 horas de ejecución
A169: Promoción y Prevención | B169: Gcia. Administración del Riesgo | C169: NO | D169: C78182021 | E169: 80111701 | F169: prestación de servicios de Promoción y Prevención para implementar, mejorar y/o mantener actividades de asesoría técnica del Sistema de Gestión de Seguridad y Salud en Trabajo, con base en los Programas de la Estrategia POSITIVA CREA del Modelo de Gestión POSITIVA SUMA en PLAN ESPECIALIZADO - Programas de Vigilancia Epidemiológica para el acompañamiento de las empresas afiliadas a POSITIVA COMPAÑÍA DE SEGUROS en Zonas Antioquia, Atlántico, Bogotá, Santander y Valle en la modalidad de atención Gran Empresa | G169: 2021-02-17 | H169: 2 | I169: 2021-11-30 | J169: 9 | K169: Invitación directa | L169: PromociónyPrevención | M169: 400000000 | N169: 400000000 | O169: NO | P169: NA | Q169: Gerencia de Abastecimiento Estratégico contratacion@positiva.gov.co PBX: (1)6502200 Ext: 10641 | R169: SI | S169: NO | T169: NO | U169: SI | V169: Pública clasificada | W169: C78182021 -Tipo de información Pública clasificada-prestación de servicios de Promoción y Prevención para implementar, mejorar y/o mantener actividades de asesoría técnica del Sistema de Gestión de Seguridad y Salud en Trabajo, con base en los Programas de la Estrategia POSITIVA CREA del Modelo de Gestión POSITIVA SUMA en PLAN ESPECIALIZADO - Programas de Vigilancia Epidemiológica para el acompañamiento de las empresas afiliadas a POSITIVA COMPAÑÍA DE SEGUROS en Zonas Antioquia, Atlántico, Bogotá, Santander y Valle en la modalidad de atención Gran Empresa
A170: Promoción y Prevención | B170: Gcia. Administración del Riesgo | C170: NO | D170: C75012021 | E170: 93141808 | F170: Prestación de servicios integrales para brindar acompañamiento, asistencia técnica y capacitación en el sistema de gestión de seguridad y salud en el trabajo de confirmadad con el marco legal colombiano vigente para la prevención de riesgo laborales, con el equipo interdisciplinario, en empresas afiliadas a positiva compañía de seguros en la zona antioquia, que le sean asignadas al proveedor, también el inicio de nuevos clientes como el municipio de medellin | G170: 4/01/2021 | H170: 1 | I170: 30/04/2021 | J170: =_xlfn.DAYS(I170,G170)/30 -> 3.866666667 | K170: Invitación directa | L170: PromociónyPrevención | M170: 945410420 | N170: 945410420 | O170: NO | P170: NA | Q170: Gerencia de Abastecimiento Estratégico contratacion@positiva.gov.co PBX: (1)6502200 Ext: 10641 | R170: SI | S170: NO | T170: NO | U170: SI | V170: Pública clasificada | W170: C75012021-Tipo de información Pública clasificada-Prestación de servicios integrales para brindar acompañamiento, asistencia técnica y capacitación en el sistema de gestión de seguridad y salud en el trabajo de confirmadad con el marco legal colombiano vigente para la prevención de riesgo laborales, con el equipo interdisciplinario, en empresas afiliadas a positiva compañía de seguros en la zona antioquia, que le sean asignadas al proveedor, también el inicio de nuevos clientes como el municipio de medellin
A171: Promoción y Prevención | B171: Gcia. Administración del Riesgo | C171: SI | D171: C82362021 | E171: 93141808 93141811 | F171: Prestación de servicios de Promoción y Prevención para implementar, mejorar y/o mantener actividades de asesoría técnica del Sistema de Gestión de Seguridad y Salud en Trabajo, con base en los Programas de la Estrategia POSITIVA CREA del Modelo de Gestión POSITIVA SUMA, en PLAN BASICO Preparación y Atención de Emergencias y Protección Colectiva e Individual, para los servidores de la Fiscalía General de la Nación en la ciudad de Barranquilla. | G171: 2021-02-19 | H171: 2 | I171: 2021-11-30 | J171: 9 | K171: Invitación directa | L171: PromociónyPrevención | M171: 152000000 | N171: 152000000 | O171: NO | P171: NA | Q171: Gerencia de Abastecimiento Estratégico contratacion@positiva.gov.co PBX: (1)6502200 Ext: 10641 | R171: SI | S171: NO | T171: NO | U171: SI | V171: Pública clasificada | W171: C82362021-Tipo de información Pública clasificada-Prestación de servicios de Promoción y Prevención para implementar, mejorar y/o mantener actividades de asesoría técnica del Sistema de Gestión de Seguridad y Salud en Trabajo, con base en los Programas de la Estrategia POSITIVA CREA del Modelo de Gestión POSITIVA SUMA, en PLAN BASICO Preparación y Atención de Emergencias y Protección Colectiva e Individual, para los servidores de la Fiscalía General de la Nación en la ciudad de Barranquilla.
A172: Promoción y Prevención | B172: Gcia. Administración del Riesgo | C172: SI | D172: C77102021 | E172: 93141808 | F172: Servicios en empresas clientes representativos para la sucursales cundinamarca, bogota coordinadora y gerencia corredores como procuraduría, je jaimes, invima, anla, superintendencia de industria y comercio, agencia de desarrollo rural, ministerio de educación, grupo grasco entre otras, para la prestacion de actividades de asesoría en plan básico (programa estructura empresarial, programa de preparación y atención de emergencias, programa de prevención y protección colectiva e individual, programa promoción y prevención en salud, programa de investigación de incidencia y accidentes de trabajo), plan avanzado (programa de gestión para el control de incidentes y accidentes de trabajo, programa de gestión prevención de la enfermedad profesional) plan especializado (programas de vigilancia epidemiológico) plan gestión integral (sistema de gestión en s&so – oshas 18001) se proyectan para el próximo año 14.879 horas de ejecución | G172: 1/01/2021 | H172: 1 | I172: 31/12/2021 | J172: =_xlfn.DAYS(I172,G172)/30 -> 12.13333333 | K172: Invitación directa | L172: PromociónyPrevención | M172: 800000000 | N172: 800000000 | O172: NO | P172: NA | Q172: Gerencia de Abastecimiento Estratégico contratacion@positiva.gov.co PBX: (1)6502200 Ext: 10641 | R172: SI | S172: NO | T172: NO | U172: SI | V172: Pública clasificada | W172: C77102021-Tipo de información Pública clasificada-Servicios en empresas clientes representativos para la sucursales cundinamarca, bogota coordinadora y gerencia corredores como procuraduría, je jaimes, invima, anla, superintendencia de industria y comercio, agencia de desarrollo rural, ministerio de educación, grupo grasco entre otras, para la prestacion de actividades de asesoría en plan básico (programa estructura empresarial, programa de preparación y atención de emergencias, programa de prevención y protección colectiva e individual, programa promoción y prevención en salud, programa de investigación de incidencia y accidentes de trabajo), plan avanzado (programa de gestión para el control de incidentes y accidentes de trabajo, programa de gestión prevención de la enfermedad profesional) plan especializado (programas de vigilancia epidemiológico) plan gestión integral (sistema de gestión en s&so – oshas 18001) se proyectan para el próximo año 14.879 horas de ejecución
A173: Promoción y Prevención | B173: Gcia. Administración del Riesgo | C173: SI | D173: C77032021 | E173: 93141808 | F173: Autoprestacion de servicios en promoción y prevención en empresa cliente hospital universitario san ignacio para la prestacion de actividades en plan básico (programa de preparación y atención de emergencias, programa de prevención y protección colectiva e individual, programa promoción y prevención en salud, programa de investigación de incidencia y accidentes de trabajo), plan avanzado (programa de gestión para el control de incidentes y accidentes de trabajo, programa de gestión prevención de la enfermedad profesional) plan especializado (programas de vigilancia epidemiológico) se proyectan para el próximo año 14,470 horas de ejecución | G173: 1/01/2021 | H173: 1 | I173: 30/11/2021 | J173: 11.1 | K173: Invitación directa | L173: PromociónyPrevención | M173: 778000000 | N173: 778000000 | O173: NO | P173: NA | Q173: Gerencia de Abastecimiento Estratégico contratacion@positiva.gov.co PBX: (1)6502200 Ext: 10641 | R173: SI | S173: NO | T173: NO | U173: SI | V173: Pública clasificada | W173: C77032021-Tipo de información Pública clasificada-Autoprestacion de servicios en promoción y prevención en empresa cliente hospital universitario san ignacio para la prestacion de actividades en plan básico (programa de preparación y atención de emergencias, programa de prevención y protección colectiva e individual, programa promoción y prevención en salud, programa de investigación de incidencia y accidentes de trabajo), plan avanzado (programa de gestión para el control de incidentes y accidentes de trabajo, programa de gestión prevención de la enfermedad profesional) plan especializado (programas de vigilancia epidemiológico) se proyectan para el próximo año 14,470 horas de ejecución
A174: Promoción y Prevención | B174: Gcia. Administración del Riesgo | C174: NO | D174: C83032021 | E174: 93141808 | F174: Suministro, entrega y distribución de elementos de protección personal para la prevención, control y mitigación por exposición ocupacional de los efectos del covid-19, en las empresas afiliadas a positiva compañía de seguros, con base en los programas de la estrategia positiva crea del modelo de gestión positiva suma en plan basico - promoción y prevención en salud, plan avanzado - gestión para la prevención de la enfermedad laboral, para el acompañamiento de las empresas afiliadas a positiva compañía de seguros a nivel nacional de acuerdo con el anexo no. 1 denominado “especificaciones técnicas mínimas de los elementos de protección personal”. | G174: 11/11/2020 | H174: 11 | I174: 28/02/2021 | J174: 3.633333333 | K174: Invitación directa | L174: PromociónyPrevención | M174: 705196800 | N174: 705196800 | O174: NO | P174: NA | Q174: Gerencia de Abastecimiento Estratégico contratacion@positiva.gov.co PBX: (1)6502200 Ext: 10641 | R174: SI | S174: NO | T174: NO | U174: SI | V174: Pública clasificada | W174: C83032021-Tipo de información Pública clasificada-Suministro, entrega y distribución de elementos de protección personal para la prevención, control y mitigación por exposición ocupacional de los efectos del covid-19, en las empresas afiliadas a positiva compañía de seguros, con base en los programas de la estrategia positiva crea del modelo de gestión positiva suma en plan basico - promoción y prevención en salud, plan avanzado - gestión para la prevención de la enfermedad laboral, para el acompañamiento de las empresas afiliadas a positiva compañía de seguros a nivel nacional de acuerdo con el anexo no. 1 denominado “especificaciones técnicas mínimas de los elementos de protección personal”.
A175: Promoción y Prevención | B175: Gcia. Administración del Riesgo | C175: SI | D175: C77392021 | E175: 93141808 | F175: Continuidad de servicios para los planes de trabajo de los clientes de la sucursal bogota cundinamarca, proveedor con contratos en vigencias pasadas y prestacion de servicios para los clientes de la sucursal. | G175: 15/01/2021 | H175: 1 | I175: 31/12/2021 | J175: 11.66666667 | K175: Invitación directa | L175: PromociónyPrevención | M175: 700000000 | N175: 700000000 | O175: NO | P175: NA | Q175: Gerencia de Abastecimiento Estratégico contratacion@positiva.gov.co PBX: (1)6502200 Ext: 10641 | R175: SI | S175: NO | T175: NO | U175: SI | V175: Pública clasificada | W175: C77392021-Tipo de información Pública clasificada-Continuidad de servicios para los planes de trabajo de los clientes de la sucursal bogota cundinamarca, proveedor con contratos en vigencias pasadas y prestacion de servicios para los clientes de la sucursal.
A176: Promoción y Prevención | B176: Gcia. Administración del Riesgo | C176: SI | D176: C80142021 | E176: 93141808 | F176: Garantizar la atencion en p y p en el marco de la promesa de valor, dando cumplimiento a los aspectos legales ygenerando clienes fidelizados | G176: 8/01/2021 | H176: 1 | I176: 30/11/2021 | J176: 10.86666667 | K176: Invitación directa | L176: PromociónyPrevención | M176: 700000000 | N176: 700000000 | O176: NO | P176: NA | Q176: Gerencia de Abastecimiento Estratégico contratacion@positiva.gov.co PBX: (1)6502200 Ext: 10641 | R176: SI | S176: NO | T176: NO | U176: SI | V176: Pública clasificada | W176: C80142021-Tipo de información Pública clasificada-Garantizar la atencion en p y p en el marco de la promesa de valor, dando cumplimiento a los aspectos legales ygenerando clienes fidelizados
A177: Promoción y Prevención | B177: Gcia. Administración del Riesgo | C177: NO | D177: C83062021 | E177: 93141808 | F177: Suministro, entrega y distribución de elementos de protección personal para la prevención, control y mitigación por exposición ocupacional de los efectos del covid-19, en las empresas afiliadas a positiva compañía de seguros, con base en los programas de la estrategia positiva crea del modelo de gestión positiva suma en plan basico - promoción y prevención en salud, plan avanzado - gestión para la prevención de la enfermedad laboral, para el acompañamiento de las empresas afiliadas a positiva compañía de seguros a nivel nacional de acuerdo con el anexo no. 1 denominado “especificaciones técnicas mínimas de los elementos de protección personal”. | G177: 4/11/2020 | H177: 11 | I177: 28/02/2021 | J177: 3.866666667 | K177: Invitación directa | L177: PromociónyPrevención | M177: 698544000 | N177: 698544000 | O177: NO | P177: NA | Q177: Gerencia de Abastecimiento Estratégico contratacion@positiva.gov.co PBX: (1)6502200 Ext: 10641 | R177: SI | S177: NO | T177: NO | U177: SI | V177: Pública clasificada | W177: C83062021-Tipo de información Pública clasificada-Suministro, entrega y distribución de elementos de protección personal para la prevención, control y mitigación por exposición ocupacional de los efectos del covid-19, en las empresas afiliadas a positiva compañía de seguros, con base en los programas de la estrategia positiva crea del modelo de gestión positiva suma en plan basico - promoción y prevención en salud, plan avanzado - gestión para la prevención de la enfermedad laboral, para el acompañamiento de las empresas afiliadas a positiva compañía de seguros a nivel nacional de acuerdo con el anexo no. 1 denominado “especificaciones técnicas mínimas de los elementos de protección personal”.
A178: Promoción y Prevención | B178: Gcia. Administración del Riesgo | C178: SI | D178: C81072021 | E178: 93141808 | F178: Garantizar la atención de empresas mipymes afiliadas a positiva compañía de seguros, lo que contribuye al cumplimiento de la exigencia legal sobre la implementación del sistema de gestión de seguridad y salud en el trabajo y estándares mínimos, y al logro de los objetivos estratégicos de fidelización y la satisfacción de las necesidades y expectativas de los clientes. | G178: 1/01/2021 | H178: 1 | I178: 31/12/2021 | J178: 12.13333333 | K178: Invitación directa | L178: PromociónyPrevención | M178: 675000000 | N178: 675000000 | O178: NO | P178: NA | Q178: Gerencia de Abastecimiento Estratégico contratacion@positiva.gov.co PBX: (1)6502200 Ext: 10641 | R178: SI | S178: NO | T178: NO | U178: SI | V178: Pública clasificada | W178: C81072021-Tipo de información Pública clasificada-Garantizar la atención de empresas mipymes afiliadas a positiva compañía de seguros, lo que contribuye al cumplimiento de la exigencia legal sobre la implementación del sistema de gestión de seguridad y salud en el trabajo y estándares mínimos, y al logro de los objetivos estratégicos de fidelización y la satisfacción de las necesidades y expectativas de los clientes.
A179: Promoción y Prevención | B179: Gcia. Administración del Riesgo | C179: SI | D179: C77402021 | E179: 93141808 | F179: Continuidad de servicios para los planes de trabajo de los clientes de la sucursal bogota cundinamarca, proveedor con contratos en vigencias pasadas y prestacion de servicios para los clientes de la sucursal. | G179: 15/01/2021 | H179: 1 | I179: 31/12/2021 | J179: 11.66666667 | K179: Invitación directa | L179: PromociónyPrevención | M179: 600000000 | N179: 600000000 | O179: NO | P179: NA | Q179: Gerencia de Abastecimiento Estratégico contratacion@positiva.gov.co PBX: (1)6502200 Ext: 10641 | R179: SI | S179: NO | T179: NO | U179: SI | V179: Pública clasificada | W179: C77402021-Tipo de información Pública clasificada-Continuidad de servicios para los planes de trabajo de los clientes de la sucursal bogota cundinamarca, proveedor con contratos en vigencias pasadas y prestacion de servicios para los clientes de la sucursal.
A180: Promoción y Prevención | B180: Gcia. Administración del Riesgo | C180: NO | D180: C77142021 | E180: 93141808 | F180: Servicios en empresas clientes representativas para la sucursales cundinamarca, bogota coordinadora y gerencia corredores como el sena, procuraduria general de la nación, corporacion hospitalaria juan ciudad, salud total eps-s, unidad administrativa especial de gestion de restitucion de tierras despojadas, rts sas, icontec, instituto nacional de vias, positiva compañia de seguros s.a., fundacion universtaria autonoma de colombia, superintendencia nacional de salud, entre otras, para la prestacion de las activiades en plan avanzado gestión en prevención de la enfermedad profesional (dme) y plan especializado programas de vigilancia epidemiológica (dme) se proyectan para el próximo año 9,299 horas de ejecución | G180: 31/03/2020 | H180: 3 | I180: 30/04/2021 | J180: 13.16666667 | K180: Invitación directa | L180: PromociónyPrevención | M180: 500000000 | N180: 500000000 | O180: NO | P180: NA | Q180: Gerencia de Abastecimiento Estratégico contratacion@positiva.gov.co PBX: (1)6502200 Ext: 10641 | R180: SI | S180: NO | T180: NO | U180: SI | V180: Pública clasificada | W180: C77142021-Tipo de información Pública clasificada-Servicios en empresas clientes representativas para la sucursales cundinamarca, bogota coordinadora y gerencia corredores como el sena, procuraduria general de la nación, corporacion hospitalaria juan ciudad, salud total eps-s, unidad administrativa especial de gestion de restitucion de tierras despojadas, rts sas, icontec, instituto nacional de vias, positiva compañia de seguros s.a., fundacion universtaria autonoma de colombia, superintendencia nacional de salud, entre otras, para la prestacion de las activiades en plan avanzado gestión en prevención de la enfermedad profesional (dme) y plan especializado programas de vigilancia epidemiológica (dme) se proyectan para el próximo año 9,299 horas de ejecución
A181: Promoción y Prevención | B181: Gcia. Administración del Riesgo | C181: SI | D181: C77342021 | E181: 93141808 | F181: Continuidad de servicios para los planes de trabajo de los clientes de la zona bogota y sucursal guajira, proveedor con contratos en vigencias pasadas y prestacion de servicios para los clientes de la sucursal. contrato transversal para empresas de las sucursales bogota coordinadora, cundinamarca, corredores y guajira. | G181: 15/01/2021 | H181: =MONTH(G181) -> 1 | I181: 30/11/2021 | J181: 10.63333333 | K181: Invitación directa | L181: PromociónyPrevención | M181: 500000000 | N181: 500000000 | O181: NO | P181: NA | Q181: Gerencia de Abastecimiento Estratégico contratacion@positiva.gov.co PBX: (1)6502200 Ext: 10641 | R181: SI | S181: NO | T181: NO | U181: SI | V181: Pública clasificada | W181: C77342021-Tipo de información Pública clasificada-Continuidad de servicios para los planes de trabajo de los clientes de la zona bogota y sucursal guajira, proveedor con contratos en vigencias pasadas y prestacion de servicios para los clientes de la sucursal. contrato transversal para empresas de las sucursales bogota coordinadora, cundinamarca, corredores y guajira.
A182: Promoción y Prevención | B182: Gcia. Administración del Riesgo | C182: SI | D182: C77122021 | E182: 93141808 | F182: Servicios en empresas clientes representativos para la sucursales cundinamarca, bogota coordinadora y gerencia corredores como salgado melendez,, je jaimes, invima, grupon empresarial tecna, laboratorios chalver, entre otras, para la prestacion de actividades de asesoría en plan básico (programa de preparación y atención de emergencias, programa de prevención y protección colectiva e individual), plan avanzado (programa de gestión para el control de incidentes y accidentes de trabajo, programa de gestión prevención de la enfermedad profesional) se proyectan para el próximo año 8.369 horas de ejecución. | G182: 1/01/2021 | H182: 1 | I182: 30/11/2021 | J182: 11.1 | K182: Invitación directa | L182: PromociónyPrevención | M182: 450000000 | N182: 450000000 | O182: NO | P182: NA | Q182: Gerencia de Abastecimiento Estratégico contratacion@positiva.gov.co PBX: (1)6502200 Ext: 10641 | R182: SI | S182: NO | T182: NO | U182: SI | V182: Pública clasificada | W182: C77122021-Tipo de información Pública clasificada-Servicios en empresas clientes representativos para la sucursales cundinamarca, bogota coordinadora y gerencia corredores como salgado melendez,, je jaimes, invima, grupon empresarial tecna, laboratorios chalver, entre otras, para la prestacion de actividades de asesoría en plan básico (programa de preparación y atención de emergencias, programa de prevención y protección colectiva e individual), plan avanzado (programa de gestión para el control de incidentes y accidentes de trabajo, programa de gestión prevención de la enfermedad profesional) se proyectan para el próximo año 8.369 horas de ejecución.
A183: Promoción y Prevención | B183: Gcia. Administración del Riesgo | C183: SI | D183: C77592021 | E183: 93141808 | F183: "de acuerdo con los planes de trabajo establecidos para las empresas afiliadas a positiva compañia de seguros en la zona bogotá; gerencia de corredores se contemplan actividades de asesoría estratégica orientada a plantear soluciones a los problemas que presenta la empresa en materia de seguridad y salud en el trabajo con el fin de generar impacto en la disminución de la siniestralidad." | G183: 15/01/2021 | H183: 1 | I183: 30/11/2021 | J183: 10.63333333 | K183: Invitación directa | L183: PromociónyPrevención | M183: 450000000 | N183: 450000000 | O183: NO | P183: NA | Q183: Gerencia de Abastecimiento Estratégico contratacion@positiva.gov.co PBX: (1)6502200 Ext: 10641 | R183: SI | S183: NO | T183: NO | U183: SI | V183: Pública clasificada | W183: C77592021-Tipo de información Pública clasificada-"de acuerdo con los planes de trabajo establecidos para las empresas afiliadas a positiva compañia de seguros en la zona bogotá; gerencia de corredores se contemplan actividades de asesoría estratégica orientada a plantear soluciones a los problemas que presenta la empresa en materia de seguridad y salud en el trabajo con el fin de generar impacto en la disminución de la siniestralidad."
A184: Promoción y Prevención | B184: Gcia. Administración del Riesgo | C184: SI | D184: C81012021 | E184: 93141808 | F184: Garantizar la atención de empresas mipymes afiliadas a positiva compañía de seguros, lo que contribuye al cumplimiento de la exigencia legal sobre la implementación del sistema de gestión de seguridad y salud en el trabajo y estándares mínimos, y al logro de los objetivos estratégicos de fidelización y la satisfacción de las necesidades y expectativas de los clientes. | G184: 1/01/2020 | H184: 1 | I184: 31/12/2020 | J184: 12.16666667 | K184: Invitación directa | L184: PromociónyPrevención | M184: 435000000 | N184: 435000000 | O184: NO | P184: NA | Q184: Gerencia de Abastecimiento Estratégico contratacion@positiva.gov.co PBX: (1)6502200 Ext: 10641 | R184: SI | S184: NO | T184: NO | U184: SI | V184: Pública clasificada | W184: C81012021-Tipo de información Pública clasificada-Garantizar la atención de empresas mipymes afiliadas a positiva compañía de seguros, lo que contribuye al cumplimiento de la exigencia legal sobre la implementación del sistema de gestión de seguridad y salud en el trabajo y estándares mínimos, y al logro de los objetivos estratégicos de fidelización y la satisfacción de las necesidades y expectativas de los clientes.
A185: Promoción y Prevención | B185: Gcia. Administración del Riesgo | C185: SI | D185: C82512021 | E185: 93141808 | F185: Garantizar la atención de empresas con el fin de dar cumplimiento legal en materia de riesgos laborales, la organización del proceso misional de promoción y prevención que define la intervención del riesgo en las empresas afiliadas a positiva compañía de seguros s.a. con accidentalidad leves, graves y mortales, al igual las que presentan alta frecuencia y severidad, mediante la asesoría, investigación por parte de la arl (cuando aplique), inspección / verificación, seguimiento a recomendaciones, con el objetivo de mitigar los riesgos y así disminuir el índice de siniestralidad, al igual que la intervención de las empresas que presenten enfermedades laborales y produzcan la muerte del trabajador, mediante la investigación e identificación de las causas con el objetivo de mitigar el o los riesgos. | G185: 1/01/2020 | H185: 1 | I185: 31/12/2020 | J185: 12.16666667 | K185: Invitación directa | L185: PromociónyPrevención | M185: 430000000 | N185: 430000000 | O185: NO | P185: NA | Q185: Gerencia de Abastecimiento Estratégico contratacion@positiva.gov.co PBX: (1)6502200 Ext: 10641 | R185: SI | S185: NO | T185: NO | U185: SI | V185: Pública clasificada | W185: C82512021-Tipo de información Pública clasificada-Garantizar la atención de empresas con el fin de dar cumplimiento legal en materia de riesgos laborales, la organización del proceso misional de promoción y prevención que define la intervención del riesgo en las empresas afiliadas a positiva compañía de seguros s.a. con accidentalidad leves, graves y mortales, al igual las que presentan alta frecuencia y severidad, mediante la asesoría, investigación por parte de la arl (cuando aplique), inspección / verificación, seguimiento a recomendaciones, con el objetivo de mitigar los riesgos y así disminuir el índice de siniestralidad, al igual que la intervención de las empresas que presenten enfermedades laborales y produzcan la muerte del trabajador, mediante la investigación e identificación de las causas con el objetivo de mitigar el o los riesgos.
A186: Promoción y Prevención | B186: Gcia. Administración del Riesgo | C186: SI | D186: C77782021 | E186: 93141808 | F186: Servicios de promocion y prevencion zona bogota suc corredores | G186: 1/02/2021 | H186: 2 | I186: 30/11/2021 | J186: 10.06666667 | K186: Invitación directa | L186: PromociónyPrevención | M186: 424560000 | N186: 424560000 | O186: NO | P186: NA | Q186: Gerencia de Abastecimiento Estratégico contratacion@positiva.gov.co PBX: (1)6502200 Ext: 10641 | R186: SI | S186: NO | T186: NO | U186: SI | V186: Pública clasificada | W186: C77782021-Tipo de información Pública clasificada-Servicios de promocion y prevencion zona bogota suc corredores
A187: Promoción y Prevención | B187: Gcia. Administración del Riesgo | C187: SI | D187: C78102021 | E187: 93141808 | F187: App zona atlantico | G187: 1/06/2021 | H187: 6 | I187: 31/12/2021 | J187: 7.1 | K187: Invitación cerrada | L187: PromociónyPrevención | M187: 402997000 | N187: 402997000 | O187: NO | P187: NA | Q187: Gerencia de Abastecimiento Estratégico contratacion@positiva.gov.co PBX: (1)6502200 Ext: 10641 | R187: SI | S187: NO | T187: NO | U187: SI | V187: Pública clasificada | W187: C78102021-Tipo de información Pública clasificada-App zona atlantico
A188: Promoción y Prevención | B188: Gcia. Administración del Riesgo | C188: SI | D188: C82152021 | E188: 93141808 | F188: El riesgo psicosocial es un riesgo de perjuicio del bienestar fisico y psicologico de los trabajadores que deriva de la interaccion entre el diseño y la gestion del trabajo, dentro del contexto organizativo y social. la exposicion a los riesgos psicosociales puede provocar estrés entre los trabajadores, que dan como resultado un rendimiento escaso y, cuando se prolonga, graves problemas de salud. la vida de trabajo se ve afectada por la aceleracion general del ritmo de vida, lo que contribuye a la intensificacion del trabajo, una presion del tiempo constante, la multitarea y la necesidad de obtener nuevos conocimientos para mantener la situacion actual. los estudios han demostrado que los periodos breves de exposicion a peligros psicosociales y de estrés estan relacionados con reacciones como alteraciones del sueño, cambios de humor, fatiga, dolores de cabeza e irritabilidad de estomago. igualmente, se ha demostrado que una exposicion prolongada a los riesgos psicosociales se asocia a una amplia gama de resultados de salud fisica y mental, incluida la ansiedad, la depresion, los intentos de suicidio, los problemas del sueño, los dolores de espalda, la fatiga cronica, los problemas digestivos, enfermedades autoinmunes, sistema inmunologico deficiente, enfermedades cardiovasculares, alta presion sanguinea y ulceras pépticas. entre otros efectos del estrés y los riesgos psicosociales en el trabajo se incluye la tension emocional y la reduccion de la calidad de vida que experimentan las personas fisicas afectadas, por tanto se considera prioritario continuar la implementacion de asesorias especializadas que propendan por contribuir a que la poblacion trabajadora de la fiscalia general de la nacion, cuente con factores protectores que le permitan hacer frente a las demandas del entorno social, con fines de reducir los efectos negativos para la salud y la productividad. estas intervenciones deben realizarse con un enfoque experiencial, a través de técnicas diferenciales sustentadas en estudios que demuestren su efectividad | G188: 2/02/2021 | H188: 2 | I188: 31/12/2021 | J188: 11.06666667 | K188: Invitación directa | L188: PromociónyPrevención | M188: 400000000 | N188: 400000000 | O188: NO | P188: NA | Q188: Gerencia de Abastecimiento Estratégico contratacion@positiva.gov.co PBX: (1)6502200 Ext: 10641 | R188: SI | S188: NO | T188: NO | U188: SI | V188: Pública clasificada | W188: C82152021-Tipo de información Pública clasificada-El riesgo psicosocial es un riesgo de perjuicio del bienestar fisico y psicologico de los trabajadores que deriva de la interaccion entre el diseño y la gestion del trabajo, dentro del contexto organizativo y social. la exposicion a los riesgos psicosociales puede provocar estrés entre los trabajadores, que dan como resultado un rendimiento escaso y, cuando se prolonga, graves problemas de salud. la vida de trabajo se ve afectada por la aceleracion general del ritmo de vida, lo que contribuye a la intensificacion del trabajo, una presion del tiempo constante, la multitarea y la necesidad de obtener nuevos conocimientos para mantener la situacion actual. los estudios han demostrado que los periodos breves de exposicion a peligros psicosociales y de estrés estan relacionados con reacciones como alteraciones del sueño, cambios de humor, fatiga, dolores de cabeza e irritabilidad de estomago. igualmente, se ha demostrado que una exposicion prolongada a los riesgos psicosociales se asocia a una amplia gama de resultados de salud fisica y mental, incluida la ansiedad, la depresion, los intentos de suicidio, los problemas del sueño, los dolores de espalda, la fatiga cronica, los problemas digestivos, enfermedades autoinmunes, sistema inmunologico deficiente, enfermedades cardiovasculares, alta presion sanguinea y ulceras pépticas. entre otros efectos del estrés y los riesgos psicosociales en el trabajo se incluye la tension emocional y la reduccion de la calidad de vida que experimentan las personas fisicas afectadas, por tanto se considera prioritario continuar la implementacion de asesorias especializadas que propendan por contribuir a que la poblacion trabajadora de la fiscalia general de la nacion, cuente con factores protectores que le permitan hacer frente a las demandas del entorno social, con fines de reducir los efectos negativos para la salud y la productividad. estas intervenciones deben realizarse con un enfoque experiencial, a través de técnicas diferenciales sustentadas en estudios que demuestren su efectividad
A189: Promoción y Prevención | B189: Gcia. Administración del Riesgo | C189: SI | D189: C82162021 | E189: 93141808 | F189: "con fines de dar cumplimiento a lo establecido en el sistema de gestion en seguridad y salud en el trabajo se requiere contar con servicios de asesoria y asistencia tecnica especializada para la identificacion e intervencion de factores de riesgo psicosocial, con cobertura a nivel nacional, asegurando rigurosidad cientifica en la evaluacion y los diseños de planes de accion orientados a prevenir, mejorar y gestionar la salud psicosocial conforme a los riesgos identificados como prioritarios. para cumplir con los servicios de asesorìa en el orden nacional se requiere contar con sistemas de informacion robustos y eficientes; metodologias efectivas y conocimientos técnicos suficientes, que garanticen la calidad, estabilidad, confiabilidad y la confidencialidad de la informacion, asegurando la tranquilidad y confianza por parte de nuestro cliente fiscalia general de la nacion, frente a la asesoria brindada para cumplir con su sg-sst, particularmente frente a los factores de riesgo psicosocial. el proposito de continuar con con la asesoria especializada de psicologia ocupacional es mantener el servicio de calidad y rigurosidad técnica frente a la identificacion de los factores de riesgo psicosocial y su posterior proceso de intervencion" | G189: 2/02/2021 | H189: 2 | I189: 31/12/2021 | J189: 11.06666667 | K189: Invitación directa | L189: PromociónyPrevención | M189: 400000000 | N189: 400000000 | O189: NO | P189: NA | Q189: Gerencia de Abastecimiento Estratégico contratacion@positiva.gov.co PBX: (1)6502200 Ext: 10641 | R189: SI | S189: NO | T189: NO | U189: SI | V189: Pública clasificada | W189: C82162021-Tipo de información Pública clasificada-"con fines de dar cumplimiento a lo establecido en el sistema de gestion en seguridad y salud en el trabajo se requiere contar con servicios de asesoria y asistencia tecnica especializada para la identificacion e intervencion de factores de riesgo psicosocial, con cobertura a nivel nacional, asegurando rigurosidad cientifica en la evaluacion y los diseños de planes de accion orientados a prevenir, mejorar y gestionar la salud psicosocial conforme a los riesgos identificados como prioritarios. para cumplir con los servicios de asesorìa en el orden nacional se requiere contar con sistemas de informacion robustos y eficientes; metodologias efectivas y conocimientos técnicos suficientes, que garanticen la calidad, estabilidad, confiabilidad y la confidencialidad de la informacion, asegurando la tranquilidad y confianza por parte de nuestro cliente fiscalia general de la nacion, frente a la asesoria brindada para cumplir con su sg-sst, particularmente frente a los factores de riesgo psicosocial. el proposito de continuar con con la asesoria especializada de psicologia ocupacional es mantener el servicio de calidad y rigurosidad técnica frente a la identificacion de los factores de riesgo psicosocial y su posterior proceso de intervencion"
A190: Promoción y Prevención | B190: Gcia. Administración del Riesgo | C190: SI | D190: C80242021 | E190: 93141808 | F190: Prestación de servicios de promoción y prevención para implementar, mejorar y/o mantener actividades de, asesoría, asistencia técnica y de formación en seguridad y salud en el trabajo del plan básico en los programas, (estructura empresarial, preparación y atención ante emergencias, programa de prevención y protección colectiva e individual, programa de promoción y prevención de la salud y programa de investigación de incidentes y accidentes de trabajo), plan avanzado (programa de gestión para el control de incidentes y accidentes de trabajo y programa de gestión en la prevención de la enfermedad laboral) y plan especializado (programa de vigilancia epidemiológica)y el plan de gestion integral sistemas integrados de gestión de la estrategia crea del modelo de gestion positiva suma de acuerdo a los planes de trabajo pactados con la empresas y cargados en el aplicativo gestpos, para empresas de la sucursal coordinadora valle. | G190: 1/01/2021 | H190: 1 | I190: 30/11/2021 | J190: 11.1 | K190: Invitación directa | L190: PromociónyPrevención | M190: 400000000 | N190: 400000000 | O190: NO | P190: NA | Q190: Gerencia de Abastecimiento Estratégico contratacion@positiva.gov.co PBX: (1)6502200 Ext: 10641 | R190: SI | S190: NO | T190: NO | U190: SI | V190: Pública clasificada | W190: C80242021-Tipo de información Pública clasificada-Prestación de servicios de promoción y prevención para implementar, mejorar y/o mantener actividades de, asesoría, asistencia técnica y de formación en seguridad y salud en el trabajo del plan básico en los programas, (estructura empresarial, preparación y atención ante emergencias, programa de prevención y protección colectiva e individual, programa de promoción y prevención de la salud y programa de investigación de incidentes y accidentes de trabajo), plan avanzado (programa de gestión para el control de incidentes y accidentes de trabajo y programa de gestión en la prevención de la enfermedad laboral) y plan especializado (programa de vigilancia epidemiológica)y el plan de gestion integral sistemas integrados de gestión de la estrategia crea del modelo de gestion positiva suma de acuerdo a los planes de trabajo pactados con la empresas y cargados en el aplicativo gestpos, para empresas de la sucursal coordinadora valle.
A191: Promoción y Prevención | B191: Gcia. Administración del Riesgo | C191: SI | D191: C80292021 | E191: 93141808 | F191: Realizar la prestación de servicios mediante actividades de promoción y prevención para implementar, mejorar y/o mantener actividades de asesoría, asistencia técnica y de formación en seguridad y salud en el trabajo del plan basico en los programas, estructura empresarial, preparación y atención ante emergencias, programa de prevención y protección colectiva e individual, programa de promoción y prevención de la salud y programa de investigación de incidentes y accidentes de trabajo, plan avanzado programa de gestión para el control de incidentes y accidentes de trabajo, plan especilizado programa de vigilancia epidemiologica y el plan de gestion integral sistemas integrados de gestión de la estrategia crea del modelo de gestión positiva suma de acuerdo a los planes de trabajo pactados con las empresas y cargados en el aplicativo gestpos, empresas afiliadas a positiva compañía de seguros en la sucursal tipo a coordinadora valle. | G191: 1/01/2021 | H191: 1 | I191: 31/12/2021 | J191: 12.13333333 | K191: Invitación directa | L191: PromociónyPrevención | M191: 400000000 | N191: 400000000 | O191: NO | P191: NA | Q191: Gerencia de Abastecimiento Estratégico contratacion@positiva.gov.co PBX: (1)6502200 Ext: 10641 | R191: SI | S191: NO | T191: NO | U191: SI | V191: Pública clasificada | W191: C80292021-Tipo de información Pública clasificada-Realizar la prestación de servicios mediante actividades de promoción y prevención para implementar, mejorar y/o mantener actividades de asesoría, asistencia técnica y de formación en seguridad y salud en el trabajo del plan basico en los programas, estructura empresarial, preparación y atención ante emergencias, programa de prevención y protección colectiva e individual, programa de promoción y prevención de la salud y programa de investigación de incidentes y accidentes de trabajo, plan avanzado programa de gestión para el control de incidentes y accidentes de trabajo, plan especilizado programa de vigilancia epidemiologica y el plan de gestion integral sistemas integrados de gestión de la estrategia crea del modelo de gestión positiva suma de acuerdo a los planes de trabajo pactados con las empresas y cargados en el aplicativo gestpos, empresas afiliadas a positiva compañía de seguros en la sucursal tipo a coordinadora valle.
A192: Promoción y Prevención | B192: Gcia. Administración del Riesgo | C192: SI | D192: C82062021 | E192: 93141808 | F192: En el marco del cumplimiento legal contemplado en el artículo 11 de la ley 1562 de 2012 del sistema general de riesgos laborales y el desarrollo del sistema de gestión en seguridad y salud en el trabajo en las empresa rama judicial afiliada a positiva compañia de seguros, a través de programas, campañas, acciones educativas y de prevención, dirigidas a promover el autocuidado, fomentar estilos de vida y trabajo saludables, prevención y control de accidentes, preparación y atención de emergencias, capacitación de los comités paritarios de seguridad y salud en el trabajo | G192: 1/02/2021 | H192: 2 | I192: 30/11/2021 | J192: 10.06666667 | K192: Invitación directa | L192: PromociónyPrevención | M192: 350015200 | N192: 350015200 | O192: NO | P192: NA | Q192: Gerencia de Abastecimiento Estratégico contratacion@positiva.gov.co PBX: (1)6502200 Ext: 10641 | R192: SI | S192: NO | T192: NO | U192: SI | V192: Pública clasificada | W192: C82062021-Tipo de información Pública clasificada-En el marco del cumplimiento legal contemplado en el artículo 11 de la ley 1562 de 2012 del sistema general de riesgos laborales y el desarrollo del sistema de gestión en seguridad y salud en el trabajo en las empresa rama judicial afiliada a positiva compañia de seguros, a través de programas, campañas, acciones educativas y de prevención, dirigidas a promover el autocuidado, fomentar estilos de vida y trabajo saludables, prevención y control de accidentes, preparación y atención de emergencias, capacitación de los comités paritarios de seguridad y salud en el trabajo
A193: Promoción y Prevención | B193: Gcia. Administración del Riesgo | C193: NO | D193: C78062021 | E193: 93141808 | F193: Cumplimiento legal contemplado en el parágrafo nº 2 del artículo 11 de la ley 1562 de 2012 el cual determina la necesidad de realizar actividades de promoción y prevención, el decreto compilado 1072 de 2015, resolución 0312 de 2019 en la que se definen los estándares mínimos del sgsst. la necesidad de continuidad de los servicios de pyp en la empresas afiliadas, en todas sus modalidades: educa, acompaña y comunica, teniendo en cuenta que el parágrafo nº 2 del artículo 11 de la ley 1562 de 2012 determina la necesidad de realizar actividades de promoción y prevención. para lograr la cobertura y brindar servicios de asesoría, a la empresas en la modalidad planes regulares afiliadas a positiva compañía de seguros sucursal coordinadora atlantico y punto de atencion san andres., en la vigencia 2021 | G193: 1/01/2021 | H193: 1 | I193: 31/05/2021 | J193: 5 | K193: Invitación directa | L193: PromociónyPrevención | M193: 310000000 | N193: 310000000 | O193: NO | P193: NA | Q193: Gerencia de Abastecimiento Estratégico contratacion@positiva.gov.co PBX: (1)6502200 Ext: 10641 | R193: SI | S193: NO | T193: NO | U193: SI | V193: Pública clasificada | W193: C78062021-Tipo de información Pública clasificada-Cumplimiento legal contemplado en el parágrafo nº 2 del artículo 11 de la ley 1562 de 2012 el cual determina la necesidad de realizar actividades de promoción y prevención, el decreto compilado 1072 de 2015, resolución 0312 de 2019 en la que se definen los estándares mínimos del sgsst. la necesidad de continuidad de los servicios de pyp en la empresas afiliadas, en todas sus modalidades: educa, acompaña y comunica, teniendo en cuenta que el parágrafo nº 2 del artículo 11 de la ley 1562 de 2012 determina la necesidad de realizar actividades de promoción y prevención. para lograr la cobertura y brindar servicios de asesoría, a la empresas en la modalidad planes regulares afiliadas a positiva compañía de seguros sucursal coordinadora atlantico y punto de atencion san andres., en la vigencia 2021
A194: Promoción y Prevención | B194: Gcia. Administración del Riesgo | C194: SI | D194: C77092021 | E194: 93141808 | F194: Servicios en empresas clientes representativos para la sucursales cundinamarca, bogota coordinadora y gerencia corredores como procuraduría, je jaimes, invima, entre otras, para la prestacion de actividades de asesoría en plan básico (programa estructura empresarial, programa de preparación y atención de emergencias, programa de prevención y protección colectiva e individual, programa promoción y prevención en salud, programa de investigación de incidencia y accidentes de trabajo), plan avanzado (programa de gestión para el control de incidentes y accidentes de trabajo, programa de gestión prevención de la enfermedad profesional) plan especializado (programas de vigilancia epidemiológico) plan gestión integral (sistema de gestión en s&so – oshas 18001) se proyectan para el próximo año 5.579 horas de ejecución | G194: 1/01/2021 | H194: 1 | I194: 31/12/2021 | J194: 12.13333333 | K194: Invitación directa | L194: PromociónyPrevención | M194: 300000000 | N194: 300000000 | O194: NO | P194: NA | Q194: Gerencia de Abastecimiento Estratégico contratacion@positiva.gov.co PBX: (1)6502200 Ext: 10641 | R194: SI | S194: NO | T194: NO | U194: SI | V194: Pública clasificada | W194: C77092021-Tipo de información Pública clasificada-Servicios en empresas clientes representativos para la sucursales cundinamarca, bogota coordinadora y gerencia corredores como procuraduría, je jaimes, invima, entre otras, para la prestacion de actividades de asesoría en plan básico (programa estructura empresarial, programa de preparación y atención de emergencias, programa de prevención y protección colectiva e individual, programa promoción y prevención en salud, programa de investigación de incidencia y accidentes de trabajo), plan avanzado (programa de gestión para el control de incidentes y accidentes de trabajo, programa de gestión prevención de la enfermedad profesional) plan especializado (programas de vigilancia epidemiológico) plan gestión integral (sistema de gestión en s&so – oshas 18001) se proyectan para el próximo año 5.579 horas de ejecución
A195: Promoción y Prevención | B195: Gcia. Administración del Riesgo | C195: NO | D195: C82302021 | E195: 93141808 | F195: Servicios de promocion y prevencion en seguridad e higiene industrial y medicina preventiva, especialmente en seguridad vial, dme y prevencion del riesgo psicosocial a nivel nacional | G195: 1/04/2021 | H195: 4 | I195: 31/12/2021 | J195: 9.133333333 | K195: Invitación directa | L195: PromociónyPrevención | M195: 300000000 | N195: 300000000 | O195: NO | P195: NA | Q195: Gerencia de Abastecimiento Estratégico contratacion@positiva.gov.co PBX: (1)6502200 Ext: 10641 | R195: SI | S195: NO | T195: NO | U195: SI | V195: Pública clasificada | W195: C82302021-Tipo de información Pública clasificada-Servicios de promocion y prevencion en seguridad e higiene industrial y medicina preventiva, especialmente en seguridad vial, dme y prevencion del riesgo psicosocial a nivel nacional
A196: Promoción y Prevención | B196: Gcia. Administración del Riesgo | C196: SI | D196: C82322021 | E196: 93141808 | F196: Conforme a los planes de trabajo concertados con la empresa cliente rama judicial, brindar servicios de asesoría, asistencia técnica, en la ejecución de actividades del programa plan avanzado - programa positivamentepara la intervención riesgos prioritarios resultado de diagnóstico riesgo psicosocial: gap 3 en el marco del sistema de vigilancia epidemiológica. | G196: 1/02/2021 | H196: 2 | I196: 30/11/2021 | J196: 10.06666667 | K196: Invitación directa | L196: PromociónyPrevención | M196: 300000000 | N196: 300000000 | O196: NO | P196: NA | Q196: Gerencia de Abastecimiento Estratégico contratacion@positiva.gov.co PBX: (1)6502200 Ext: 10641 | R196: SI | S196: NO | T196: NO | U196: SI | V196: Pública clasificada | W196: C82322021-Tipo de información Pública clasificada-Conforme a los planes de trabajo concertados con la empresa cliente rama judicial, brindar servicios de asesoría, asistencia técnica, en la ejecución de actividades del programa plan avanzado - programa positivamentepara la intervención riesgos prioritarios resultado de diagnóstico riesgo psicosocial: gap 3 en el marco del sistema de vigilancia epidemiológica.
A197: Promoción y Prevención | B197: Gcia. Administración del Riesgo | C197: SI | D197: C79072021 | E197: 93141808 | F197: "para dar cumplimiento a lo establecido en los artículos 2, 59 y 80 del decreto ley 1295 de 1994, el artículo 11 de la ley 1562 de 2012, el decreto compilado 1072 de 2015, resolución 0312 de 2019 y demás normas vigentes del sistema general de riesgos laboralesmediante la contratación de la empresa ingenieria, innovacion y gestion s.a.s, se pretende garantizar la continuidad con un ejecutor que conoce e implementa el modelo de gestión positiva suma, en las empresas afiliadas a la sucursal casanare lo que contribuye en el logro de los objetivos estratégicos de fidelización y la satisfacción de las necesidades y expectativas de los clientes con relación al cumplimiento de los planes de trabajo concertados. teniendo en cuenta que el aliado estratégico: ingenieria, innovacion y gestion s.a.s es una empresa enmarcada en un modelo de gestión del conocimiento y de altos estándares de calidad y servicio que nos permiten satisfacer a nuestros clientes en la prestación de servicios con actividades de, consultoría, asesoría, asistencia técnica y de formación en seguridad y salud en el trabajo, bajo el lineamiento de los programas de la estrategia crea del modelo de gestión positiva suma. en ingenieria, innovacion y gestion s.a.s la gestión integral de los riesgos organizacionales es parte inherente en nuestras operaciones, sin importar lo urgente o trascendental, es política de la organización la prevención y control de las lesiones, enfermedades de origen laboral, la contaminación ambiental y las no conformidades de calidad durante la prestación de sus servicios. dar continuidad con la asesoría, asistencia técnica y de formación en promoción y prevención de los sistemas de gestión en seguridad y salud en el trabajo de las empresas de la sucursal casanare, con el fin de garantizar el conocimiento y satisfacción del cliente así como incidir en el control de tasas de los accidentes de trabajo y enfermedades laborales. cumplir la promesa de valor pactada en los planes de trabajo que se ejecutaran en el año 2021 en las 240 empresas de planes regulares de la sucursal casanare de diversos sectores económicos; con un ejecutor que conozca y halla implementado el modelo de gestión positiva suma, en las empresas afiliadas a la sucursal casanare lo que contribuye en el logro de los objetivos estratégicos de fidelización y la satisfacción de las necesidades y expectativas de los clientes con relación al cumplimiento de los planes de trabajo concertados. brindar atención integral a las empresas de la sucursal casanare en la prestación de servicios de promoción y prevención para implementar, mejorar y/o mantener actividades de, asesoría, asistencia técnica y de formación en seguridad y salud en el trabajo del plan básico en los programas, (programa estructura empresarial, programa preparación y atención de emergencias, programa de prevención y protección colectiva e individual, programa promoción y prevención en salud, programa investigación de incidentes, accidentes de trabajo) avanzado en los programas de (programa gestión para el control de incidentes y accidentes de trabajo, programa gestión en la prevención de enfermedades profesionales, especializado en los programas de (programas de vigilancia epidemiológica) y gestión integral en los programas de (programa sistema de gestión en s&so - ohsas 18001) de la estrategia crea del modelo de gestión positiva suma de acuerdo a los planes de trabajo pactados con la empresas y cargados en el aplicativo gestpos, para empresas afiliadas a positiva compañía de seguros especialmente para empresas en la sucursal casanare de la zona oriente. dar asesoría y asistencia técnica para fortalecer la gestión de prevención de la accidentalidad y enfermedad laboral para la conservación de la salud de los trabajadores en las empresas en la modalidad de atención planes regulares de la zona oriente sucursal casanare." | G197: 1/01/2021 | H197: 1 | I197: 30/11/2021 | J197: 11.1 | K197: Invitación directa | L197: PromociónyPrevención | M197: 290000000 | N197: 290000000 | O197: NO | P197: NA | Q197: Gerencia de Abastecimiento Estratégico contratacion@positiva.gov.co PBX: (1)6502200 Ext: 10641 | R197: SI | S197: NO | T197: NO | U197: SI | V197: =IF(U197="SI","Pública clasificada","Pública") -> Pública clasificada | W197: C79072021-Tipo de información Pública clasificada-"para dar cumplimiento a lo establecido en los artículos 2, 59 y 80 del decreto ley 1295 de 1994, el artículo 11 de la ley 1562 de 2012, el decreto compilado 1072 de 2015, resolución 0312 de 2019 y demás normas vigentes del sistema general de riesgos laboralesmediante la contratación de la empresa ingenieria, innovacion y gestion s.a.s, se pretende garantizar la continuidad con un ejecutor que conoce e implementa el modelo de gestión positiva suma, en las empresas afiliadas a la sucursal casanare lo que contribuye en el logro de los objetivos estratégicos de fidelización y la satisfacción de las necesidades y expectativas de los clientes con relación al cumplimiento de los planes de trabajo concertados. teniendo en cuenta que el aliado estratégico: ingenieria, innovacion y gestion s.a.s es una empresa enmarcada en un modelo de gestión del conocimiento y de altos estándares de calidad y servicio que nos permiten satisfacer a nuestros clientes en la prestación de servicios con actividades de, consultoría, asesoría, asistencia técnica y de formación en seguridad y salud en el trabajo, bajo el lineamiento de los programas de la estrategia crea del modelo de gestión positiva suma. en ingenieria, innovacion y gestion s.a.s la gestión integral de los riesgos organizacionales es parte inherente en nuestras operaciones, sin importar lo urgente o trascendental, es política de la organización la prevención y control de las lesiones, enfermedades de origen laboral, la contaminación ambiental y las no conformidades de calidad durante la prestación de sus servicios. dar continuidad con la asesoría, asistencia técnica y de formación en promoción y prevención de los sistemas de gestión en seguridad y salud en el trabajo de las empresas de la sucursal casanare, con el fin de garantizar el conocimiento y satisfacción del cliente así como incidir en el control de tasas de los accidentes de trabajo y enfermedades laborales. cumplir la promesa de valor pactada en los planes de trabajo que se ejecutaran en el año 2021 en las 240 empresas de planes regulares de la sucursal casanare de diversos sectores económicos; con un ejecutor que conozca y halla implementado el modelo de gestión positiva suma, en las empresas afiliadas a la sucursal casanare lo que contribuye en el logro de los objetivos estratégicos de fidelización y la satisfacción de las necesidades y expectativas de los clientes con relación al cumplimiento de los planes de trabajo concertados. brindar atención integral a las empresas de la sucursal casanare en la prestación de servicios de promoción y prevención para implementar, mejorar y/o mantener actividades de, asesoría, asistencia técnica y de formación en seguridad y salud en el trabajo del plan básico en los programas, (programa estructura empresarial, programa preparación y atención de emergencias, programa de prevención y protección colectiva e individual, programa promoción y prevención en salud, programa investigación de incidentes, accidentes de trabajo) avanzado en los programas de (programa gestión para el control de incidentes y accidentes de trabajo, programa gestión en la prevención de enfermedades profesionales, especializado en los programas de (programas de vigilancia epidemiológica) y gestión integral en los programas de (programa sistema de gestión en s&so - ohsas 18001) de la estrategia crea del modelo de gestión positiva suma de acuerdo a los planes de trabajo pactados con la empresas y cargados en el aplicativo gestpos, para empresas afiliadas a positiva compañía de seguros especialmente para empresas en la sucursal casanare de la zona oriente. dar asesoría y asistencia técnica para fortalecer la gestión de prevención de la accidentalidad y enfermedad laboral para la conservación de la salud de los trabajadores en las empresas en la modalidad de atención planes regulares de la zona oriente sucursal casanare."
A198: Promoción y Prevención | B198: Gcia. Administración del Riesgo | C198: SI | D198: C77082021 | E198: 93141808 | F198: Autoprestacion de servicios en promoción y prevención en empresa cliente agm salud cooperativa de trabajo asociado para la prestacion de actividades de asesorá en plan básico (programa estructura empresarial, programa de preparación y atención de emergencias, programa de prevención y protección colectiva e individual, programa promoción y prevención en salud, programa de investigación de incidencia y accidentes de trabajo), plan avanzado (programa de gestión para el control de incidentes y accidentes de trabajo, programa de gestión prevención de la enfermedad profesional) plan especializado (programas de vigilancia epidemiológico) plan gestión integral (sistema de gestión en s&so – oshas 18001) se proyectan para el próximo año 5.207 horas de ejecución | G198: 1/01/2021 | H198: 1 | I198: 30/11/2021 | J198: 11.1 | K198: Invitación directa | L198: PromociónyPrevención | M198: 280000000 | N198: 280000000 | O198: NO | P198: NA | Q198: Gerencia de Abastecimiento Estratégico contratacion@positiva.gov.co PBX: (1)6502200 Ext: 10641 | R198: SI | S198: NO | T198: NO | U198: SI | V198: Pública clasificada | W198: C77082021-Tipo de información Pública clasificada-Autoprestacion de servicios en promoción y prevención en empresa cliente agm salud cooperativa de trabajo asociado para la prestacion de actividades de asesorá en plan básico (programa estructura empresarial, programa de preparación y atención de emergencias, programa de prevención y protección colectiva e individual, programa promoción y prevención en salud, programa de investigación de incidencia y accidentes de trabajo), plan avanzado (programa de gestión para el control de incidentes y accidentes de trabajo, programa de gestión prevención de la enfermedad profesional) plan especializado (programas de vigilancia epidemiológico) plan gestión integral (sistema de gestión en s&so – oshas 18001) se proyectan para el próximo año 5.207 horas de ejecución
A199: Promoción y Prevención | B199: Gcia. Administración del Riesgo | C199: SI | D199: C77552021 | E199: 93141808 | F199: De acuerdo con los planes de trabajo establecidos para la empresas mas representativas en la zona bogotá gerencia de corredores que requieren cobertura nacional se contemplan actividades de acompañamiento y en la modalidad de atención planes regulares en materia de preparación y atención de emergencias, prevención y protección colectiva e individual, investigación de incidentes y accidentes de trabajo y control de incidentes y accidentes de trabajo. | G199: 15/01/2021 | H199: 1 | I199: 30/11/2021 | J199: 10.63333333 | K199: Invitación directa | L199: PromociónyPrevención | M199: 280000000 | N199: 280000000 | O199: NO | P199: NA | Q199: Gerencia de Abastecimiento Estratégico contratacion@positiva.gov.co PBX: (1)6502200 Ext: 10641 | R199: SI | S199: NO | T199: NO | U199: SI | V199: Pública clasificada | W199: C77552021-Tipo de información Pública clasificada-De acuerdo con los planes de trabajo establecidos para la empresas mas representativas en la zona bogotá gerencia de corredores que requieren cobertura nacional se contemplan actividades de acompañamiento y en la modalidad de atención planes regulares en materia de preparación y atención de emergencias, prevención y protección colectiva e individual, investigación de incidentes y accidentes de trabajo y control de incidentes y accidentes de trabajo.
A200: Promoción y Prevención | B200: Gcia. Administración del Riesgo | C200: SI | D200: C77642021 | E200: 93141808 | F200: "de acuerdo con los planes de trabajo establecidos para las empresas afiliadas a positiva compañia de seguros en la zona bogotá; gerencia de corredores se contemplan actividades de asesoría estratégica orientada a plantear soluciones a los problemas que presenta la empresa en materia de seguridad y salud en el trabajo." | G200: 15/01/2021 | H200: 1 | I200: 30/11/2021 | J200: 10.63333333 | K200: Invitación directa | L200: PromociónyPrevención | M200: 280000000 | N200: 280000000 | O200: NO | P200: NA | Q200: Gerencia de Abastecimiento Estratégico contratacion@positiva.gov.co PBX: (1)6502200 Ext: 10641 | R200: SI | S200: NO | T200: NO | U200: SI | V200: Pública clasificada | W200: C77642021-Tipo de información Pública clasificada-"de acuerdo con los planes de trabajo establecidos para las empresas afiliadas a positiva compañia de seguros en la zona bogotá; gerencia de corredores se contemplan actividades de asesoría estratégica orientada a plantear soluciones a los problemas que presenta la empresa en materia de seguridad y salud en el trabajo."
A201: Promoción y Prevención | B201: Gcia. Administración del Riesgo | C201: SI | D201: C77242021 | E201: 93141808 | F201: Continuidad de servicios para los planes de trabajo de los clientes de la sucursal bogota cundinamarca, proveedor con contratos en vigencias pasadas y prestacion de servicios para los clientes de la sucursal, solicitud puntual de cuentas como sgs y servicios postales nacionales | G201: 15/01/2021 | H201: 1 | I201: 30/11/2021 | J201: 10.63333333 | K201: Invitación directa | L201: PromociónyPrevención | M201: 270000000 | N201: 270000000 | O201: NO | P201: NA | Q201: Gerencia de Abastecimiento Estratégico contratacion@positiva.gov.co PBX: (1)6502200 Ext: 10641 | R201: SI | S201: NO | T201: NO | U201: SI | V201: Pública clasificada | W201: C77242021-Tipo de información Pública clasificada-Continuidad de servicios para los planes de trabajo de los clientes de la sucursal bogota cundinamarca, proveedor con contratos en vigencias pasadas y prestacion de servicios para los clientes de la sucursal, solicitud puntual de cuentas como sgs y servicios postales nacionales
A202: Promoción y Prevención | B202: Gcia. Administración del Riesgo | C202: SI | D202: C77542021 | E202: 93141808 | F202: "de acuerdo con los planes de trabajo establecidos para las empresas afiliadas a positiva compañia de seguros en la zona bogotá; gerencia de corredores se contemplan actividades de asesoría estratégica orientada a plantear soluciones a los problemas que presenta la empresa en materia de seguridad y salud en el trabajo con el fin de generar impacto en la disminucion de la siniestralidad." | G202: 15/01/2021 | H202: 1 | I202: 30/11/2021 | J202: 10.63333333 | K202: Invitación directa | L202: PromociónyPrevención | M202: 270000000 | N202: 270000000 | O202: NO | P202: NA | Q202: Gerencia de Abastecimiento Estratégico contratacion@positiva.gov.co PBX: (1)6502200 Ext: 10641 | R202: SI | S202: NO | T202: NO | U202: SI | V202: Pública clasificada | W202: C77542021-Tipo de información Pública clasificada-"de acuerdo con los planes de trabajo establecidos para las empresas afiliadas a positiva compañia de seguros en la zona bogotá; gerencia de corredores se contemplan actividades de asesoría estratégica orientada a plantear soluciones a los problemas que presenta la empresa en materia de seguridad y salud en el trabajo con el fin de generar impacto en la disminucion de la siniestralidad."
A203: Promoción y Prevención | B203: Gcia. Administración del Riesgo | C203: SI | D203: C77222021 | E203: 93141808 | F203: Continuidad de servicios para los planes de trabajo de los clientes de la zona bogota, proveedor con contratos en vigencias pasadas y prestacion de servicios para los clientes de la sucursal. contrato transversal para empresas de las sucursales bogota coordinadora, cundinamarca y corredores. | G203: 15/01/2021 | H203: 1 | I203: 30/11/2021 | J203: 10.63333333 | K203: Invitación directa | L203: PromociónyPrevención | M203: 260000000 | N203: 260000000 | O203: NO | P203: NA | Q203: Gerencia de Abastecimiento Estratégico contratacion@positiva.gov.co PBX: (1)6502200 Ext: 10641 | R203: SI | S203: NO | T203: NO | U203: SI | V203: Pública clasificada | W203: C77222021-Tipo de información Pública clasificada-Continuidad de servicios para los planes de trabajo de los clientes de la zona bogota, proveedor con contratos en vigencias pasadas y prestacion de servicios para los clientes de la sucursal. contrato transversal para empresas de las sucursales bogota coordinadora, cundinamarca y corredores.
A204: Promoción y Prevención | B204: Gcia. Administración del Riesgo | C204: SI | D204: C77252021 | E204: 93141808 | F204: Continuidad de servicios para los planes de trabajo de los clientes de la sucursal bogota cundinamarca, proveedor con contratos en vigencias pasadas y prestacion de servicios para los clientes de la sucursal, solicitud puntual de grupo empresarial sgs | G204: 15/01/2021 | H204: 1 | I204: 30/11/2021 | J204: 10.63333333 | K204: Invitación directa | L204: PromociónyPrevención | M204: 260000000 | N204: 260000000 | O204: NO | P204: NA | Q204: Gerencia de Abastecimiento Estratégico contratacion@positiva.gov.co PBX: (1)6502200 Ext: 10641 | R204: SI | S204: NO | T204: NO | U204: SI | V204: Pública clasificada | W204: C77252021-Tipo de información Pública clasificada-Continuidad de servicios para los planes de trabajo de los clientes de la sucursal bogota cundinamarca, proveedor con contratos en vigencias pasadas y prestacion de servicios para los clientes de la sucursal, solicitud puntual de grupo empresarial sgs
A205: Promoción y Prevención | B205: Gcia. Administración del Riesgo | C205: SI | D205: C79302021 | E205: 93141808 | F205: Servicios de promocion y prevencion zona santander suc boyaca | G205: 1/04/2021 | H205: 4 | I205: 30/11/2021 | J205: 8.1 | K205: Invitación directa | L205: PromociónyPrevención | M205: 255897000 | N205: 255897000 | O205: NO | P205: NA | Q205: Gerencia de Abastecimiento Estratégico contratacion@positiva.gov.co PBX: (1)6502200 Ext: 10641 | R205: SI | S205: NO | T205: NO | U205: SI | V205: Pública clasificada | W205: C79302021-Tipo de información Pública clasificada-Servicios de promocion y prevencion zona santander suc boyaca
A206: Promoción y Prevención | B206: Gcia. Administración del Riesgo | C206: SI | D206: C77572021 | E206: 93141808 | F206: De acuerdo con los planes de trabajo establecidos para la empresas mas representativas en la zona bogotá gerencia de corredores que requieren cobertura nacional se contemplan actividades de asesoría estratégica orientadas a plantear soluciones a los problemas que presenta la empresa en materia de seguridad y salud en el trabajo. | G206: 15/01/2021 | H206: 1 | I206: 30/11/2021 | J206: 10.63333333 | K206: Invitación directa | L206: PromociónyPrevención | M206: 250000000 | N206: 250000000 | O206: NO | P206: NA | Q206: Gerencia de Abastecimiento Estratégico contratacion@positiva.gov.co PBX: (1)6502200 Ext: 10641 | R206: SI | S206: NO | T206: NO | U206: SI | V206: Pública clasificada | W206: C77572021-Tipo de información Pública clasificada-De acuerdo con los planes de trabajo establecidos para la empresas mas representativas en la zona bogotá gerencia de corredores que requieren cobertura nacional se contemplan actividades de asesoría estratégica orientadas a plantear soluciones a los problemas que presenta la empresa en materia de seguridad y salud en el trabajo.
... 979 more rows

Sheet Hoja6 (hidden)
A3: Suma de Valor total estimado | B3: Etiquetas de columna
A4: CONTRATADO | B4: Financiera y Administrativa | C4: Negocios | D4: Operaciones | E4: Promoción y Prevención | F4: Secretaria General y Jurídica | G4: Técnica | H4: Total general
A5: NO | B5: 2622031365 | C5: 1754132137 | D5: 79357365118 | E5: 46341272786 | F5: 15974256533 | G5: 1363300000 | H5: 147412357939
A6: SI | B6: 8047928654 | C6: 6607805241 | D6: 465948677 | E6: 128120928851 | F6: 1.644750839e+10 | G6: 252194000 | H6: 1.599423138e+11
A7: Total general | B7: 10669960019 | C7: 8361937378 | D7: 79823313795 | E7: 174462201637 | F7: 3.242176492e+10 | G7: 1615494000 | H7: 3.073546718e+11

Sheet Hoja2 (hidden)
C3: CDP CONTRATADOS 2021 | F3: CDP CONTRATADOS 2020
C4: C78012021 | F4: NA
C5: NA | F5: NA
C6: C77682021 | F6: NA
C7: NA | F7: NA
C8: NA | F8: C83012020
C9: C20442021 | F9: C85012020
C10: NA | F10: C75042020
C11: NA | F11: NA
C12: NA | F12: NA
C13: NA | F13: NA
C14: NA | F14: NA
C15: C23172021 | F15: C45172020
C16: NA | F16: C05272020
C17: NA | F17: C83042020 C83022020
C18: NA | F18: NA
C19: C23142021 | F19: C23022020
C20: C23162021 | F20: NA
C21: C65092021 | F21: C20532020
C22: C65082021 | F22: NA
C23: C65102021 | F23: NA
C24: NA | F24: NA
C25: NA | F25: C23012020
C26: C45132021 | F26: C76102020
C27: C45102021 | F27: NA
C28: C23192021 | F28: NA
C29: NA | F29: C77232020
C30: C20512021 | F30: NA
C31: NA | F31: C75072020
C32: C77042021 | F32: C77142020
C33: C81042021 | F33: C79092020
C34: NA | F34: C20282020 C20432020 C20362020
C35: C23242021 | F35: C76112020
C36: NA | F36: C20542020
C37: NA | F37: C76122020
C38: C20492021 | F38: C20562020
C39: C80182021 | F39: C83572020
C40: C77572021 | F40: NA
C41: C79102021 | F41: NA
C42: C69372021 | F42: NA
C43: C80292021 | F43: C77212020
C44: C80212021 | F44: NA
C45: C35222021 | F45: C56422020
C46: C80192021 | F46: C56482020
C47: C77102021 | F47: C76232020
C48: C77392021 | F48: C77222020
C49: C77132021 | F49: C56632020
C50: C82222021 | F50: C56472020
C51: C82082021 | F51: C65102020 C65022021 C65022022
C52: C76062021 | F52: NA
C53: C77662021 | F53: NA
C54: C75102021 | F54: C76132020
C55: C79242021 | F55: NA
C56: C80152021 | F56: NA
C57: C76172021 | F57: C77252020
C58: C75112021 | F58: NA
C59: C80262021 | F59: C20592020
C60: C76212021 | F60: C15062020 C20572020 C00052020
C61: C76182021 | F61: C56462020
C62: C77612021 | F62: C23032020
C63: C77052021 | F63: NA
C64: C77582021 | F64: C20522020 C20402020
C65: C79252021 | F65: NA
C66: C45122021 | F66: C20632020
C67: C76102021 | F67: NA
C68: C77742021 | F68: C79122020
C69: C79062021 | F69: C70522020
C70: NA | F70: C77402020
C71: C77722021 | F71: C75092020
C72: C20302021 | F72: NA
C73: C45112021 | F73: NA
C74: C76052021 | F74: C24022020
C75: C82512021 | F75: C76222020
C76: C82262021 | F76: C80172020
C77: C76252021 | F77: C79262020
C78: C79072021 | F78: C76212020
C79: C76012021 | F79: C75122020
C80: C76042021 | F80: C75112020
C81: C77252021 | F81: C76172020
C82: C82182021 | F82: C20682020 C20602020 C35312020
C83: C77622021 | F83: C76202020
C84: NA | F84: C75102020
C85: NA | F85: C80142020
C86: C20352021 | F86: C20292020
C87: C20542021 | F87: C20612020
C88: C77092021 | F88: C76162020
C89: C82142021 | F89: C80122020
C90: C77452021 | F90: C15012020
C91: C77402021 | F91: C79142020
C92: C80272021 | F92: C56182020
C93: C79122021 | F93: C80192020
C94: C79022021 | F94: C80132020
C95: C77632021 | F95: NA
C96: C81032021 | F96: C35392020 C35262020 NA
C97: C82152021 | F97: C35282020
C98: C82132021 | F98: C20422020
C99: C75172021 | F99: C20262020
C100: C76142021 | F100: C20332020
C101: C82092021 | F101: C78072020
C102: C76192021 | F102: NA
C103: C75052021 | F103: NA
C104: C77222021 | F104: C78362020
C105: C77352021 | F105: C78352020
C106: C77562021 | F106: C05452020
C107: C75092021 | F107: C05312020
C108: C79192021 | F108: C80082020
C109: C76122021 | F109: C79392020
C110: C76162021 | F110: C77702020
C111: NA | F111: NA
C112: C76232021 | F112: C77172020
C113: C75042021 | F113: C77382020
C114: C75062021 | F114: C77512020
C115: C79052021 | F115: C78332020
C116: C75022021 | F116: C55572020
C117: C79092021 | F117: NA
C118: C79082021 | F118: C45042020
C119: C79032021 | F119: C45032020
C120: C76132021 | F120: C77712020
C121: C77322021 | F121: NA
C122: C77292021 | F122: C05412020
C123: C77212021 | F123: C05722020
C124: C77482021 | F124: C76152020
C125: C77022021 | F125: C23102020
C126: C80352021 | F126: C79152020
C127: C76082021 | F127: C77272020
C128: C80282021 | F128: C80162020
C129: C82352021 | F129: C78302020
C130: C05472021 | F130: C77552020 C77452020
C131: C35372021 | F131: C77492020
C132: NA | F132: C77802020
C133: C80342021 | F133: C76182020
C134: C77512021 | F134: C78372020
C135: C80162021 | F135: C77462020
C136: C75152021 | F136: C77792020
C137: C79042021 | F137: C78152020
C138: C77232021 | F138: C77472020 C78442020
C139: C79162021 | F139: C77392020
C140: C81052021 | F140: C77322020
C141: C77242021 | F141: C77372020
C142: C79262021 | F142: C79112020
C143: C77502021 | F143: C80182020
C144: C76202021 | F144: C77502020
C145: NA | F145: C79232020
C146: C77072021 | F146: C75162020
C147: C77372021 | F147: C77652020
C148: C82212021 | F148: C77442020
C149: C79202021 | F149: C78062020
C150: C80062021 | F150: C75242020
C151: C80102021 | F151: C77282020
C152: C75082021 | F152: C77762020
C153: C79172021 | F153: C78232020
C154: C75202021 | F154: C77662020
C155: C77262021 | F155: C77352020
C156: C77122021 | F156: C78082020
C157: C81012021 | F157: C77482020
C158: C80322021 | F158: C79292020
C159: C05602021 | F159: C77682020
C160: NA | F160: C79272020
C161: C77412021 | F161: C77532020
C162: C77062021 | F162: C77912020
C163: C75142021 | F163: C79162020
C164: C79212021 | F164: C79402020
C165: C80092021 | F165: C45192020
C166: C76112021 | F166: C77342020
C167: C77732021 | F167: C80092020
C168: C81062021 | F168: C77602020
C169: C75162021 | F169: C77772020
C170: C76222021 | F170: C77432020
C171: C80022021 | F171: C78282020
C172: C81542021 | F172: C78102020
C173: C82332021 | F173: C78342020
C174: C82062021 | F174: C78132020
C175: C82282021 | F175: C78272020
C176: C81022021 | F176: C77412020
C177: C77362021 | F177: C78252020
C178: C76092021 | F178: C77922020
C179: C75192021 | F179: C77542020
C180: C82202021 | F180: NA
C181: C80252021 | F181: C05862020
C182: C80172021 | F182: C23042020
C183: C82372021 | F183: C05652020
C184: C79222021 | F184: C05402020
C185: NA | F185: NA
C186: NA | F186: NA
C187: C79272021 | F187: NA
C188: C76152021 | F188: NA
C189: C77532021 | F189: C75202020
C190: C77492021 | F190: NA
C191: C82322021 | F191: C78292020
C192: C77542021 | F192: C77262020
C193: C77382021 | F193: C77362020
C194: C82112021 | F194: C78212020
C195: C77552021 | F195: C79082020
C196: NA | F196: C83582020
C197: C82252021 | F197: NA
C198: C82272021 | F198: NA
C199: C79142021 | F199: C15082020
C200: C77712021 | F200: NA
C201: C76242021 | F201: C05342020 C05342020
C202: C77592021 | F202: C56502020
... 512 more rows

Sheet Hoja5 (hidden)
A3: Suma de Valor total estimado
A4: DEPENDENCIA | B4: Total
A5: ESTRATEGIA | B5: 694295625
A6: ESTRATEGIA, TALENTO HUMANO y RIESGOS | B6: 97086437
A7: FINANCIERA Y ADMON | B7: 8752267945
A8: NEGOCIOS | B8: 7381429080
A9: NEGOCIOS Y FINANCIERA Y ADMON | B9: 269479593
A10: NEGOCIOS Y SECRETARIA GENERAL | B10: 110000000
A11: NEGOCIOS, SECRETARIA GENERAL y PYP | B11: 6589650515
A12: OPERACIONES | B12: 38366883401
A13: OTI | B13: 1.63261224e+10
A14: PYP | B14: 120411187909
A15: RIESGOS | B15: 68348301
A16: SECRETARIA GENERAL Y JURIDICA | B16: 6077135191
A17: TÉCNICA | B17: 1132517831
A18: Total general | B18: 2.062764042e+11
